Workbook

Sheet Main
B10: 2019-06-25
B12: Sheet No. | C12: Template Name | D12: Summary
B13: 1 | C13: Future Intra | D13: For Intraday trading in F&O segment
B14: 2 | C14: Cash Intra | D14: For Intraday trading in cash market segment
B15: 3 | C15: Mid-cap Intra | D15: For Intraday trading in Mid-cap stocks
B16: 4 | C16: Bulk Deals | D16: Reveals Bulk Deals carried on NSE & BSE
B17: 5 | C17: Call Tracker
K27: `

Sheet Future Intra
M5: Back to Main Page
A6: FOR INTRA DAY TRADING | L6: =Main!B10 -> 2019-06-25
A9: Sr.no | B9: Sector | C9: Scrip | D9: CLOSE RATE | E9: Pivot Point | F9: Supports | I9: Resistances
B10: Sector | D10: Point | E10: Point | F10: S1 | G10: S2 | H10: S3 | I10: R1 | J10: R2 | K10: R3 | L10: HIGH | M10: LOW | N10: OI | O10: % Change in OI
A11: 1 | B11: Index | C11: BANKNIFTY | D11: 30631.25 | E11: 30644.30 | F11: 30520.60 | G11: 30409.95 | H11: 30286.25 | I11: 30754.95 | J11: 30878.65 | K11: 30989.30 | L11: 30768 | M11: 30533.65 | N11: 2230620 | O11: 1.62%
A12: 2 | B12: Index | C12: NIFTY | D12: 11717.15 | E12: 11726.72 | F12: 11671.43 | G12: 11625.72 | H12: 11570.43 | I12: 11772.43 | J12: 11827.72 | K12: 11873.43 | L12: 11782 | M12: 11681 | N12: 22070175 | O12: 2.68%
A13: 3 | B13: Index | C13: NIFTYIT | D13: 16186.00 | E13: 16275.33 | F13: 16062.67 | G13: 15939.33 | H13: 15726.67 | I13: 16398.67 | J13: 16611.33 | K13: 16734.67 | L13: 16488 | M13: 16152 | N13: 12800 | O13: -3.76%
A14: 4 | B14: Cement | C14: ACC | D14: 1539.80 | E14: 1537.05 | F14: 1522.90 | G14: 1506.00 | H14: 1491.85 | I14: 1553.95 | J14: 1568.10 | K14: 1585.00 | L14: 1551.2 | M14: 1520.15 | N14: 2766400 | O14: -4.55%
A15: 5 | B15: Others | C15: ADANIENT | D15: 147.95 | E15: 147.15 | F15: 145.35 | G15: 142.75 | H15: 140.95 | I15: 149.75 | J15: 151.55 | K15: 154.15 | L15: 148.95 | M15: 144.55 | N15: 32380000 | O15: 1.59%
A16: 6 | B16: Others | C16: ADANIPORTS | D16: 407.10 | E16: 405.63 | F16: 402.52 | G16: 397.93 | H16: 394.82 | I16: 410.22 | J16: 413.33 | K16: 417.92 | L16: 408.75 | M16: 401.05 | N16: 22372500 | O16: 2.90%
A17: 7 | B17: Power | C17: ADANIPOWER | D17: 50.10 | E17: 49.23 | F17: 48.07 | G17: 46.03 | H17: 44.87 | I17: 51.27 | J17: 52.43 | K17: 54.47 | L17: 50.4 | M17: 47.2 | N17: 172880000 | O17: 22.68%
A18: 8 | B18: Pharma | C18: AJANTPHARM | D18: 958.95 | E18: 952.05 | F18: 940.00 | G18: 921.05 | H18: 909.00 | I18: 971.00 | J18: 983.05 | K18: 1002.00 | L18: 964.1 | M18: 933.1 | N18: 283500 | O18: -16.37%
A19: 9 | B19: Banking | C19: ALBK | D19: 40.65 | E19: 40.67 | F19: 40.23 | G19: 39.82 | H19: 39.38 | I19: 41.08 | J19: 41.52 | K19: 41.93 | L19: 41.1 | M19: 40.25 | N19: 11882000 | O19: -4.39%
A20: 10 | B20: Automobile | C20: AMARAJABAT | D20: 600.95 | E20: 601.38 | F20: 595.62 | G20: 590.28 | H20: 584.52 | I20: 606.72 | J20: 612.48 | K20: 617.82 | L20: 607.15 | M20: 596.05 | N20: 1447600 | O20: 7.99%
A21: 11 | B21: Cement | C21: AMBUJACEM | D21: 214.90 | E21: 214.63 | F21: 212.77 | G21: 210.63 | H21: 208.77 | I21: 216.77 | J21: 218.63 | K21: 220.77 | L21: 216.5 | M21: 212.5 | N21: 16665000 | O21: -4.85%
A22: 12 | B22: Others | C22: APOLLOHOSP | D22: 1348.40 | E22: 1345.53 | F22: 1336.17 | G22: 1323.93 | H22: 1314.57 | I22: 1357.77 | J22: 1367.13 | K22: 1379.37 | L22: 1354.9 | M22: 1333.3 | N22: 1366000 | O22: 3.06%
A23: 13 | B23: Automobile | C23: APOLLOTYRE | D23: 198.50 | E23: 197.32 | F23: 195.08 | G23: 191.67 | H23: 189.43 | I23: 200.73 | J23: 202.97 | K23: 206.38 | L23: 199.55 | M23: 193.9 | N23: 13878000 | O23: -5.09%
A24: 14 | B24: Textile | C24: ARVIND | D24: 62.55 | E24: 62.50 | F24: 60.40 | G24: 58.25 | H24: 56.15 | I24: 64.65 | J24: 66.75 | K24: 68.90 | L24: 64.6 | M24: 60.35 | N24: 8606000 | O24: 1.20%
A25: 15 | B25: Automobile | C25: ASHOKLEY | D25: 86.00 | E25: 86.17 | F25: 85.08 | G25: 84.17 | H25: 83.08 | I25: 87.08 | J25: 88.17 | K25: 89.08 | L25: 87.25 | M25: 85.25 | N25: 66586000 | O25: -1.49%
A26: 16 | B26: FMCG | C26: ASIANPAINT | D26: 1379.05 | E26: 1384.12 | F26: 1366.68 | G26: 1354.32 | H26: 1336.88 | I26: 1396.48 | J26: 1413.92 | K26: 1426.28 | L26: 1401.55 | M26: 1371.75 | N26: 5936400 | O26: 1.82%
A27: 17 | B27: Pharma | C27: AUROPHARMA | D27: 587.75 | E27: 593.75 | F27: 577.55 | G27: 567.35 | H27: 551.15 | I27: 603.95 | J27: 620.15 | K27: 630.35 | L27: 609.95 | M27: 583.55 | N27: 16192000 | O27: 5.25%
A28: 18 | B28: Banking | C28: AXISBANK | D28: 764.60 | E28: 767.60 | F28: 758.90 | G28: 753.20 | H28: 744.50 | I28: 773.30 | J28: 782.00 | K28: 787.70 | L28: 776.3 | M28: 761.9 | N28: 44568000 | O28: 4.12%
A29: 19 | B29: Automobile | C29: BAJAJ-AUTO | D29: 2822.60 | E29: 2837.93 | F29: 2791.72 | G29: 2760.83 | H29: 2714.62 | I29: 2868.82 | J29: 2915.03 | K29: 2945.92 | L29: 2884.15 | M29: 2807.05 | N29: 2480750 | O29: 2.91%
A30: 20 | B30: Others | C30: BAJAJFINSV | D30: 8378.80 | E30: 8392.80 | F30: 8340.70 | G30: 8302.60 | H30: 8250.50 | I30: 8430.90 | J30: 8483.00 | K30: 8521.10 | L30: 8444.9 | M30: 8354.7 | N30: 749750 | O30: -2.25%
A31: 21 | B31: Finance | C31: BAJFINANCE | D31: 3553.25 | E31: 3558.77 | F31: 3532.43 | G31: 3511.62 | H31: 3485.28 | I31: 3579.58 | J31: 3605.92 | K31: 3626.73 | L31: 3585.1 | M31: 3537.95 | N31: 5864750 | O31: -1.15%
A32: 22 | B32: Others | C32: BALKRISIND | D32: 742.45 | E32: 742.98 | F32: 734.72 | G32: 726.98 | H32: 718.72 | I32: 750.72 | J32: 758.98 | K32: 766.72 | L32: 751.25 | M32: 735.25 | N32: 2420000 | O32: 3.21%
A33: 23 | B33: Banking | C33: BANKBARODA | D33: 118.45 | E33: 118.70 | F33: 117.25 | G33: 116.05 | H33: 114.60 | I33: 119.90 | J33: 121.35 | K33: 122.55 | L33: 120.15 | M33: 117.5 | N33: 74393500 | O33: 4.38%
A34: 24 | B34: Banking | C34: BANKINDIA | D34: 86.50 | E34: 86.85 | F34: 85.65 | G34: 84.80 | H34: 83.60 | I34: 87.70 | J34: 88.90 | K34: 89.75 | L34: 88.05 | M34: 86 | N34: 31578000 | O34: 6.09%
A35: 25 | B35: FMCG | C35: BATAINDIA | D35: 1406.05 | E35: 1402.87 | F35: 1390.83 | G35: 1375.62 | H35: 1363.58 | I35: 1418.08 | J35: 1430.12 | K35: 1445.33 | L35: 1414.9 | M35: 1387.65 | N35: 1634050 | O35: 2.91%
A36: 26 | B36: Capital_Goods | C36: BEL | D36: 114.65 | E36: 113.92 | F36: 112.73 | G36: 110.82 | H36: 109.63 | I36: 115.83 | J36: 117.02 | K36: 118.93 | L36: 115.1 | M36: 112 | N36: 26736000 | O36: 6.12%
A37: 27 | B37: Infrastructure | C37: BEML | D37: 825.45 | E37: 821.90 | F37: 811.55 | G37: 797.65 | H37: 787.30 | I37: 835.80 | J37: 846.15 | K37: 860.05 | L37: 832.25 | M37: 808 | N37: 890400 | O37: -11.17%
A38: 28 | B38: Others | C38: BERGEPAINT | D38: 314.45 | E38: 315.95 | F38: 311.50 | G38: 308.55 | H38: 304.10 | I38: 318.90 | J38: 323.35 | K38: 326.30 | L38: 320.4 | M38: 313 | N38: 3198800 | O38: 2.04%
A39: 29 | B39: Finance | C39: BHARATFIN | D39: 925.05 | E39: 924.37 | F39: 914.03 | G39: 903.02 | H39: 892.68 | I39: 935.38 | J39: 945.72 | K39: 956.73 | L39: 934.7 | M39: 913.35 | N39: 4099500 | O39: -6.86%
A40: 30 | B40: Automobile | C40: BHARATFORG | D40: 437.40 | E40: 437.38 | F40: 433.32 | G40: 429.23 | H40: 425.17 | I40: 441.47 | J40: 445.53 | K40: 449.62 | L40: 441.45 | M40: 433.3 | N40: 8006400 | O40: -0.09%
A41: 31 | B41: Telecom | C41: BHARTIARTL | D41: 345.60 | E41: 346.05 | F41: 343.35 | G41: 341.10 | H41: 338.40 | I41: 348.30 | J41: 351.00 | K41: 353.25 | L41: 348.75 | M41: 343.8 | N41: 36335130 | O41: -0.07%
A42: 32 | B42: Capital_Goods | C42: BHEL | D42: 73.65 | E42: 73.15 | F42: 72.40 | G42: 71.15 | H42: 70.40 | I42: 74.40 | J42: 75.15 | K42: 76.40 | L42: 73.9 | M42: 71.9 | N42: 49987500 | O42: 6.11%
A43: 33 | B43: Pharma | C43: BIOCON | D43: 249.60 | E43: 248.97 | F43: 246.93 | G43: 244.27 | H43: 242.23 | I43: 251.63 | J43: 253.67 | K43: 256.33 | L43: 251 | M43: 246.3 | N43: 15274800 | O43: -1.41%
A44: 34 | B44: Automobile | C44: BOSCHLTD | D44: 16431.40 | E44: 16437.38 | F44: 16377.52 | G44: 16323.63 | H44: 16263.77 | I44: 16491.27 | J44: 16551.13 | K44: 16605.02 | L44: 16497.25 | M44: 16383.5 | N44: 158310 | O44: 0.11%
A45: 35 | B45: Oil_Gas | C45: BPCL | D45: 380.95 | E45: 378.68 | F45: 375.42 | G45: 369.88 | H45: 366.62 | I45: 384.22 | J45: 387.48 | K45: 393.02 | L45: 381.95 | M45: 373.15 | N45: 12067200 | O45: 1.47%
A46: 36 | B46: FMCG | C46: BRITANNIA | D46: 2777.95 | E46: 2803.40 | F46: 2740.55 | G46: 2703.15 | H46: 2640.30 | I46: 2840.80 | J46: 2903.65 | K46: 2941.05 | L46: 2866.25 | M46: 2766 | N46: 2238800 | O46: 4.81%
A47: 37 | B47: Pharma | C47: CADILAHC | D47: 228.15 | E47: 230.20 | F47: 223.10 | G47: 218.05 | H47: 210.95 | I47: 235.25 | J47: 242.35 | K47: 247.40 | L47: 237.3 | M47: 225.15 | N47: 17340800 | O47: 3.36%
A48: 38 | B48: Banking | C48: CANBK | D48: 273.60 | E48: 272.63 | F48: 270.67 | G48: 267.73 | H48: 265.77 | I48: 275.57 | J48: 277.53 | K48: 280.47 | L48: 274.6 | M48: 269.7 | N48: 11658000 | O48: -1.04%
A49: 39 | B49: Others | C49: CANFINHOME | D49: 348.10 | E49: 348.33 | F49: 344.77 | G49: 341.43 | H49: 337.87 | I49: 351.67 | J49: 355.23 | K49: 358.57 | L49: 351.9 | M49: 345 | N49: 2318400 | O49: -5.85%
A50: 40 | B50: Oil_Gas | C50: CASTROLIND | D50: 137.65 | E50: 138.17 | F50: 136.33 | G50: 135.02 | H50: 133.18 | I50: 139.48 | J50: 141.32 | K50: 142.63 | L50: 140 | M50: 136.85 | N50: 8377600 | O50: 1.61%
A51: 41 | B51: Automobile | C51: CEATLTD | D51: 900.95 | E51: 899.10 | F51: 881.85 | G51: 862.75 | H51: 845.50 | I51: 918.20 | J51: 935.45 | K51: 954.55 | L51: 916.35 | M51: 880 | N51: 715200 | O51: -4.08%
A52: 42 | B52: Textile | C52: CENTURYTEX | D52: 931.60 | E52: 934.00 | F52: 922.80 | G52: 914.00 | H52: 902.80 | I52: 942.80 | J52: 954.00 | K52: 962.80 | L52: 945.2 | M52: 925.2 | N52: 3826800 | O52: 0.76%
A53: 43 | B53: Power | C53: CESC | D53: 758.85 | E53: 758.57 | F53: 755.28 | G53: 751.72 | H53: 748.43 | I53: 762.13 | J53: 765.42 | K53: 768.98 | L53: 761.85 | M53: 755 | N53: 1121100 | O53: 3.71%
A54: 44 | B54: Power | C54: CGPOWER | D54: 29.25 | E54: 29.77 | F54: 28.48 | G54: 27.72 | H54: 26.43 | I54: 30.53 | J54: 31.82 | K54: 32.58 | L54: 31.05 | M54: 29 | N54: 9204000 | O54: -5.89%
A55: 45 | B55: Others | C55: CHENNPETRO | D55: 206.90 | E55: 208.77 | F55: 204.38 | G55: 201.87 | H55: 197.48 | I55: 211.28 | J55: 215.67 | K55: 218.18 | L55: 213.15 | M55: 206.25 | N55: 534600 | O55: -7.76%
A56: 46 | B56: Others | C56: CHOLAFIN | D56: 275.00 | E56: 275.08 | F56: 272.17 | G56: 269.33 | H56: 266.42 | I56: 277.92 | J56: 280.83 | K56: 283.67 | L56: 278 | M56: 272.25 | N56: 3482500 | O56: -5.30%
A57: 47 | B57: Pharma | C57: CIPLA | D57: 550.20 | E57: 549.48 | F57: 546.02 | G57: 541.83 | H57: 538.37 | I57: 553.67 | J57: 557.13 | K57: 561.32 | L57: 552.95 | M57: 545.3 | N57: 11580000 | O57: 0.88%
A58: 48 | B58: Others | C58: COALINDIA | D58: 256.80 | E58: 256.35 | F58: 254.10 | G58: 251.40 | H58: 249.15 | I58: 259.05 | J58: 261.30 | K58: 264.00 | L58: 258.6 | M58: 253.65 | N58: 28344800 | O58: -0.64%
A59: 49 | B59: FMCG | C59: COLPAL | D59: 1137.15 | E59: 1136.95 | F59: 1132.45 | G59: 1127.75 | H59: 1123.25 | I59: 1141.65 | J59: 1146.15 | K59: 1150.85 | L59: 1141.45 | M59: 1132.25 | N59: 2419900 | O59: -1.31%
A60: 50 | B60: Others | C60: CONCOR | D60: 554.45 | E60: 552.87 | F60: 548.88 | G60: 543.32 | H60: 539.33 | I60: 558.43 | J60: 562.42 | K60: 567.98 | L60: 556.85 | M60: 547.3 | N60: 2125680 | O60: 0.52%
A61: 51 | B61: Capital_Goods | C61: CUMMINSIND | D61: 750.35 | E61: 747.38 | F61: 739.92 | G61: 729.48 | H61: 722.02 | I61: 757.82 | J61: 765.28 | K61: 775.72 | L61: 754.85 | M61: 736.95 | N61: 1964200 | O61: 6.21%
A62: 52 | B62: FMCG | C62: DABUR | D62: 391.85 | E62: 391.83 | F62: 387.47 | G62: 383.08 | H62: 378.72 | I62: 396.22 | J62: 400.58 | K62: 404.97 | L62: 396.2 | M62: 387.45 | N62: 11918750 | O62: 0.79%
A63: 53 | B63: Banking | C63: DCBBANK | D63: 229.30 | E63: 229.03 | F63: 227.72 | G63: 226.13 | H63: 224.82 | I63: 230.62 | J63: 231.93 | K63: 233.52 | L63: 230.35 | M63: 227.45 | N63: 1971000 | O63: -11.16%
A64: 54 | B64: Finance | C64: DHFL | D64: 77.30 | E64: 75.15 | F64: 70.40 | G64: 63.50 | H64: 58.75 | I64: 82.05 | J64: 86.80 | K64: 93.70 | L64: 79.9 | M64: 68.25 | N64: 21176000 | O64: -0.17%
A65: 55 | B65: Media | C65: DISHTV | D65: 27.10 | E65: 27.22 | F65: 26.38 | G65: 25.67 | H65: 24.83 | I65: 27.93 | J65: 28.77 | K65: 29.48 | L65: 28.05 | M65: 26.5 | N65: 92352000 | O65: 2.54%
A66: 56 | B66: Pharma | C66: DIVISLAB | D66: 1576.30 | E66: 1565.18 | F66: 1547.37 | G66: 1518.43 | H66: 1500.62 | I66: 1594.12 | J66: 1611.93 | K66: 1640.87 | L66: 1583 | M66: 1536.25 | N66: 3184800 | O66: -3.75%
A67: 57 | B67: Realty | C67: DLF | D67: 175.60 | E67: 176.42 | F67: 173.18 | G67: 170.77 | H67: 167.53 | I67: 178.83 | J67: 182.07 | K67: 184.48 | L67: 179.65 | M67: 174 | N67: 49962800 | O67: 6.00%
A68: 58 | B68: Pharma | C68: DRREDDY | D68: 2517.20 | E68: 2516.73 | F68: 2498.57 | G68: 2479.93 | H68: 2461.77 | I68: 2535.37 | J68: 2553.53 | K68: 2572.17 | L68: 2534.9 | M68: 2498.1 | N68: 4277250 | O68: 3.21%
A69: 59 | B69: Automobile | C69: EICHERMOT | D69: 19113.10 | E69: 19306.83 | F69: 18779.97 | G69: 18446.83 | H69: 17919.97 | I69: 19639.97 | J69: 20166.83 | K69: 20499.97 | L69: 19833.7 | M69: 18973.7 | N69: 365550 | O69: 0.95%
A70: 60 | B70: Infrastructure | C70: ENGINERSIN | D70: 116.85 | E70: 117.45 | F70: 115.75 | G70: 114.65 | H70: 112.95 | I70: 118.55 | J70: 120.25 | K70: 121.35 | L70: 119.15 | M70: 116.35 | N70: 7490100 | O70: 4.00%
A71: 61 | B71: Finance | C71: EQUITAS | D71: 124.90 | E71: 125.95 | F71: 122.15 | G71: 119.40 | H71: 115.60 | I71: 128.70 | J71: 132.50 | K71: 135.25 | L71: 129.75 | M71: 123.2 | N71: 10040000 | O71: 19.52%
A72: 62 | B72: Automobile | C72: ESCORTS | D72: 552.70 | E72: 555.47 | F72: 546.48 | G72: 540.27 | H72: 531.28 | I72: 561.68 | J72: 570.67 | K72: 576.88 | L72: 564.45 | M72: 549.25 | N72: 6330500 | O72: 0.00%
A73: 63 | B73: Automobile | C73: EXIDEIND | D73: 200.05 | E73: 201.07 | F73: 197.93 | G73: 195.82 | H73: 192.68 | I73: 203.18 | J73: 206.32 | K73: 208.43 | L73: 204.2 | M73: 198.95 | N73: 8262000 | O73: 3.86%
A74: 64 | B74: Banking | C74: FEDERALBNK | D74: 102.90 | E74: 102.73 | F74: 101.87 | G74: 100.83 | H74: 99.97 | I74: 103.77 | J74: 104.63 | K74: 105.67 | L74: 103.6 | M74: 101.7 | N74: 49714000 | O74: -0.96%
A75: 65 | B75: Oil_Gas | C75: GAIL | D75: 307.30 | E75: 308.92 | F75: 304.83 | G75: 302.37 | H75: 298.28 | I75: 311.38 | J75: 315.47 | K75: 317.93 | L75: 313 | M75: 306.45 | N75: 21306663 | O75: 5.40%
A76: 66 | B76: Pharma | C76: GLENMARK | D76: 462.50 | E76: 473.20 | F76: 449.65 | G76: 436.80 | H76: 413.25 | I76: 486.05 | J76: 509.60 | K76: 522.45 | L76: 496.75 | M76: 460.35 | N76: 6850000 | O76: 26.08%
A77: 67 | B77: Infrastructure | C77: GMRINFRA | D77: 15.35 | E77: 15.35 | F77: 15.20 | G77: 15.05 | H77: 14.90 | I77: 15.50 | J77: 15.65 | K77: 15.80 | L77: 15.5 | M77: 15.2 | N77: 190530000 | O77: -2.06%
A78: 68 | B78: Others | C78: GODFRYPHLP | D78: 868.50 | E78: 878.57 | F78: 853.58 | G78: 838.67 | H78: 813.68 | I78: 893.48 | J78: 918.47 | K78: 933.38 | L78: 903.55 | M78: 863.65 | N78: 249900 | O78: -5.80%
A79: 69 | B79: FMCG | C79: GODREJCP | D79: 675.20 | E79: 674.32 | F79: 671.18 | G79: 667.17 | H79: 664.03 | I79: 678.33 | J79: 681.47 | K79: 685.48 | L79: 677.45 | M79: 670.3 | N79: 5267400 | O79: -1.39%
A80: 70 | B80: FMCG | C80: GODREJIND | D80: 477.85 | E80: 477.95 | F80: 471.90 | G80: 465.95 | H80: 459.90 | I80: 483.90 | J80: 489.95 | K80: 495.90 | L80: 484 | M80: 472 | N80: 972000 | O80: -16.71%
A81: 71 | B81: Cement | C81: GRASIM | D81: 888.40 | E81: 893.12 | F81: 875.73 | G81: 863.07 | H81: 845.68 | I81: 905.78 | J81: 923.17 | K81: 935.83 | L81: 910.5 | M81: 880.45 | N81: 12390750 | O81: 2.11%
A82: 72 | B82: Others | C82: GSFC | D82: 92.00 | E82: 92.72 | F82: 91.03 | G82: 90.07 | H82: 88.38 | I82: 93.68 | J82: 95.37 | K82: 96.33 | L82: 94.4 | M82: 91.75 | N82: 6965400 | O82: -7.72%
A83: 73 | B83: Others | C83: HAVELLS | D83: 784.40 | E83: 785.90 | F83: 780.05 | G83: 775.70 | H83: 769.85 | I83: 790.25 | J83: 796.10 | K83: 800.45 | L83: 791.75 | M83: 781.55 | N83: 5608000 | O83: 1.74%
A84: 74 | B84: Technology | C84: HCLTECH | D84: 1079.00 | E84: 1077.78 | F84: 1071.57 | G84: 1064.13 | H84: 1057.92 | I84: 1085.22 | J84: 1091.43 | K84: 1098.87 | L84: 1084 | M84: 1070.35 | N84: 10266200 | O84: 1.88%
A85: 75 | B85: Finance | C85: HDFC | D85: 2150.70 | E85: 2150.25 | F85: 2137.10 | G85: 2123.50 | H85: 2110.35 | I85: 2163.85 | J85: 2177.00 | K85: 2190.60 | L85: 2163.4 | M85: 2136.65 | N85: 27114000 | O85: 0.60%
A86: 76 | B86: Banking | C86: HDFCBANK | D86: 2418.95 | E86: 2418.80 | F86: 2408.75 | G86: 2398.55 | H86: 2388.50 | I86: 2429.00 | J86: 2439.05 | K86: 2449.25 | L86: 2428.85 | M86: 2408.6 | N86: 17527250 | O86: 3.12%
A87: 77 | B87: Automobile | C87: HEROMOTOCO | D87: 2587.95 | E87: 2581.53 | F87: 2550.32 | G87: 2512.68 | H87: 2481.47 | I87: 2619.17 | J87: 2650.38 | K87: 2688.02 | L87: 2612.75 | M87: 2543.9 | N87: 2982000 | O87: 10.67%
A88: 78 | B88: Technology | C88: HEXAWARE | D88: 394.00 | E88: 394.15 | F88: 390.50 | G88: 387.00 | H88: 383.35 | I88: 397.65 | J88: 401.30 | K88: 404.80 | L88: 397.8 | M88: 390.65 | N88: 2332500 | O88: -13.56%
A89: 79 | B89: Metals | C89: HINDALCO | D89: 198.25 | E89: 199.68 | F89: 195.62 | G89: 192.98 | H89: 188.92 | I89: 202.32 | J89: 206.38 | K89: 209.02 | L89: 203.75 | M89: 197.05 | N89: 37502500 | O89: -2.15%
A90: 80 | B90: Oil_Gas | C90: HINDPETRO | D90: 289.10 | E90: 288.38 | F90: 284.27 | G90: 279.43 | H90: 275.32 | I90: 293.22 | J90: 297.33 | K90: 302.17 | L90: 292.5 | M90: 283.55 | N90: 16220400 | O90: 0.56%
A91: 81 | B91: FMCG | C91: HINDUNILVR | D91: 1768.60 | E91: 1770.48 | F91: 1758.42 | G91: 1748.23 | H91: 1736.17 | I91: 1780.67 | J91: 1792.73 | K91: 1802.92 | L91: 1782.55 | M91: 1760.3 | N91: 11436300 | O91: 0.54%
A92: 82 | B92: Metals | C92: HINDZINC | D92: 228.25 | E92: 229.27 | F92: 226.18 | G92: 224.12 | H92: 221.03 | I92: 231.33 | J92: 234.42 | K92: 236.48 | L92: 232.35 | M92: 227.2 | N92: 8694400 | O92: 1.53%
A93: 83 | B93: Finance | C93: IBULHSGFIN | D93: 618.65 | E93: 615.70 | F93: 601.15 | G93: 583.65 | H93: 569.10 | I93: 633.20 | J93: 647.75 | K93: 665.25 | L93: 630.25 | M93: 598.2 | N93: 18724000 | O93: -0.97%
A94: 84 | B94: Banking | C94: ICICIBANK | D94: 430.15 | E94: 430.70 | F94: 427.95 | G94: 425.75 | H94: 423.00 | I94: 432.90 | J94: 435.65 | K94: 437.85 | L94: 433.45 | M94: 428.5 | N94: 97842250 | O94: -1.29%
A95: 85 | B95: Others | C95: ICICIPRULI | D95: 373.55 | E95: 376.70 | F95: 369.30 | G95: 365.05 | H95: 357.65 | I95: 380.95 | J95: 388.35 | K95: 392.60 | L95: 384.1 | M95: 372.45 | N95: 5368500 | O95: 4.50%
A96: 86 | B96: Banking | C96: IDBI | D96: 34.25 | E96: 34.68 | F96: 33.37 | G96: 32.48 | H96: 31.17 | I96: 35.57 | J96: 36.88 | K96: 37.77 | L96: 36 | M96: 33.8 | N96: 25034000 | O96: 0.57%
A97: 87 | B97: Telecom | C97: IDEA | D97: 12.15 | E97: 12.12 | F97: 11.98 | G97: 11.82 | H97: 11.68 | I97: 12.28 | J97: 12.42 | K97: 12.58 | L97: 12.25 | M97: 11.95 | N97: 415727464 | O97: 0.62%
A98: 88 | B98: Finance | C98: IDFC | D98: 35.75 | E98: 35.75 | F98: 35.25 | G98: 34.75 | H98: 34.25 | I98: 36.25 | J98: 36.75 | K98: 37.25 | L98: 36.25 | M98: 35.25 | N98: 47889600 | O98: -4.70%
A99: 89 | B99: Banking | C99: IDFCFIRSTB | D99: 42.30 | E99: 42.32 | F99: 42.03 | G99: 41.77 | H99: 41.48 | I99: 42.58 | J99: 42.87 | K99: 43.13 | L99: 42.6 | M99: 42.05 | N99: 136344000 | O99: -1.00%
A100: 90 | B100: Finance | C100: IFCI | D100: 7.95 | E100: 8.05 | F100: 7.75 | G100: 7.55 | H100: 7.25 | I100: 8.25 | J100: 8.55 | K100: 8.75 | L100: 8.35 | M100: 7.85 | N100: 25970000 | O100: -4.38%
A101: 91 | B101: Oil_Gas | C101: IGL | D101: 311.20 | E101: 315.87 | F101: 304.63 | G101: 298.07 | H101: 286.83 | I101: 322.43 | J101: 333.67 | K101: 340.23 | L101: 327.1 | M101: 309.3 | N101: 4031500 | O101: 42.88%
A102: 92 | B102: Cement | C102: INDIACEM | D102: 95.75 | E102: 95.17 | F102: 94.08 | G102: 92.42 | H102: 91.33 | I102: 96.83 | J102: 97.92 | K102: 99.58 | L102: 96.25 | M102: 93.5 | N102: 10597500 | O102: -9.21%
A103: 93 | B103: Banking | C103: INDIANB | D103: 257.35 | E103: 259.50 | F103: 253.10 | G103: 248.85 | H103: 242.45 | I103: 263.75 | J103: 270.15 | K103: 274.40 | L103: 265.9 | M103: 255.25 | N103: 2206000 | O103: -11.26%
A104: 94 | B104: Others | C104: INDIGO | D104: 1558.90 | E104: 1559.05 | F104: 1542.60 | G104: 1526.30 | H104: 1509.85 | I104: 1575.35 | J104: 1591.80 | K104: 1608.10 | L104: 1575.5 | M104: 1542.75 | N104: 2943000 | O104: -1.88%
A105: 95 | B105: Banking | C105: INDUSINDBK | D105: 1463.70 | E105: 1467.90 | F105: 1445.80 | G105: 1427.90 | H105: 1405.80 | I105: 1485.80 | J105: 1507.90 | K105: 1525.80 | L105: 1490 | M105: 1450 | N105: 10725200 | O105: 7.04%
A106: 96 | B106: Technology | C106: INFIBEAM | D106: 44.45 | E106: 44.42 | F106: 43.28 | G106: 42.12 | H106: 40.98 | I106: 45.58 | J106: 46.72 | K106: 47.88 | L106: 45.55 | M106: 43.25 | N106: 6468000 | O106: -3.06%
A107: 97 | B107: Telecom | C107: INFRATEL | D107: 273.25 | E107: 273.85 | F107: 271.70 | G107: 270.15 | H107: 268.00 | I107: 275.40 | J107: 277.55 | K107: 279.10 | L107: 276 | M107: 272.3 | N107: 7752000 | O107: 6.75%
A108: 98 | B108: Technology | C108: INFY | D108: 746.65 | E108: 747.73 | F108: 742.77 | G108: 738.88 | H108: 733.92 | I108: 751.62 | J108: 756.58 | K108: 760.47 | L108: 752.7 | M108: 743.85 | N108: 57614400 | O108: 2.84%
A109: 99 | B109: Oil_Gas | C109: IOC | D109: 152.45 | E109: 152.57 | F109: 151.03 | G109: 149.62 | H109: 148.08 | I109: 153.98 | J109: 155.52 | K109: 156.93 | L109: 154.1 | M109: 151.15 | N109: 42031500 | O109: 2.15%
A110: 100 | B110: Infrastructure | C110: IRB | D110: 99.85 | E110: 99.60 | F110: 96.95 | G110: 94.05 | H110: 91.40 | I110: 102.50 | J110: 105.15 | K110: 108.05 | L110: 102.25 | M110: 96.7 | N110: 5388800 | O110: -19.16%
A111: 101 | B111: FMCG | C111: ITC | D111: 276.45 | E111: 276.22 | F111: 274.93 | G111: 273.42 | H111: 272.13 | I111: 277.73 | J111: 279.02 | K111: 280.53 | L111: 277.5 | M111: 274.7 | N111: 97022400 | O111: 3.33%
A112: 102 | B112: Others | C112: JETAIRWAYS | D112: 57.10 | E112: 53.87 | F112: 46.33 | G112: 35.57 | H112: 28.03 | I112: 64.63 | J112: 72.17 | K112: 82.93 | L112: 61.4 | M112: 43.1 | N112: 3179000 | O112: -8.02%
A113: 103 | B113: Metals | C113: JINDALSTEL | D113: 140.45 | E113: 142.32 | F113: 137.53 | G113: 134.62 | H113: 129.83 | I113: 145.23 | J113: 150.02 | K113: 152.93 | L113: 147.1 | M113: 139.4 | N113: 30222150 | O113: 9.70%
A114: 104 | B114: Others | C114: JISLJALEQS | D114: 28.30 | E114: 27.12 | F114: 24.93 | G114: 21.57 | H114: 19.38 | I114: 30.48 | J114: 32.67 | K114: 36.03 | L114: 29.3 | M114: 23.75 | N114: 21717000 | O114: -13.64%
A115: 105 | B115: Metals | C115: JSWSTEEL | D115: 258.15 | E115: 261.33 | F115: 253.57 | G115: 248.98 | H115: 241.22 | I115: 265.92 | J115: 273.68 | K115: 278.27 | L115: 269.1 | M115: 256.75 | N115: 53151000 | O115: 2.32%
A116: 106 | B116: Others | C116: JUBLFOOD | D116: 1258.05 | E116: 1255.62 | F116: 1242.53 | G116: 1227.02 | H116: 1213.93 | I116: 1271.13 | J116: 1284.22 | K116: 1299.73 | L116: 1268.7 | M116: 1240.1 | N116: 2783000 | O116: -2.69%
A117: 107 | B117: Others | C117: JUSTDIAL | D117: 733.60 | E117: 732.60 | F117: 726.25 | G117: 718.90 | H117: 712.55 | I117: 739.95 | J117: 746.30 | K117: 753.65 | L117: 738.95 | M117: 725.25 | N117: 2837800 | O117: -0.69%
A118: 108 | B118: Others | C118: KAJARIACER | D118: 574.50 | E118: 570.42 | F118: 564.83 | G118: 555.17 | H118: 549.58 | I118: 580.08 | J118: 585.67 | K118: 595.33 | L118: 576 | M118: 560.75 | N118: 2178800 | O118: -4.06%
A119: 109 | B119: Banking | C119: KOTAKBANK | D119: 1473.30 | E119: 1480.32 | F119: 1459.58 | G119: 1445.87 | H119: 1425.13 | I119: 1494.03 | J119: 1514.77 | K119: 1528.48 | L119: 1501.05 | M119: 1466.6 | N119: 10278400 | O119: -0.73%
A120: 110 | B120: Technology | C120: BSOFT | D120: 91.00 | E120: 91.13 | F120: 89.97 | G120: 88.93 | H120: 87.77 | I120: 92.17 | J120: 93.33 | K120: 94.37 | L120: 92.3 | M120: 90.1 | N120: 2810100 | O120: 3.87%
A121: 111 | B121: Others | C121: KSCL | D121: 458.65 | E121: 458.02 | F121: 450.83 | G121: 443.02 | H121: 435.83 | I121: 465.83 | J121: 473.02 | K121: 480.83 | L121: 465.2 | M121: 450.2 | N121: 522000 | O121: -6.20%
A122: 112 | B122: Banking | C122: KTKBANK | D122: 102.30 | E122: 102.58 | F122: 101.37 | G122: 100.43 | H122: 99.22 | I122: 103.52 | J122: 104.73 | K122: 105.67 | L122: 103.8 | M122: 101.65 | N122: 5945500 | O122: -11.17%
A123: 113 | B123: Finance | C123: L&TFH | D123: 114.10 | E123: 113.97 | F123: 112.68 | G123: 111.27 | H123: 109.98 | I123: 115.38 | J123: 116.67 | K123: 118.08 | L123: 115.25 | M123: 112.55 | N123: 38227500 | O123: -3.64%
A124: 114 | B124: Finance | C124: LICHSGFIN | D124: 545.50 | E124: 543.30 | F124: 538.50 | G124: 531.50 | H124: 526.70 | I124: 550.30 | J124: 555.10 | K124: 562.10 | L124: 548.1 | M124: 536.3 | N124: 7687900 | O124: 4.48%
A125: 115 | B125: Capital_Goods | C125: LT | D125: 1542.65 | E125: 1549.27 | F125: 1531.78 | G125: 1520.92 | H125: 1503.43 | I125: 1560.13 | J125: 1577.62 | K125: 1588.48 | L125: 1566.75 | M125: 1538.4 | N125: 13329750 | O125: 1.11%
A126: 116 | B126: Pharma | C126: LUPIN | D126: 733.95 | E126: 734.83 | F126: 725.07 | G126: 716.18 | H126: 706.42 | I126: 743.72 | J126: 753.48 | K126: 762.37 | L126: 744.6 | M126: 725.95 | N126: 10136700 | O126: 1.47%
A127: 117 | B127: Automobile | C127: M&M | D127: 635.60 | E127: 632.53 | F127: 628.17 | G127: 620.73 | H127: 616.37 | I127: 639.97 | J127: 644.33 | K127: 651.77 | L127: 636.9 | M127: 625.1 | N127: 21408000 | O127: 0.05%
A128: 118 | B128: Finance | C128: M&MFIN | D128: 389.85 | E128: 391.42 | F128: 384.93 | G128: 380.02 | H128: 373.53 | I128: 396.33 | J128: 402.82 | K128: 407.73 | L128: 397.9 | M128: 386.5 | N128: 11232500 | O128: 1.56%
A129: 119 | B129: Others | C129: MANAPPURAM | D129: 131.60 | E129: 130.98 | F129: 129.62 | G129: 127.63 | H129: 126.27 | I129: 132.97 | J129: 134.33 | K129: 136.32 | L129: 132.35 | M129: 129 | N129: 15294000 | O129: 14.25%
A130: 120 | B130: FMCG | C130: MARICO | D130: 369.20 | E130: 370.05 | F130: 367.20 | G130: 365.20 | H130: 362.35 | I130: 372.05 | J130: 374.90 | K130: 376.90 | L130: 372.9 | M130: 368.05 | N130: 7425600 | O130: -0.80%
A131: 121 | B131: Automobile | C131: MARUTI | D131: 6459.05 | E131: 6424.18 | F131: 6349.92 | G131: 6240.78 | H131: 6166.52 | I131: 6533.32 | J131: 6607.58 | K131: 6716.72 | L131: 6498.45 | M131: 6315.05 | N131: 3055950 | O131: 0.22%
A132: 122 | B132: FMCG | C132: MCDOWELL-N | D132: 559.65 | E132: 558.35 | F132: 554.25 | G132: 548.85 | H132: 544.75 | I132: 563.75 | J132: 567.85 | K132: 573.25 | L132: 562.45 | M132: 552.95 | N132: 11366250 | O132: -0.72%
A133: 123 | B133: Others | C133: MCX | D133: 790.35 | E133: 794.93 | F133: 783.82 | G133: 777.28 | H133: 766.17 | I133: 801.47 | J133: 812.58 | K133: 819.12 | L133: 806.05 | M133: 788.4 | N133: 1650600 | O133: 2.25%
A134: 124 | B134: Finance | C134: MFSL | D134: 419.65 | E134: 420.60 | F134: 416.05 | G134: 412.45 | H134: 407.90 | I134: 424.20 | J134: 428.75 | K134: 432.35 | L134: 425.15 | M134: 417 | N134: 1753200 | O134: -0.75%
A135: 125 | B135: Others | C135: MGL | D135: 823.00 | E135: 829.80 | F135: 811.05 | G135: 799.10 | H135: 780.35 | I135: 841.75 | J135: 860.50 | K135: 872.45 | L135: 848.55 | M135: 817.85 | N135: 949200 | O135: 20.03%
A136: 126 | B136: Technology | C136: MINDTREE | D136: 947.90 | E136: 950.10 | F136: 938.80 | G136: 929.70 | H136: 918.40 | I136: 959.20 | J136: 970.50 | K136: 979.60 | L136: 961.4 | M136: 941 | N136: 1671000 | O136: 2.47%
A137: 127 | B137: Automobile | C137: MOTHERSUMI | D137: 121.30 | E137: 122.93 | F137: 118.92 | G137: 116.53 | H137: 112.52 | I137: 125.32 | J137: 129.33 | K137: 131.72 | L137: 126.95 | M137: 120.55 | N137: 26646900 | O137: 3.96%
A138: 128 | B138: Automobile | C138: MRF | D138: 54716.35 | E138: 54787.97 | F138: 54445.28 | G138: 54174.22 | H138: 53831.53 | I138: 55059.03 | J138: 55401.72 | K138: 55672.78 | L138: 55130.65 | M138: 54516.9 | N138: 29960 | O138: -0.86%
A139: 129 | B139: Others | C139: MRPL | D139: 60.90 | E139: 60.58 | F139: 59.77 | G139: 58.63 | H139: 57.82 | I139: 61.72 | J139: 62.53 | K139: 63.67 | L139: 61.4 | M139: 59.45 | N139: 1848000 | O139: -9.59%
A140: 130 | B140: Finance | C140: MUTHOOTFIN | D140: 616.25 | E140: 617.72 | F140: 610.53 | G140: 604.82 | H140: 597.63 | I140: 623.43 | J140: 630.62 | K140: 636.33 | L140: 624.9 | M140: 612 | N140: 3153000 | O140: 5.05%
A141: 131 | B141: Others | C141: NATIONALUM | D141: 48.80 | E141: 48.98 | F141: 48.42 | G141: 48.03 | H141: 47.47 | I141: 49.37 | J141: 49.93 | K141: 50.32 | L141: 49.55 | M141: 48.6 | N141: 42208000 | O141: 0.96%
A142: 132 | B142: Others | C142: NBCC | D142: 61.70 | E142: 60.63 | F142: 58.87 | G142: 56.03 | H142: 54.27 | I142: 63.47 | J142: 65.23 | K142: 68.07 | L142: 62.4 | M142: 57.8 | N142: 28553500 | O142: 6.31%
A143: 133 | B143: Infrastructure | C143: NCC | D143: 100.75 | E143: 100.43 | F143: 99.37 | G143: 97.98 | H143: 96.92 | I143: 101.82 | J143: 102.88 | K143: 104.27 | L143: 101.5 | M143: 99.05 | N143: 36544000 | O143: 3.25%
A144: 134 | B144: Others | C144: NESTLEIND | D144: 11700.80 | E144: 11698.90 | F144: 11626.75 | G144: 11552.70 | H144: 11480.55 | I144: 11772.95 | J144: 11845.10 | K144: 11919.15 | L144: 11771.05 | M144: 11624.85 | N144: 325900 | O144: 1.72%
A145: 135 | B145: Power | C145: NHPC | D145: 25.05 | E145: 25.02 | F145: 24.78 | G145: 24.52 | H145: 24.28 | I145: 25.28 | J145: 25.52 | K145: 25.78 | L145: 25.25 | M145: 24.75 | N145: 7776000 | O145: -7.69%
A146: 136 | B146: Technology | C146: NIITTECH | D146: 1321.25 | E146: 1318.00 | F146: 1310.25 | G146: 1299.25 | H146: 1291.50 | I146: 1329.00 | J146: 1336.75 | K146: 1347.75 | L146: 1325.75 | M146: 1307 | N146: 1440750 | O146: 5.61%
A147: 137 | B147: Metals | C147: NMDC | D147: 110.10 | E147: 110.57 | F147: 109.23 | G147: 108.37 | H147: 107.03 | I147: 111.43 | J147: 112.77 | K147: 113.63 | L147: 111.9 | M147: 109.7 | N147: 26010000 | O147: 6.02%
A148: 138 | B148: Power | C148: NTPC | D148: 135.90 | E148: 135.48 | F148: 134.87 | G148: 133.83 | H148: 133.22 | I148: 136.52 | J148: 137.13 | K148: 138.17 | L148: 136.1 | M148: 134.45 | N148: 57628800 | O148: 6.61%
A149: 139 | B149: Technology | C149: OFSS | D149: 3118.60 | E149: 3113.97 | F149: 3095.68 | G149: 3072.77 | H149: 3054.48 | I149: 3136.88 | J149: 3155.17 | K149: 3178.08 | L149: 3132.25 | M149: 3091.05 | N149: 275850 | O149: 1.10%
A150: 140 | B150: Oil_Gas | C150: OIL | D150: 176.55 | E150: 177.55 | F150: 174.60 | G150: 172.65 | H150: 169.70 | I150: 179.50 | J150: 182.45 | K150: 184.40 | L150: 180.5 | M150: 175.6 | N150: 6478494 | O150: 2.14%
A151: 141 | B151: Oil_Gas | C151: ONGC | D151: 165.40 | E151: 167.40 | F151: 162.65 | G151: 159.90 | H151: 155.15 | I151: 170.15 | J151: 174.90 | K151: 177.65 | L151: 172.15 | M151: 164.65 | N151: 58346250 | O151: 7.82%
A152: 142 | B152: Banking | C152: ORIENTBANK | D152: 91.75 | E152: 92.58 | F152: 90.27 | G152: 88.78 | H152: 86.47 | I152: 94.07 | J152: 96.38 | K152: 97.87 | L152: 94.9 | M152: 91.1 | N152: 6055000 | O152: -11.10%
A153: 143 | B153: Textile | C153: PAGEIND | D153: 20566.70 | E153: 20551.57 | F153: 20415.13 | G153: 20263.57 | H153: 20127.13 | I153: 20703.13 | J153: 20839.57 | K153: 20991.13 | L153: 20688 | M153: 20400 | N153: 176650 | O153: 2.52%
A154: 144 | B154: Others | C154: PCJEWELLER | D154: 48.85 | E154: 50.87 | F154: 45.63 | G154: 42.42 | H154: 37.18 | I154: 54.08 | J154: 59.32 | K154: 62.53 | L154: 56.1 | M154: 47.65 | N154: 9847500 | O154: -4.54%
A155: 145 | B155: Pharma | C155: PEL | D155: 1945.35 | E155: 1949.38 | F155: 1905.97 | G155: 1866.58 | H155: 1823.17 | I155: 1988.77 | J155: 2032.18 | K155: 2071.57 | L155: 1992.8 | M155: 1910 | N155: 3456390 | O155: -5.74%
A156: 146 | B156: Oil_Gas | C156: PETRONET | D156: 241.90 | E156: 241.40 | F156: 240.05 | G156: 238.20 | H156: 236.85 | I156: 243.25 | J156: 244.60 | K156: 246.45 | L156: 242.75 | M156: 239.55 | N156: 11697000 | O156: -0.28%
A157: 147 | B157: Finance | C157: PFC | D157: 131.80 | E157: 131.58 | F157: 130.57 | G157: 129.33 | H157: 128.32 | I157: 132.82 | J157: 133.83 | K157: 135.07 | L157: 132.6 | M157: 130.35 | N157: 35011400 | O157: 3.03%
A158: 148 | B158: FMCG | C158: PIDILITIND | D158: 1228.95 | E158: 1225.53 | F158: 1219.42 | G158: 1209.88 | H158: 1203.77 | I158: 1235.07 | J158: 1241.18 | K158: 1250.72 | L158: 1231.65 | M158: 1216 | N158: 2476500 | O158: -1.18%
A159: 149 | B159: Banking | C159: PNB | D159: 77.05 | E159: 77.02 | F159: 76.33 | G159: 75.62 | H159: 74.93 | I159: 77.73 | J159: 78.42 | K159: 79.13 | L159: 77.7 | M159: 76.3 | N159: 117957000 | O159: 2.51%
A160: 150 | B160: Power | C160: POWERGRID | D160: 199.30 | E160: 199.48 | F160: 197.92 | G160: 196.53 | H160: 194.97 | I160: 200.87 | J160: 202.43 | K160: 203.82 | L160: 201.05 | M160: 198.1 | N160: 30144000 | O160: 0.11%
A161: 151 | B161: Others | C161: PVR | D161: 1602.45 | E161: 1594.25 | F161: 1578.50 | G161: 1554.55 | H161: 1538.80 | I161: 1618.20 | J161: 1633.95 | K161: 1657.90 | L161: 1610 | M161: 1570.3 | N161: 845600 | O161: 5.28%
A162: 152 | B162: Cement | C162: RAMCOCEM | D162: 796.30 | E162: 799.33 | F162: 790.67 | G162: 785.03 | H162: 776.37 | I162: 804.97 | J162: 813.63 | K162: 819.27 | L162: 808 | M162: 793.7 | N162: 941600 | O162: 3.25%
A163: 153 | B163: Others | C163: RAYMOND | D163: 739.55 | E163: 744.47 | F163: 729.23 | G163: 718.92 | H163: 703.68 | I163: 754.78 | J163: 770.02 | K163: 780.33 | L163: 759.7 | M163: 734.15 | N163: 2748000 | O163: 2.91%
A164: 154 | B164: Banking | C164: RBLBANK | D164: 619.80 | E164: 618.15 | F164: 613.40 | G164: 607.00 | H164: 602.25 | I164: 624.55 | J164: 629.30 | K164: 635.70 | L164: 622.9 | M164: 611.75 | N164: 6572400 | O164: -0.40%
A165: 155 | B165: Power | C165: RECLTD | D165: 155.70 | E165: 155.58 | F165: 154.57 | G165: 153.43 | H165: 152.42 | I165: 156.72 | J165: 157.73 | K165: 158.87 | L165: 156.6 | M165: 154.45 | N165: 28362000 | O165: -0.96%
A166: 156 | B166: Finance | C166: RELCAPITAL | D166: 66.85 | E166: 66.55 | F166: 63.00 | G166: 59.15 | H166: 55.60 | I166: 70.40 | J166: 73.95 | K166: 77.80 | L166: 70.1 | M166: 62.7 | N166: 13437000 | O166: -3.63%
A167: 157 | B167: Oil_Gas | C167: RELIANCE | D167: 1265.15 | E167: 1268.20 | F167: 1257.05 | G167: 1248.95 | H167: 1237.80 | I167: 1276.30 | J167: 1287.45 | K167: 1295.55 | L167: 1279.35 | M167: 1260.1 | N167: 46330500 | O167: 2.88%
A168: 158 | B168: Power | C168: RELINFRA | D168: 56.45 | E168: 55.83 | F168: 53.02 | G168: 49.58 | H168: 46.77 | I168: 59.27 | J168: 62.08 | K168: 65.52 | L168: 58.65 | M168: 52.4 | N168: 13060400 | O168: -10.08%
A169: 159 | B169: Others | C169: REPCOHOME | D169: 373.15 | E169: 375.28 | F169: 367.87 | G169: 362.58 | H169: 355.17 | I169: 380.57 | J169: 387.98 | K169: 393.27 | L169: 382.7 | M169: 370 | N169: 236500 | O169: -16.67%
A170: 160 | B170: Power | C170: RPOWER | D170: 4.65 | E170: 4.97 | F170: 4.23 | G170: 3.82 | H170: 3.08 | I170: 5.38 | J170: 6.12 | K170: 6.53 | L170: 5.7 | M170: 4.55 | N170: 51664000 | O170: -0.22%
A171: 161 | B171: Metals | C171: SAIL | D171: 49.20 | E171: 49.55 | F171: 48.25 | G171: 47.30 | H171: 46.00 | I171: 50.50 | J171: 51.80 | K171: 52.75 | L171: 50.85 | M171: 48.6 | N171: 111420000 | O171: 3.73%
A172: 162 | B172: Banking | C172: SBIN | D172: 352.95 | E172: 352.32 | F172: 350.18 | G172: 347.42 | H172: 345.28 | I172: 355.08 | J172: 357.22 | K172: 359.98 | L172: 354.45 | M172: 349.55 | N172: 78582000 | O172: -1.21%
A173: 163 | B173: Cement | C173: SHREECEM | D173: 21091.00 | E173: 21157.08 | F173: 20939.07 | G173: 20787.13 | H173: 20569.12 | I173: 21309.02 | J173: 21527.03 | K173: 21678.97 | L173: 21375.1 | M173: 21005.15 | N173: 124950 | O173: -0.83%
A174: 164 | B174: Capital_Goods | C174: SIEMENS | D174: 1249.60 | E174: 1243.17 | F174: 1232.68 | G174: 1215.77 | H174: 1205.28 | I174: 1260.08 | J174: 1270.57 | K174: 1287.48 | L174: 1253.65 | M174: 1226.25 | N174: 1219900 | O174: 3.64%
A175: 165 | B175: Banking | C175: SOUTHBANK | D175: 13.15 | E175: 13.12 | F175: 13.03 | G175: 12.92 | H175: 12.83 | I175: 13.23 | J175: 13.32 | K175: 13.43 | L175: 13.2 | M175: 13 | N175: 55345470 | O175: -6.18%
A176: 166 | B176: Textile | C176: SRF | D176: 2996.55 | E176: 3005.63 | F176: 2978.92 | G176: 2961.28 | H176: 2934.57 | I176: 3023.27 | J176: 3049.98 | K176: 3067.62 | L176: 3032.35 | M176: 2988 | N176: 939000 | O176: -4.33%
A177: 167 | B177: Finance | C177: SRTRANSFIN | D177: 1112.85 | E177: 1103.57 | F177: 1090.08 | G177: 1067.32 | H177: 1053.83 | I177: 1126.33 | J177: 1139.82 | K177: 1162.58 | L177: 1117.05 | M177: 1080.8 | N177: 5010000 | O177: -3.09%
A178: 168 | B178: Pharma | C178: STAR | D178: 405.85 | E178: 407.10 | F178: 401.40 | G178: 396.95 | H178: 391.25 | I178: 411.55 | J178: 417.25 | K178: 421.70 | L178: 412.8 | M178: 402.65 | N178: 2506500 | O178: -0.61%
A179: 169 | B179: Pharma | C179: SUNPHARMA | D179: 384.40 | E179: 382.83 | F179: 379.82 | G179: 375.23 | H179: 372.22 | I179: 387.42 | J179: 390.43 | K179: 395.02 | L179: 385.85 | M179: 378.25 | N179: 54054000 | O179: 1.16%
A180: 170 | B180: Media | C180: SUNTV | D180: 519.60 | E180: 520.98 | F180: 515.97 | G180: 512.33 | H180: 507.32 | I180: 524.62 | J180: 529.63 | K180: 533.27 | L180: 526 | M180: 517.35 | N180: 6277000 | O180: 1.11%
A181: 171 | B181: Power | C181: SUZLON | D181: 4.95 | E181: 4.97 | F181: 4.78 | G181: 4.62 | H181: 4.43 | I181: 5.13 | J181: 5.32 | K181: 5.48 | L181: 5.15 | M181: 4.8 | N181: 153064000 | O181: -7.27%
A182: 172 | B182: Banking | C182: SYNDIBANK | D182: 36.25 | E182: 36.40 | F182: 35.75 | G182: 35.25 | H182: 34.60 | I182: 36.90 | J182: 37.55 | K182: 38.05 | L182: 37.05 | M182: 35.9 | N182: 15435000 | O182: -6.20%
A183: 173 | B183: Fertilisers | C183: TATACHEM | D183: 613.00 | E183: 611.92 | F183: 608.83 | G183: 604.67 | H183: 601.58 | I183: 616.08 | J183: 619.17 | K183: 623.33 | L183: 615 | M183: 607.75 | N183: 3172800 | O183: 0.77%
A184: 174 | B184: Telecom | C184: TATACOMM | D184: 478.65 | E184: 479.98 | F184: 473.87 | G184: 469.08 | H184: 462.97 | I184: 484.77 | J184: 490.88 | K184: 495.67 | L184: 486.1 | M184: 475.2 | N184: 1093000 | O184: -11.85%
A185: 175 | B185: Technology | C185: TATAELXSI | D185: 853.45 | E185: 857.82 | F185: 844.63 | G185: 835.82 | H185: 822.63 | I185: 866.63 | J185: 879.82 | K185: 888.63 | L185: 871 | M185: 849 | N185: 1778400 | O185: 2.42%
A186: 176 | B186: FMCG | C186: TATAGLOBAL | D186: 260.10 | E186: 260.30 | F186: 257.25 | G186: 254.40 | H186: 251.35 | I186: 263.15 | J186: 266.20 | K186: 269.05 | L186: 263.35 | M186: 257.45 | N186: 11301300 | O186: -1.01%
A187: 177 | B187: Automobile | C187: TATAMOTORS | D187: 159.55 | E187: 158.78 | F187: 157.07 | G187: 154.58 | H187: 152.87 | I187: 161.27 | J187: 162.98 | K187: 165.47 | L187: 160.5 | M187: 156.3 | N187: 68596000 | O187: 0.05%
A188: 178 | B188: Automobile | C188: TATAMTRDVR | D188: 77.60 | E188: 76.97 | F188: 75.93 | G188: 74.27 | H188: 73.23 | I188: 78.63 | J188: 79.67 | K188: 81.33 | L188: 78 | M188: 75.3 | N188: 30028800 | O188: -0.85%
A189: 179 | B189: Power | C189: TATAPOWER | D189: 65.20 | E189: 65.23 | F189: 64.52 | G189: 63.83 | H189: 63.12 | I189: 65.92 | J189: 66.63 | K189: 67.32 | L189: 65.95 | M189: 64.55 | N189: 57798000 | O189: 0.78%
A190: 180 | B190: Metals | C190: TATASTEEL | D190: 486.30 | E190: 489.42 | F190: 478.18 | G190: 470.07 | H190: 458.83 | I190: 497.53 | J190: 508.77 | K190: 516.88 | L190: 500.65 | M190: 481.3 | N190: 32802937 | O190: 2.54%
A191: 181 | B191: Technology | C191: TCS | D191: 2277.10 | E191: 2270.97 | F191: 2260.13 | G191: 2243.17 | H191: 2232.33 | I191: 2287.93 | J191: 2298.77 | K191: 2315.73 | L191: 2281.8 | M191: 2254 | N191: 15122500 | O191: 3.34%
A192: 182 | B192: Technology | C192: TECHM | D192: 729.35 | E192: 731.17 | F192: 725.98 | G192: 722.62 | H192: 717.43 | I192: 734.53 | J192: 739.72 | K192: 743.08 | L192: 736.35 | M192: 727.8 | N192: 12638400 | O192: 1.21%
A193: 183 | B193: FMCG | C193: TITAN | D193: 1301.00 | E193: 1300.48 | F193: 1292.97 | G193: 1284.93 | H193: 1277.42 | I193: 1308.52 | J193: 1316.03 | K193: 1324.07 | L193: 1308 | M193: 1292.45 | N193: 8984250 | O193: -1.92%
A194: 184 | B194: Pharma | C194: TORNTPHARM | D194: 1506.35 | E194: 1504.28 | F194: 1495.07 | G194: 1483.78 | H194: 1474.57 | I194: 1515.57 | J194: 1524.78 | K194: 1536.07 | L194: 1513.5 | M194: 1493 | N194: 643000 | O194: -0.92%
A195: 185 | B195: Power | C195: TORNTPOWER | D195: 242.30 | E195: 243.22 | F195: 240.43 | G195: 238.57 | H195: 235.78 | I195: 245.08 | J195: 247.87 | K195: 249.73 | L195: 246 | M195: 241.35 | N195: 2766000 | O195: -5.05%
A196: 186 | B196: Media | C196: TV18BRDCST | D196: 23.75 | E196: 24.25 | F196: 23.15 | G196: 22.55 | H196: 21.45 | I196: 24.85 | J196: 25.95 | K196: 26.55 | L196: 25.35 | M196: 23.65 | N196: 24674000 | O196: -5.10%
A197: 187 | B197: Automobile | C197: TVSMOTOR | D197: 442.55 | E197: 437.78 | F197: 429.12 | G197: 415.68 | H197: 407.02 | I197: 451.22 | J197: 459.88 | K197: 473.32 | L197: 446.45 | M197: 424.35 | N197: 7821900 | O197: 8.18%
A198: 188 | B198: FMCG | C198: UBL | D198: 1362.65 | E198: 1362.17 | F198: 1350.63 | G198: 1338.62 | H198: 1327.08 | I198: 1374.18 | J198: 1385.72 | K198: 1397.73 | L198: 1373.7 | M198: 1350.15 | N198: 1290800 | O198: -12.48%
A199: 189 | B199: Finance | C199: UJJIVAN | D199: 285.60 | E199: 288.70 | F199: 277.90 | G199: 270.20 | H199: 259.40 | I199: 296.40 | J199: 307.20 | K199: 314.90 | L199: 299.5 | M199: 281 | N199: 7017600 | O199: -2.38%
A200: 190 | B200: Cement | C200: ULTRACEMCO | D200: 4580.45 | E200: 4592.98 | F200: 4537.47 | G200: 4494.48 | H200: 4438.97 | I200: 4635.97 | J200: 4691.48 | K200: 4734.47 | L200: 4648.5 | M200: 4550 | N200: 2287600 | O200: 0.36%
A201: 191 | B201: Banking | C201: UNIONBANK | D201: 75.40 | E201: 75.55 | F201: 74.70 | G201: 74.00 | H201: 73.15 | I201: 76.25 | J201: 77.10 | K201: 77.80 | L201: 76.4 | M201: 74.85 | N201: 38752000 | O201: -0.70%
A202: 192 | B202: Fertilisers | C202: UPL | D202: 935.85 | E202: 923.33 | F202: 907.02 | G202: 878.18 | H202: 861.87 | I202: 952.17 | J202: 968.48 | K202: 997.32 | L202: 939.65 | M202: 894.5 | N202: 11385600 | O202: 1.84%
A203: 193 | B203: Metals | C203: VEDL | D203: 168.80 | E203: 170.12 | F203: 165.83 | G203: 162.87 | H203: 158.58 | I203: 173.08 | J203: 177.37 | K203: 180.33 | L203: 174.4 | M203: 167.15 | N203: 52694400 | O203: 5.08%
A204: 194 | B204: Others | C204: VGUARD | D204: 237.65 | E204: 236.95 | F204: 234.30 | G204: 230.95 | H204: 228.30 | I204: 240.30 | J204: 242.95 | K204: 246.30 | L204: 239.6 | M204: 233.6 | N204: 1437000 | O204: -10.30%
A205: 195 | B205: Capital_Goods | C205: VOLTAS | D205: 631.60 | E205: 629.92 | F205: 626.03 | G205: 620.47 | H205: 616.58 | I205: 635.48 | J205: 639.37 | K205: 644.93 | L205: 633.8 | M205: 624.35 | N205: 4564000 | O205: 0.95%
A206: 196 | B206: Technology | C206: WIPRO | D206: 284.65 | E206: 285.48 | F206: 282.97 | G206: 281.28 | H206: 278.77 | I206: 287.17 | J206: 289.68 | K206: 291.37 | L206: 288 | M206: 283.8 | N206: 37763200 | O206: 0.10%
... 18 more rows

Sheet Cash Intra
M5: Back to Main Page
A6: FOR INTRA DAY TRADING | K6: =Main!B10 -> 2019-06-25
A8: Sr.no | B8: Scrip | C8: CLOSE RATE | D8: Pivot Point | E8: Supports | H8: Resistances
C9: Point | E9: S1 | F9: S2 | G9: S3 | H9: R1 | I9: R2 | J9: R3 | K9: HIGH | L9: LOW | M9: Total Trade Quanity in Lakhs
A10: 1 | B10: Nifty 50 | C10: 11699.65 | D10: 11707.95 | E10: 11661.90 | F10: 11624.15 | G10: 11578.10 | H10: 11745.70 | I10: 11791.75 | J10: 11829.50 | K10: 11754 | L10: 11670.2
A11: 2 | B11: Nifty Bank | C11: 30602.05 | D11: 30637.90 | E11: 30492.15 | F11: 30382.25 | G11: 30236.50 | H11: 30747.80 | I11: 30893.55 | J11: 31003.45 | K11: 30783.65 | L11: 30528
A12: 3 | B12: Nifty CPSE | C12: 2324.25 | D12: 2326.90 | E12: 2314.40 | F12: 2304.55 | G12: 2292.05 | H12: 2336.75 | I12: 2349.25 | J12: 2359.10 | K12: 2339.4 | L12: 2317.05
A13: 4 | B13: Nifty Infra | C13: 3315.25 | D13: 3318.08 | E13: 3303.72 | F13: 3292.18 | G13: 3277.82 | H13: 3329.62 | I13: 3343.98 | J13: 3355.52 | K13: 3332.45 | L13: 3306.55
A14: 5 | B14: Nifty IT | C14: 16187.4 | D14: 16187.13 | E14: 16142.67 | F14: 16097.93 | G14: 16053.47 | H14: 16231.87 | I14: 16276.33 | J14: 16321.07 | K14: 16231.6 | L14: 16142.4
A15: 6 | B15: Nifty PSE | C15: 3580.15 | D15: 3583.73 | E15: 3563.67 | F15: 3547.18 | G15: 3527.12 | H15: 3600.22 | I15: 3620.28 | J15: 3636.77 | K15: 3603.8 | L15: 3567.25
A16: 7 | B16: Nifty Midcap 50 | C16: 4802.95 | D16: 4804.50 | E16: 4784.95 | F16: 4766.95 | G16: 4747.40 | H16: 4822.50 | I16: 4842.05 | J16: 4860.05 | K16: 4824.05 | L16: 4786.5
A17: 8 | B17: ABB | C17: 1560.9 | D17: 1561.30 | E17: 1549.60 | F17: 1538.30 | G17: 1526.60 | H17: 1572.60 | I17: 1584.30 | J17: 1595.60 | K17: 1573 | L17: 1550 | M17: 0.73029
A18: 9 | B18: ACC | C18: 1537.6 | D18: 1535.97 | E18: 1519.08 | F18: 1500.57 | G18: 1483.68 | H18: 1554.48 | I18: 1571.37 | J18: 1589.88 | K18: 1552.85 | L18: 1517.45 | M18: 5.36701
A19: 10 | B19: AUBANK | C19: 692.7 | D19: 697.53 | E19: 681.17 | F19: 669.63 | G19: 653.27 | H19: 709.07 | I19: 725.43 | J19: 736.97 | K19: 713.9 | L19: 686 | M19: 2.39944
A20: 11 | B20: ADANIPORTS | C20: 406 | D20: 404.40 | E20: 401.40 | F20: 396.80 | G20: 393.80 | H20: 409.00 | I20: 412.00 | J20: 416.60 | K20: 407.4 | L20: 399.8 | M20: 25.8274
A21: 12 | B21: ADANIPOWER | C21: 50.15 | D21: 49.27 | E21: 48.03 | F21: 45.92 | G21: 44.68 | H21: 51.38 | I21: 52.62 | J21: 54.73 | K21: 50.5 | L21: 47.15 | M21: 153.02455
A22: 13 | B22: ABCAPITAL | C22: 92.15 | D22: 92.65 | E22: 91.30 | F22: 90.45 | G22: 89.10 | H22: 93.50 | I22: 94.85 | J22: 95.70 | K22: 94 | L22: 91.8 | M22: 6.93298
A23: 14 | B23: ABFRL | C23: 207.7 | D23: 208.43 | E23: 205.27 | F23: 202.83 | G23: 199.67 | H23: 210.87 | I23: 214.03 | J23: 216.47 | K23: 211.6 | L23: 206 | M23: 1.65305
A24: 15 | B24: AJANTPHARM | C24: 956.6 | D24: 950.90 | E24: 938.70 | F24: 920.80 | G24: 908.60 | H24: 968.80 | I24: 981.00 | J24: 998.90 | K24: 963.1 | L24: 933 | M24: 2.5893
A25: 16 | B25: ALKEM | C25: 1715.75 | D25: 1733.58 | E25: 1682.27 | F25: 1648.78 | G25: 1597.47 | H25: 1767.07 | I25: 1818.38 | J25: 1851.87 | K25: 1784.9 | L25: 1700.1 | M25: 0.38423
A26: 17 | B26: AMARAJABAT | C26: 601.6 | D26: 602.07 | E26: 594.53 | F26: 587.47 | G26: 579.93 | H26: 609.13 | I26: 616.67 | J26: 623.73 | K26: 609.6 | L26: 595 | M26: 3.86759
A27: 18 | B27: AMBUJACEM | C27: 215 | D27: 214.80 | E27: 212.70 | F27: 210.40 | G27: 208.30 | H27: 217.10 | I27: 219.20 | J27: 221.50 | K27: 216.9 | L27: 212.5 | M27: 26.39044
A28: 19 | B28: APOLLOHOSP | C28: 1344.65 | D28: 1343.93 | E28: 1330.77 | F28: 1316.88 | G28: 1303.72 | H28: 1357.82 | I28: 1370.98 | J28: 1384.87 | K28: 1357.1 | L28: 1330.05 | M28: 4.20849
A29: 20 | B29: APOLLOTYRE | C29: 199.45 | D29: 198.55 | E29: 196.20 | F29: 192.95 | G29: 190.60 | H29: 201.80 | I29: 204.15 | J29: 207.40 | K29: 200.9 | L29: 195.3 | M29: 18.29459
A30: 21 | B30: ASHOKLEY | C30: 85.8 | D30: 86.07 | E30: 84.93 | F30: 84.07 | G30: 82.93 | H30: 86.93 | I30: 88.07 | J30: 88.93 | K30: 87.2 | L30: 85.2 | M30: 116.25336
A31: 22 | B31: ASIANPAINT | C31: 1376.15 | D31: 1380.80 | E31: 1363.60 | F31: 1351.05 | G31: 1333.85 | H31: 1393.35 | I31: 1410.55 | J31: 1423.10 | K31: 1398 | L31: 1368.25 | M31: 7.57055
A32: 23 | B32: AUROPHARMA | C32: 586.3 | D32: 594.43 | E32: 574.17 | F32: 562.03 | G32: 541.77 | H32: 606.57 | I32: 626.83 | J32: 638.97 | K32: 614.7 | L32: 582.3 | M32: 44.12032
A33: 24 | B33: DMART | C33: 1329.2 | D33: 1328.07 | E33: 1318.13 | F33: 1307.07 | G33: 1297.13 | H33: 1339.13 | I33: 1349.07 | J33: 1360.13 | K33: 1338 | L33: 1317 | M33: 1.18535
A34: 25 | B34: AXISBANK | C34: 762.85 | D34: 766.37 | E34: 757.48 | F34: 752.12 | G34: 743.23 | H34: 771.73 | I34: 780.62 | J34: 785.98 | K34: 775.25 | L34: 761 | M34: 48.66859
A35: 26 | B35: BAJAJ-AUTO | C35: 2816.9 | D35: 2831.73 | E35: 2786.37 | F35: 2755.83 | G35: 2710.47 | H35: 2862.27 | I35: 2907.63 | J35: 2938.17 | K35: 2877.1 | L35: 2801.2 | M35: 4.34882
A36: 27 | B36: BAJFINANCE | C36: 3545.35 | D36: 3552.77 | E36: 3525.63 | F36: 3505.92 | G36: 3478.78 | H36: 3572.48 | I36: 3599.62 | J36: 3619.33 | K36: 3579.9 | L36: 3533.05 | M36: 5.43703
A37: 28 | B37: BAJAJFINSV | C37: 8354.65 | D37: 8374.88 | E37: 8317.77 | F37: 8280.88 | G37: 8223.77 | H37: 8411.77 | I37: 8468.88 | J37: 8505.77 | K37: 8432 | L37: 8338 | M37: 1.07927
A38: 29 | B38: BAJAJHLDNG | C38: 3603.95 | D38: 3611.65 | E38: 3564.30 | F38: 3524.65 | G38: 3477.30 | H38: 3651.30 | I38: 3698.65 | J38: 3738.30 | K38: 3659 | L38: 3572 | M38: 0.18104
A39: 30 | B39: BALKRISIND | C39: 741.3 | D39: 741.48 | E39: 732.52 | F39: 723.73 | G39: 714.77 | H39: 750.27 | I39: 759.23 | J39: 768.02 | K39: 750.45 | L39: 732.7 | M39: 3.95077
A40: 31 | B40: BANDHANBNK | C40: 533.9 | D40: 537.63 | E40: 527.27 | F40: 520.63 | G40: 510.27 | H40: 544.27 | I40: 554.63 | J40: 561.27 | K40: 548 | L40: 531 | M40: 3.39147
A41: 32 | B41: BANKBARODA | C41: 118.25 | D41: 118.53 | E41: 117.12 | F41: 115.98 | G41: 114.57 | H41: 119.67 | I41: 121.08 | J41: 122.22 | K41: 119.95 | L41: 117.4 | M41: 169.57023
A42: 33 | B42: BANKINDIA | C42: 86.35 | D42: 86.73 | E42: 85.47 | F42: 84.58 | G42: 83.32 | H42: 87.62 | I42: 88.88 | J42: 89.77 | K42: 88 | L42: 85.85 | M42: 42.48911
A43: 34 | B43: BATAINDIA | C43: 1405.35 | D43: 1408.00 | E43: 1385.35 | F43: 1365.35 | G43: 1342.70 | H43: 1428.00 | I43: 1450.65 | J43: 1470.65 | K43: 1430.65 | L43: 1388 | M43: 3.41976
A44: 35 | B44: BERGEPAINT | C44: 313.9 | D44: 315.57 | E44: 311.48 | F44: 309.07 | G44: 304.98 | H44: 317.98 | I44: 322.07 | J44: 324.48 | K44: 319.65 | L44: 313.15 | M44: 2.41692
A45: 36 | B45: BEL | C45: 114.75 | D45: 113.82 | E45: 112.43 | F45: 110.12 | G45: 108.73 | H45: 116.13 | I45: 117.52 | J45: 119.83 | K45: 115.2 | L45: 111.5 | M45: 140.50589
A46: 37 | B46: BHARATFORG | C46: 436.4 | D46: 436.77 | E46: 432.53 | F46: 428.67 | G46: 424.43 | H46: 440.63 | I46: 444.87 | J46: 448.73 | K46: 441 | L46: 432.9 | M46: 5.64527
A47: 38 | B47: BHEL | C47: 73.7 | D47: 73.23 | E47: 72.47 | F47: 71.23 | G47: 70.47 | H47: 74.47 | I47: 75.23 | J47: 76.47 | K47: 74 | L47: 72 | M47: 183.72701
A48: 39 | B48: BPCL | C48: 380.85 | D48: 378.87 | E48: 375.08 | F48: 369.32 | G48: 365.53 | H48: 384.63 | I48: 388.42 | J48: 394.18 | K48: 382.65 | L48: 373.1 | M48: 32.71602
A49: 40 | B49: BHARTIARTL | C49: 345.1 | D49: 345.72 | E49: 342.88 | F49: 340.67 | G49: 337.83 | H49: 347.93 | I49: 350.77 | J49: 352.98 | K49: 348.55 | L49: 343.5 | M49: 32.49667
A50: 41 | B50: INFRATEL | C50: 272.8 | D50: 273.42 | E50: 270.88 | F50: 268.97 | G50: 266.43 | H50: 275.33 | I50: 277.87 | J50: 279.78 | K50: 275.95 | L50: 271.5 | M50: 5.81858
A51: 42 | B51: BIOCON | C51: 249.5 | D51: 248.87 | E51: 246.93 | F51: 244.37 | G51: 242.43 | H51: 251.43 | I51: 253.37 | J51: 255.93 | K51: 250.8 | L51: 246.3 | M51: 18.12625
A52: 43 | B52: BBTC | C52: 960.9 | D52: 968.97 | E52: 948.93 | F52: 936.97 | G52: 916.93 | H52: 980.93 | I52: 1000.97 | J52: 1012.93 | K52: 989 | L52: 957 | M52: 0.40791
A53: 44 | B53: BOSCHLTD | C53: 16401.4 | D53: 16447.00 | E53: 16291.40 | F53: 16181.40 | G53: 16025.80 | H53: 16557.00 | I53: 16712.60 | J53: 16822.60 | K53: 16602.6 | L53: 16337 | M53: 0.05669
A54: 45 | B54: BRITANNIA | C54: 2780.5 | D54: 2805.52 | E54: 2746.03 | F54: 2711.57 | G54: 2652.08 | H54: 2839.98 | I54: 2899.47 | J54: 2933.93 | K54: 2865 | L54: 2771.05 | M54: 3.69267
A55: 46 | B55: CADILAHC | C55: 229.05 | D55: 230.12 | E55: 223.48 | F55: 217.92 | G55: 211.28 | H55: 235.68 | I55: 242.32 | J55: 247.88 | K55: 236.75 | L55: 224.55 | M55: 20.63844
A56: 47 | B56: CANBK | C56: 273.1 | D56: 272.18 | E56: 270.42 | F56: 267.73 | G56: 265.97 | H56: 274.87 | I56: 276.63 | J56: 279.32 | K56: 273.95 | L56: 269.5 | M56: 36.10147
A57: 48 | B57: CASTROLIND | C57: 137.05 | D57: 138.20 | E57: 135.40 | F57: 133.75 | G57: 130.95 | H57: 139.85 | I57: 142.65 | J57: 144.30 | K57: 141 | L57: 136.55 | M57: 7.7342
A58: 49 | B58: CHOLAFIN | C58: 274.7 | D58: 275.25 | E58: 271.00 | F58: 267.30 | G58: 263.05 | H58: 278.95 | I58: 283.20 | J58: 286.90 | K58: 279.5 | L58: 271.55 | M58: 4.42832
A59: 50 | B59: CIPLA | C59: 549.9 | D59: 549.15 | E59: 545.85 | F59: 541.80 | G59: 538.50 | H59: 553.20 | I59: 556.50 | J59: 560.55 | K59: 552.45 | L59: 545.1 | M59: 9.81017
A60: 51 | B60: COALINDIA | C60: 256.75 | D60: 256.12 | E60: 253.98 | F60: 251.22 | G60: 249.08 | H60: 258.88 | I60: 261.02 | J60: 263.78 | K60: 258.25 | L60: 253.35 | M60: 26.33348
A61: 52 | B61: COLPAL | C61: 1135.45 | D61: 1135.58 | E61: 1130.82 | F61: 1126.18 | G61: 1121.42 | H61: 1140.22 | I61: 1144.98 | J61: 1149.62 | K61: 1140.35 | L61: 1130.95 | M61: 1.35974
A62: 53 | B62: CONCOR | C62: 553.35 | D62: 552.57 | E62: 547.78 | F62: 542.22 | G62: 537.43 | H62: 558.13 | I62: 562.92 | J62: 568.48 | K62: 557.35 | L62: 547 | M62: 8.72206
A63: 54 | B63: COROMANDEL | C63: 405.65 | D63: 406.15 | E63: 402.00 | F63: 398.35 | G63: 394.20 | H63: 409.80 | I63: 413.95 | J63: 417.60 | K63: 410.3 | L63: 402.5 | M63: 0.36659
A64: 55 | B64: CROMPTON | C64: 232.3 | D64: 234.70 | E64: 227.80 | F64: 223.30 | G64: 216.40 | H64: 239.20 | I64: 246.10 | J64: 250.60 | K64: 241.6 | L64: 230.2 | M64: 4.75672
A65: 56 | B65: CUMMINSIND | C65: 754.95 | D65: 750.97 | E65: 741.98 | F65: 729.02 | G65: 720.03 | H65: 763.93 | I65: 772.92 | J65: 785.88 | K65: 759.95 | L65: 738 | M65: 2.65761
A66: 57 | B66: DLF | C66: 175.55 | D66: 176.30 | E66: 173.20 | F66: 170.85 | G66: 167.75 | H66: 178.65 | I66: 181.75 | J66: 184.10 | K66: 179.4 | L66: 173.95 | M66: 72.31257
A67: 58 | B67: DABUR | C67: 392.35 | D67: 392.27 | E67: 388.13 | F67: 383.92 | G67: 379.78 | H67: 396.48 | I67: 400.62 | J67: 404.83 | K67: 396.4 | L67: 388.05 | M67: 12.84017
A68: 59 | B68: DHFL | C68: 78.7 | D68: 77.20 | E68: 73.50 | F68: 68.30 | G68: 64.60 | H68: 82.40 | I68: 86.10 | J68: 91.30 | K68: 80.9 | L68: 72 | M68: 408.69645
A69: 60 | B69: DBL | C69: 399.3 | D69: 400.12 | E69: 395.23 | F69: 391.17 | G69: 386.28 | H69: 404.18 | I69: 409.07 | J69: 413.13 | K69: 405 | L69: 396.05 | M69: 1.6856
A70: 61 | B70: DISHTV | C70: 26.95 | D70: 27.15 | E70: 26.30 | F70: 25.65 | G70: 24.80 | H70: 27.80 | I70: 28.65 | J70: 29.30 | K70: 28 | L70: 26.5 | M70: 186.87686
A71: 62 | B71: DIVISLAB | C71: 1576.3 | D71: 1565.57 | E71: 1546.78 | F71: 1517.27 | G71: 1498.48 | H71: 1595.08 | I71: 1613.87 | J71: 1643.38 | K71: 1584.35 | L71: 1536.05 | M71: 5.12756
A72: 63 | B72: DRREDDY | C72: 2513.4 | D72: 2516.68 | E72: 2501.37 | F72: 2489.33 | G72: 2474.02 | H72: 2528.72 | I72: 2544.03 | J72: 2556.07 | K72: 2532 | L72: 2504.65 | M72: 4.52261
A73: 64 | B73: EDELWEISS | C73: 171.3 | D73: 173.03 | E73: 168.32 | F73: 165.33 | G73: 160.62 | H73: 176.02 | I73: 180.73 | J73: 183.72 | K73: 177.75 | L73: 170.05 | M73: 11.67583
A74: 65 | B74: EICHERMOT | C74: 19098.2 | D74: 19280.42 | E74: 18729.88 | F74: 18361.57 | G74: 17811.03 | H74: 19648.73 | I74: 20199.27 | J74: 20567.58 | K74: 19830.95 | L74: 18912.1 | M74: 1.24036
A75: 66 | B75: ENDURANCE | C75: 1129.45 | D75: 1133.52 | E75: 1113.93 | F75: 1098.42 | G75: 1078.83 | H75: 1149.03 | I75: 1168.62 | J75: 1184.13 | K75: 1153.1 | L75: 1118 | M75: 0.32213
A76: 67 | B76: ENGINERSIN | C76: 116.6 | D76: 117.23 | E76: 115.47 | F76: 114.33 | G76: 112.57 | H76: 118.37 | I76: 120.13 | J76: 121.27 | K76: 119 | L76: 116.1 | M76: 11.80224
A77: 68 | B77: ESCORTS | C77: 551.65 | D77: 555.00 | E77: 544.75 | F77: 537.85 | G77: 527.60 | H77: 561.90 | I77: 572.15 | J77: 579.05 | K77: 565.25 | L77: 548.1 | M77: 20.76143
A78: 69 | B78: EXIDEIND | C78: 199.65 | D78: 200.85 | E78: 197.45 | F78: 195.25 | G78: 191.85 | H78: 203.05 | I78: 206.45 | J78: 208.65 | K78: 204.25 | L78: 198.65 | M78: 10.85
A79: 70 | B79: FEDERALBNK | C79: 102.9 | D79: 102.72 | E79: 101.83 | F79: 100.77 | G79: 99.88 | H79: 103.78 | I79: 104.67 | J79: 105.73 | K79: 103.6 | L79: 101.65 | M79: 53.4727
A80: 71 | B80: FCONSUMER | C80: 39.4 | D80: 39.27 | E80: 38.73 | F80: 38.07 | G80: 37.53 | H80: 39.93 | I80: 40.47 | J80: 41.13 | K80: 39.8 | L80: 38.6 | M80: 6.6969
A81: 72 | B81: FRETAIL | C81: 469.1 | D81: 471.22 | E81: 463.88 | F81: 458.67 | G81: 451.33 | H81: 476.43 | I81: 483.77 | J81: 488.98 | K81: 478.55 | L81: 466 | M81: 1.80023
A82: 73 | B82: GAIL | C82: 306.7 | D82: 308.32 | E82: 304.13 | F82: 301.57 | G82: 297.38 | H82: 310.88 | I82: 315.07 | J82: 317.63 | K82: 312.5 | L82: 305.75 | M82: 33.2924
A83: 74 | B83: GMRINFRA | C83: 15.35 | D83: 15.40 | E83: 15.20 | F83: 15.05 | G83: 14.85 | H83: 15.55 | I83: 15.75 | J83: 15.90 | K83: 15.6 | L83: 15.25 | M83: 55.55927
A84: 75 | B84: GICRE | C84: 205.8 | D84: 206.45 | E84: 204.80 | F84: 203.80 | G84: 202.15 | H84: 207.45 | I84: 209.10 | J84: 210.10 | K84: 208.1 | L84: 205.45 | M84: 0.60195
A85: 76 | B85: GSKCONS | C85: 7535.35 | D85: 7547.23 | E85: 7489.52 | F85: 7443.68 | G85: 7385.97 | H85: 7593.07 | I85: 7650.78 | J85: 7696.62 | K85: 7604.95 | L85: 7501.4 | M85: 0.16141
A86: 77 | B86: GLENMARK | C86: 461 | D86: 471.67 | E86: 448.33 | F86: 435.67 | G86: 412.33 | H86: 484.33 | I86: 507.67 | J86: 520.33 | K86: 495 | L86: 459 | M86: 80.38743
A87: 78 | B87: GODREJAGRO | C87: 505.15 | D87: 505.40 | E87: 500.75 | F87: 496.35 | G87: 491.70 | H87: 509.80 | I87: 514.45 | J87: 518.85 | K87: 510.05 | L87: 501 | M87: 0.3208
A88: 79 | B88: GODREJCP | C88: 674.2 | D88: 673.07 | E88: 669.13 | F88: 664.07 | G88: 660.13 | H88: 678.13 | I88: 682.07 | J88: 687.13 | K88: 677 | L88: 668 | M88: 3.51635
A89: 80 | B89: GODREJIND | C89: 477.75 | D89: 477.67 | E89: 470.33 | F89: 462.92 | G89: 455.58 | H89: 485.08 | I89: 492.42 | J89: 499.83 | K89: 485 | L89: 470.25 | M89: 7.32376
A90: 81 | B90: GRAPHITE | C90: 338.55 | D90: 340.13 | E90: 335.37 | F90: 332.18 | G90: 327.42 | H90: 343.32 | I90: 348.08 | J90: 351.27 | K90: 344.9 | L90: 336.95 | M90: 12.05548
A91: 82 | B91: GRASIM | C91: 886.65 | D91: 891.98 | E91: 874.67 | F91: 862.68 | G91: 845.37 | H91: 903.97 | I91: 921.28 | J91: 933.27 | K91: 909.3 | L91: 880 | M91: 10.69347
A92: 83 | B92: GRUH | C92: 278 | D92: 280.03 | E92: 274.77 | F92: 271.53 | G92: 266.27 | H92: 283.27 | I92: 288.53 | J92: 291.77 | K92: 285.3 | L92: 276.8 | M92: 5.62407
A93: 84 | B93: GSPL | C93: 184 | D93: 185.30 | E93: 181.20 | F93: 178.40 | G93: 174.30 | H93: 188.10 | I93: 192.20 | J93: 195.00 | K93: 189.4 | L93: 182.5 | M93: 0.85952
A94: 85 | B94: HEG | C94: 1368.4 | D94: 1369.55 | E94: 1340.10 | F94: 1311.80 | G94: 1282.35 | H94: 1397.85 | I94: 1427.30 | J94: 1455.60 | K94: 1399 | L94: 1341.25 | M94: 2.19467
A95: 86 | B95: HCLTECH | C95: 1077.9 | D95: 1076.68 | E95: 1069.32 | F95: 1060.73 | G95: 1053.37 | H95: 1085.27 | I95: 1092.63 | J95: 1101.22 | K95: 1084.05 | L95: 1068.1 | M95: 6.75052
A96: 87 | B96: HDFCAMC | C96: 1933.85 | D96: 1916.28 | E96: 1887.57 | F96: 1841.28 | G96: 1812.57 | H96: 1962.57 | I96: 1991.28 | J96: 2037.57 | K96: 1945 | L96: 1870 | M96: 2.75168
A97: 88 | B97: HDFCBANK | C97: 2417.95 | D97: 2419.52 | E97: 2408.43 | F97: 2398.92 | G97: 2387.83 | H97: 2429.03 | I97: 2440.12 | J97: 2449.63 | K97: 2430.6 | L97: 2410 | M97: 17.2875
A98: 89 | B98: HDFCLIFE | C98: 440.1 | D98: 439.32 | E98: 436.38 | F98: 432.67 | G98: 429.73 | H98: 443.03 | I98: 445.97 | J98: 449.68 | K98: 442.25 | L98: 435.6 | M98: 4.7902
A99: 90 | B99: HAVELLS | C99: 785.4 | D99: 785.92 | E99: 780.48 | F99: 775.57 | G99: 770.13 | H99: 790.83 | I99: 796.27 | J99: 801.18 | K99: 791.35 | L99: 781 | M99: 7.70379
A100: 91 | B100: HEROMOTOCO | C100: 2586.25 | D100: 2577.65 | E100: 2549.30 | F100: 2512.35 | G100: 2484.00 | H100: 2614.60 | I100: 2642.95 | J100: 2679.90 | K100: 2606 | L100: 2540.7 | M100: 7.25058
A101: 92 | B101: HEXAWARE | C101: 394.2 | D101: 398.63 | E101: 387.57 | F101: 380.93 | G101: 369.87 | H101: 405.27 | I101: 416.33 | J101: 422.97 | K101: 409.7 | L101: 392 | M101: 23.70427
A102: 93 | B102: HINDALCO | C102: 198.2 | D102: 199.32 | E102: 195.38 | F102: 192.57 | G102: 188.63 | H102: 202.13 | I102: 206.07 | J102: 208.88 | K102: 203.25 | L102: 196.5 | M102: 104.64941
A103: 94 | B103: HINDPETRO | C103: 288.6 | D103: 287.95 | E103: 284.00 | F103: 279.40 | G103: 275.45 | H103: 292.55 | I103: 296.50 | J103: 301.10 | K103: 291.9 | L103: 283.35 | M103: 35.93539
A104: 95 | B104: HINDUNILVR | C104: 1764.45 | D104: 1766.25 | E104: 1754.90 | F104: 1745.35 | G104: 1734.00 | H104: 1775.80 | I104: 1787.15 | J104: 1796.70 | K104: 1777.6 | L104: 1756.7 | M104: 7.62144
A105: 96 | B105: HINDZINC | C105: 227.95 | D105: 228.80 | E105: 225.75 | F105: 223.55 | G105: 220.50 | H105: 231.00 | I105: 234.05 | J105: 236.25 | K105: 231.85 | L105: 226.6 | M105: 4.41784
A106: 97 | B106: HUDCO | C106: 38.8 | D106: 39.03 | E106: 38.37 | F106: 37.93 | G106: 37.27 | H106: 39.47 | I106: 40.13 | J106: 40.57 | K106: 39.7 | L106: 38.6 | M106: 5.0387
A107: 98 | B107: HDFC | C107: 2148.9 | D107: 2147.13 | E107: 2135.27 | F107: 2121.63 | G107: 2109.77 | H107: 2160.77 | I107: 2172.63 | J107: 2186.27 | K107: 2159 | L107: 2133.5 | M107: 20.38683
A108: 99 | B108: ICICIBANK | C108: 429.45 | D108: 430.48 | E108: 427.17 | F108: 424.88 | G108: 421.57 | H108: 432.77 | I108: 436.08 | J108: 438.37 | K108: 433.8 | L108: 428.2 | M108: 85.45999
A109: 100 | B109: ICICIGI | C109: 1175.65 | D109: 1167.22 | E109: 1150.43 | F109: 1125.22 | G109: 1108.43 | H109: 1192.43 | I109: 1209.22 | J109: 1234.43 | K109: 1184 | L109: 1142 | M109: 1.69951
A110: 101 | B110: ICICIPRULI | C110: 375.55 | D110: 378.48 | E110: 371.07 | F110: 366.58 | G110: 359.17 | H110: 382.97 | I110: 390.38 | J110: 394.87 | K110: 385.9 | L110: 374 | M110: 7.78337
A111: 102 | B111: IDBI | C111: 34.4 | D111: 34.63 | E111: 33.87 | F111: 33.33 | G111: 32.57 | H111: 35.17 | I111: 35.93 | J111: 36.47 | K111: 35.4 | L111: 34.1 | M111: 35.23077
A112: 103 | B112: IDFCFIRSTB | C112: 42.4 | D112: 42.37 | E112: 42.08 | F112: 41.77 | G112: 41.48 | H112: 42.68 | I112: 42.97 | J112: 43.28 | K112: 42.65 | L112: 42.05 | M112: 47.99647
A113: 104 | B113: ITC | C113: 276.25 | D113: 276.00 | E113: 274.50 | F113: 272.75 | G113: 271.25 | H113: 277.75 | I113: 279.25 | J113: 281.00 | K113: 277.5 | L113: 274.25 | M113: 89.35066
A114: 105 | B114: IBULHSGFIN | C114: 619.1 | D114: 615.70 | E114: 601.40 | F114: 583.70 | G114: 569.40 | H114: 633.40 | I114: 647.70 | J114: 665.40 | K114: 630 | L114: 598 | M114: 186.51952
A115: 106 | B115: IBVENTURES | C115: 269.05 | D115: 270.35 | E115: 260.90 | F115: 252.75 | G115: 243.30 | H115: 278.50 | I115: 287.95 | J115: 296.10 | K115: 279.8 | L115: 262.2 | M115: 13.07326
A116: 107 | B116: INDIANB | C116: 257.15 | D116: 259.25 | E116: 253.25 | F116: 249.35 | G116: 243.35 | H116: 263.15 | I116: 269.15 | J116: 273.05 | K116: 265.25 | L116: 255.35 | M116: 12.68623
A117: 108 | B117: INDHOTEL | C117: 154 | D117: 152.62 | E117: 150.23 | F117: 146.47 | G117: 144.08 | H117: 156.38 | I117: 158.77 | J117: 162.53 | K117: 155 | L117: 148.85 | M117: 15.13981
A118: 109 | B118: IOC | C118: 152.05 | D118: 152.28 | E118: 150.57 | F118: 149.08 | G118: 147.37 | H118: 153.77 | I118: 155.48 | J118: 156.97 | K118: 154 | L118: 150.8 | M118: 55.88771
A119: 110 | B119: IGL | C119: 310.3 | D119: 314.92 | E119: 303.78 | F119: 297.27 | G119: 286.13 | H119: 321.43 | I119: 332.57 | J119: 339.08 | K119: 326.05 | L119: 308.4 | M119: 34.8294
A120: 111 | B120: INDUSINDBK | C120: 1461.55 | D120: 1465.20 | E120: 1445.40 | F120: 1429.25 | G120: 1409.45 | H120: 1481.35 | I120: 1501.15 | J120: 1517.30 | K120: 1485 | L120: 1449.05 | M120: 41.02227
A121: 112 | B121: NAUKRI | C121: 2174.7 | D121: 2166.67 | E121: 2141.33 | F121: 2107.97 | G121: 2082.63 | H121: 2200.03 | I121: 2225.37 | J121: 2258.73 | K121: 2192 | L121: 2133.3 | M121: 0.75991
A122: 113 | B122: INFY | C122: 745.5 | D122: 746.68 | E122: 741.47 | F122: 737.43 | G122: 732.22 | H122: 750.72 | I122: 755.93 | J122: 759.97 | K122: 751.9 | L122: 742.65 | M122: 47.58178
A123: 114 | B123: INDIGO | C123: 1555.05 | D123: 1554.50 | E123: 1536.75 | F123: 1518.45 | G123: 1500.70 | H123: 1572.80 | I123: 1590.55 | J123: 1608.85 | K123: 1572.25 | L123: 1536.2 | M123: 8.56218
A124: 115 | B124: JSWENERGY | C124: 67.05 | D124: 66.85 | E124: 66.30 | F124: 65.55 | G124: 65.00 | H124: 67.60 | I124: 68.15 | J124: 68.90 | K124: 67.4 | L124: 66.1 | M124: 3.52548
A125: 116 | B125: JSWSTEEL | C125: 257.8 | D125: 261.13 | E125: 253.77 | F125: 249.73 | G125: 242.37 | H125: 265.17 | I125: 272.53 | J125: 276.57 | K125: 268.5 | L125: 257.1 | M125: 58.07872
A126: 117 | B126: JINDALSTEL | C126: 140.2 | D126: 142.28 | E126: 137.17 | F126: 134.13 | G126: 129.02 | H126: 145.32 | I126: 150.43 | J126: 153.47 | K126: 147.4 | L126: 139.25 | M126: 143.46939
A127: 118 | B127: JUBLFOOD | C127: 1261.3 | D127: 1259.43 | E127: 1243.87 | F127: 1226.43 | G127: 1210.87 | H127: 1276.87 | I127: 1292.43 | J127: 1309.87 | K127: 1275 | L127: 1242 | M127: 6.62178
A128: 119 | B128: JUBILANT | C128: 479.45 | D128: 478.18 | E128: 471.57 | F128: 463.68 | G128: 457.07 | H128: 486.07 | I128: 492.68 | J128: 500.57 | K128: 484.8 | L128: 470.3 | M128: 2.31508
A129: 120 | B129: KOTAKBANK | C129: 1470.6 | D129: 1477.42 | E129: 1457.53 | F129: 1444.47 | G129: 1424.58 | H129: 1490.48 | I129: 1510.37 | J129: 1523.43 | K129: 1497.3 | L129: 1464.35 | M129: 20.26531
A130: 121 | B130: L&TFH | C130: 113.75 | D130: 113.70 | E130: 112.25 | F130: 110.75 | G130: 109.30 | H130: 115.20 | I130: 116.65 | J130: 118.15 | K130: 115.15 | L130: 112.2 | M130: 61.92416
A131: 122 | B131: LTTS | C131: 1750.1 | D131: 1741.32 | E131: 1727.08 | F131: 1704.07 | G131: 1689.83 | H131: 1764.33 | I131: 1778.57 | J131: 1801.58 | K131: 1755.55 | L131: 1718.3 | M131: 0.70833
A132: 123 | B132: LICHSGFIN | C132: 546.05 | D132: 543.45 | E132: 539.05 | F132: 532.05 | G132: 527.65 | H132: 550.45 | I132: 554.85 | J132: 561.85 | K132: 547.85 | L132: 536.45 | M132: 9.18341
A133: 124 | B133: LTI | C133: 1712.25 | D133: 1705.60 | E133: 1681.70 | F133: 1651.15 | G133: 1627.25 | H133: 1736.15 | I133: 1760.05 | J133: 1790.60 | K133: 1729.5 | L133: 1675.05 | M133: 1.27475
A134: 125 | B134: LT | C134: 1541 | D134: 1547.20 | E134: 1530.95 | F134: 1520.90 | G134: 1504.65 | H134: 1557.25 | I134: 1573.50 | J134: 1583.55 | K134: 1563.45 | L134: 1537.15 | M134: 19.41777
A135: 126 | B135: LUPIN | C135: 732.8 | D135: 733.43 | E135: 724.37 | F135: 715.93 | G135: 706.87 | H135: 741.87 | I135: 750.93 | J135: 759.37 | K135: 742.5 | L135: 725 | M135: 25.72927
A136: 127 | B136: MRF | C136: 54660.7 | D136: 54768.63 | E136: 54447.32 | F136: 54233.93 | G136: 53912.62 | H136: 54982.02 | I136: 55303.33 | J136: 55516.72 | K136: 55089.95 | L136: 54555.25 | M136: 0.05044
A137: 128 | B137: MGL | C137: 827.9 | D137: 831.97 | E137: 813.93 | F137: 799.97 | G137: 781.93 | H137: 845.93 | I137: 863.97 | J137: 877.93 | K137: 850 | L137: 818 | M137: 8.49371
A138: 129 | B138: M&MFIN | C138: 389.5 | D138: 391.13 | E138: 384.27 | F138: 379.03 | G138: 372.17 | H138: 396.37 | I138: 403.23 | J138: 408.47 | K138: 398 | L138: 385.9 | M138: 14.31784
A139: 130 | B139: M&M | C139: 634.85 | D139: 632.62 | E139: 628.23 | F139: 621.62 | G139: 617.23 | H139: 639.23 | I139: 643.62 | J139: 650.23 | K139: 637 | L139: 626 | M139: 21.66403
A140: 131 | B140: MANAPPURAM | C140: 131.3 | D140: 130.78 | E140: 129.12 | F140: 126.93 | G140: 125.27 | H140: 132.97 | I140: 134.63 | J140: 136.82 | K140: 132.45 | L140: 128.6 | M140: 32.75783
A141: 132 | B141: MRPL | C141: 60.85 | D141: 60.65 | E141: 59.60 | F141: 58.35 | G141: 57.30 | H141: 61.90 | I141: 62.95 | J141: 64.20 | K141: 61.7 | L141: 59.4 | M141: 5.56201
A142: 133 | B142: MARICO | C142: 369.4 | D142: 370.17 | E142: 367.33 | F142: 365.27 | G142: 362.43 | H142: 372.23 | I142: 375.07 | J142: 377.13 | K142: 373 | L142: 368.1 | M142: 24.49869
A143: 134 | B143: MARUTI | C143: 6459.9 | D143: 6426.62 | E143: 6356.13 | F143: 6252.37 | G143: 6181.88 | H143: 6530.38 | I143: 6600.87 | J143: 6704.63 | K143: 6497.1 | L143: 6322.85 | M143: 9.11826
A144: 135 | B144: MFSL | C144: 419.15 | D144: 419.78 | E144: 414.92 | F144: 410.68 | G144: 405.82 | H144: 424.02 | I144: 428.88 | J144: 433.12 | K144: 424.65 | L144: 415.55 | M144: 2.13331
A145: 136 | B145: MINDTREE | C145: 964.1 | D145: 963.20 | E145: 958.00 | F145: 951.90 | G145: 946.70 | H145: 969.30 | I145: 974.50 | J145: 980.60 | K145: 968.4 | L145: 957.1 | M145: 11.08671
A146: 137 | B146: MOTHERSUMI | C146: 121.15 | D146: 122.78 | E146: 118.57 | F146: 115.98 | G146: 111.77 | H146: 125.37 | I146: 129.58 | J146: 132.17 | K146: 127 | L146: 120.2 | M146: 114.94503
A147: 138 | B147: MPHASIS | C147: 963.3 | D147: 956.38 | E147: 946.77 | F147: 930.23 | G147: 920.62 | H147: 972.92 | I147: 982.53 | J147: 999.07 | K147: 966 | L147: 939.85 | M147: 0.66038
A148: 139 | B148: MUTHOOTFIN | C148: 614.65 | D148: 617.17 | E148: 609.08 | F148: 603.52 | G148: 595.43 | H148: 622.73 | I148: 630.82 | J148: 636.38 | K148: 625.25 | L148: 611.6 | M148: 3.21889
A149: 140 | B149: NATCOPHARM | C149: 546.1 | D149: 540.85 | E149: 533.25 | F149: 520.40 | G149: 512.80 | H149: 553.70 | I149: 561.30 | J149: 574.15 | K149: 548.45 | L149: 528 | M149: 5.53271
A150: 141 | B150: NBCC | C150: 61.95 | D150: 60.67 | E150: 58.88 | F150: 55.82 | G150: 54.03 | H150: 63.73 | I150: 65.52 | J150: 68.58 | K150: 62.45 | L150: 57.6 | M150: 144.87442
A151: 142 | B151: NHPC | C151: 25.05 | D151: 25.13 | E151: 24.87 | F151: 24.68 | G151: 24.42 | H151: 25.32 | I151: 25.58 | J151: 25.77 | K151: 25.4 | L151: 24.95 | M151: 19.4835
A152: 143 | B152: NMDC | C152: 109.85 | D152: 110.32 | E152: 108.83 | F152: 107.82 | G152: 106.33 | H152: 111.33 | I152: 112.82 | J152: 113.83 | K152: 111.8 | L152: 109.3 | M152: 22.51595
A153: 144 | B153: NTPC | C153: 135.6 | D153: 135.12 | E153: 134.23 | F153: 132.87 | G153: 131.98 | H153: 136.48 | I153: 137.37 | J153: 138.73 | K153: 136 | L153: 133.75 | M153: 59.18107
A154: 145 | B154: NATIONALUM | C154: 48.9 | D154: 49.03 | E154: 48.47 | F154: 48.03 | G154: 47.47 | H154: 49.47 | I154: 50.03 | J154: 50.47 | K154: 49.6 | L154: 48.6 | M154: 56.25673
A155: 146 | B155: OBEROIRLTY | C155: 541.9 | D155: 546.97 | E155: 534.93 | F155: 527.97 | G155: 515.93 | H155: 553.93 | I155: 565.97 | J155: 572.93 | K155: 559 | L155: 540 | M155: 1.58732
A156: 147 | B156: ONGC | C156: 165.2 | D156: 167.30 | E156: 162.75 | F156: 160.30 | G156: 155.75 | H156: 169.75 | I156: 174.30 | J156: 176.75 | K156: 171.85 | L156: 164.85 | M156: 65.85159
A157: 148 | B157: OIL | C157: 176.45 | D157: 177.82 | E157: 174.33 | F157: 172.22 | G157: 168.73 | H157: 179.93 | I157: 183.42 | J157: 185.53 | K157: 181.3 | L157: 175.7 | M157: 6.4379
A158: 149 | B158: OFSS | C158: 3113.8 | D158: 3113.13 | E158: 3090.92 | F158: 3068.03 | G158: 3045.82 | H158: 3136.02 | I158: 3158.23 | J158: 3181.12 | K158: 3135.35 | L158: 3090.25 | M158: 0.19758
A159: 150 | B159: PIIND | C159: 1174.1 | D159: 1180.10 | E159: 1160.30 | F159: 1146.50 | G159: 1126.70 | H159: 1193.90 | I159: 1213.70 | J159: 1227.50 | K159: 1199.9 | L159: 1166.3 | M159: 0.57398
A160: 151 | B160: PNBHOUSING | C160: 779.35 | D160: 788.45 | E160: 765.90 | F160: 752.45 | G160: 729.90 | H160: 801.90 | I160: 824.45 | J160: 837.90 | K160: 811 | L160: 775 | M160: 2.82089
A161: 152 | B161: PAGEIND | C161: 20630.35 | D161: 20698.45 | E161: 20522.10 | F161: 20413.85 | G161: 20237.50 | H161: 20806.70 | I161: 20983.05 | J161: 21091.30 | K161: 20874.8 | L161: 20590.2 | M161: 0.15758
A162: 153 | B162: PETRONET | C162: 242 | D162: 241.58 | E162: 240.17 | F162: 238.33 | G162: 236.92 | H162: 243.42 | I162: 244.83 | J162: 246.67 | K162: 243 | L162: 239.75 | M162: 13.31895
A163: 154 | B163: PFIZER | C163: 3274 | D163: 3187.68 | E163: 3086.37 | F163: 2898.73 | G163: 2797.42 | H163: 3375.32 | I163: 3476.63 | J163: 3664.27 | K163: 3289 | L163: 3000.05 | M163: 0.12658
A164: 155 | B164: PIDILITIND | C164: 1226.3 | D164: 1224.62 | E164: 1216.83 | F164: 1207.37 | G164: 1199.58 | H164: 1234.08 | I164: 1241.87 | J164: 1251.33 | K164: 1232.4 | L164: 1215.15 | M164: 2.01599
A165: 156 | B165: PEL | C165: 1943.1 | D165: 1946.95 | E165: 1905.35 | F165: 1867.60 | G165: 1826.00 | H165: 1984.70 | I165: 2026.30 | J165: 2064.05 | K165: 1988.55 | L165: 1909.2 | M165: 15.88437
A166: 157 | B166: PFC | C166: 131.65 | D166: 131.38 | E166: 130.37 | F166: 129.08 | G166: 128.07 | H166: 132.67 | I166: 133.68 | J166: 134.97 | K166: 132.4 | L166: 130.1 | M166: 41.90778
A167: 158 | B167: POWERGRID | C167: 199.05 | D167: 199.12 | E167: 197.48 | F167: 195.92 | G167: 194.28 | H167: 200.68 | I167: 202.32 | J167: 203.88 | K167: 200.75 | L167: 197.55 | M167: 55.59408
A168: 159 | B168: PRESTIGE | C168: 268.75 | D168: 269.80 | E168: 265.05 | F168: 261.35 | G168: 256.60 | H168: 273.50 | I168: 278.25 | J168: 281.95 | K168: 274.55 | L168: 266.1 | M168: 2.17798
A169: 160 | B169: PGHH | C169: 10717.95 | D169: 10750.75 | E169: 10601.50 | F169: 10485.05 | G169: 10335.80 | H169: 10867.20 | I169: 11016.45 | J169: 11132.90 | K169: 10900 | L169: 10634.3 | M169: 0.02064
A170: 161 | B170: PNB | C170: 76.85 | D170: 76.92 | E170: 76.23 | F170: 75.62 | G170: 74.93 | H170: 77.53 | I170: 78.22 | J170: 78.83 | K170: 77.6 | L170: 76.3 | M170: 178.93572
A171: 162 | B171: QUESS | C171: 589.8 | D171: 596.10 | E171: 582.25 | F171: 574.70 | G171: 560.85 | H171: 603.65 | I171: 617.50 | J171: 625.05 | K171: 609.95 | L171: 588.55 | M171: 0.33859
A172: 163 | B172: RBLBANK | C172: 618.5 | D172: 617.08 | E172: 611.42 | F172: 604.33 | G172: 598.67 | H172: 624.17 | I172: 629.83 | J172: 636.92 | K172: 622.75 | L172: 610 | M172: 14.18827
A173: 164 | B173: RECLTD | C173: 155.8 | D173: 155.30 | E173: 153.90 | F173: 152.00 | G173: 150.60 | H173: 157.20 | I173: 158.60 | J173: 160.50 | K173: 156.7 | L173: 153.4 | M173: 36.78181
A174: 165 | B174: RAJESHEXPO | C174: 725.25 | D174: 724.18 | E174: 708.37 | F174: 691.48 | G174: 675.67 | H174: 741.07 | I174: 756.88 | J174: 773.77 | K174: 740 | L174: 707.3 | M174: 4.15931
A175: 166 | B175: RELCAPITAL | C175: 69 | D175: 68.52 | E175: 64.78 | F175: 60.57 | G175: 56.83 | H175: 72.73 | I175: 76.47 | J175: 80.68 | K175: 72.25 | L175: 64.3 | M175: 308.96265
A176: 167 | B176: RELIANCE | C176: 1262.4 | D176: 1265.32 | E176: 1254.18 | F176: 1245.97 | G176: 1234.83 | H176: 1273.53 | I176: 1284.67 | J176: 1292.88 | K176: 1276.45 | L176: 1257.1 | M176: 51.50998
A177: 168 | B177: RELINFRA | C177: 56.5 | D177: 56.50 | E177: 53.50 | F177: 50.50 | G177: 47.50 | H177: 59.50 | I177: 62.50 | J177: 65.50 | K177: 59.5 | L177: 53.5 | M177: 311.14504
A178: 169 | B178: RPOWER | C178: 4.6 | D178: 4.95 | E178: 4.20 | F178: 3.80 | G178: 3.05 | H178: 5.35 | I178: 6.10 | J178: 6.50 | K178: 5.7 | L178: 4.55 | M178: 930.57042
A179: 170 | B179: SBILIFE | C179: 710.6 | D179: 707.65 | E179: 701.90 | F179: 693.20 | G179: 687.45 | H179: 716.35 | I179: 722.10 | J179: 730.80 | K179: 713.4 | L179: 698.95 | M179: 3.76039
A180: 171 | B180: SRF | C180: 2990 | D180: 3005.67 | E180: 2969.33 | F180: 2948.67 | G180: 2912.33 | H180: 3026.33 | I180: 3062.67 | J180: 3083.33 | K180: 3042 | L180: 2985 | M180: 1.81384
A181: 172 | B181: SHREECEM | C181: 21081.3 | D181: 21157.23 | E181: 20924.72 | F181: 20768.13 | G181: 20535.62 | H181: 21313.82 | I181: 21546.33 | J181: 21702.92 | K181: 21389.75 | L181: 21000.65 | M181: 0.21987
A182: 173 | B182: SRTRANSFIN | C182: 1114.2 | D182: 1104.63 | E182: 1090.37 | F182: 1066.53 | G182: 1052.27 | H182: 1128.47 | I182: 1142.73 | J182: 1166.57 | K182: 1118.9 | L182: 1080.8 | M182: 32.37919
A183: 174 | B183: SIEMENS | C183: 1247.85 | D183: 1241.97 | E183: 1228.93 | F183: 1210.02 | G183: 1196.98 | H183: 1260.88 | I183: 1273.92 | J183: 1292.83 | K183: 1255 | L183: 1223.05 | M183: 3.40429
A184: 175 | B184: SBIN | C184: 353.2 | D184: 352.53 | E184: 350.32 | F184: 347.43 | G184: 345.22 | H184: 355.42 | I184: 357.63 | J184: 360.52 | K184: 354.75 | L184: 349.65 | M184: 179.19504
A185: 176 | B185: SAIL | C185: 49.15 | D185: 49.53 | E185: 48.22 | F185: 47.28 | G185: 45.97 | H185: 50.47 | I185: 51.78 | J185: 52.72 | K185: 50.85 | L185: 48.6 | M185: 212.05616
A186: 177 | B186: STRTECH | C186: 173.8 | D186: 174.35 | E186: 172.45 | F186: 171.10 | G186: 169.20 | H186: 175.70 | I186: 177.60 | J186: 178.95 | K186: 176.25 | L186: 173 | M186: 6.33648
A187: 178 | B187: SPARC | C187: 120.35 | D187: 120.87 | E187: 118.73 | F187: 117.12 | G187: 114.98 | H187: 122.48 | I187: 124.62 | J187: 126.23 | K187: 123 | L187: 119.25 | M187: 1.85973
A188: 179 | B188: SUNPHARMA | C188: 383.45 | D188: 382.12 | E188: 378.83 | F188: 374.22 | G188: 370.93 | H188: 386.73 | I188: 390.02 | J188: 394.63 | K188: 385.4 | L188: 377.5 | M188: 37.02836
A189: 180 | B189: SUNTV | C189: 518.7 | D189: 520.37 | E189: 514.88 | F189: 511.07 | G189: 505.58 | H189: 524.18 | I189: 529.67 | J189: 533.48 | K189: 525.85 | L189: 516.55 | M189: 12.04649
A190: 181 | B190: SYNGENE | C190: 332.55 | D190: 333.20 | E190: 328.50 | F190: 324.45 | G190: 319.75 | H190: 337.25 | I190: 341.95 | J190: 346.00 | K190: 337.9 | L190: 329.15 | M190: 0.85658
A191: 182 | B191: TVSMOTOR | C191: 449.45 | D191: 443.27 | E191: 434.63 | F191: 419.82 | G191: 411.18 | H191: 458.08 | I191: 466.72 | J191: 481.53 | K191: 451.9 | L191: 428.45 | M191: 40.14282
A192: 183 | B192: TATACHEM | C192: 611.4 | D192: 611.30 | E192: 606.60 | F192: 601.80 | G192: 597.10 | H192: 616.10 | I192: 620.80 | J192: 625.60 | K192: 616 | L192: 606.5 | M192: 5.87844
A193: 184 | B193: TCS | C193: 2275.5 | D193: 2268.77 | E193: 2257.53 | F193: 2239.57 | G193: 2228.33 | H193: 2286.73 | I193: 2297.97 | J193: 2315.93 | K193: 2280 | L193: 2250.8 | M193: 13.82424
A194: 185 | B194: TATAGLOBAL | C194: 259.95 | D194: 259.90 | E194: 256.80 | F194: 253.65 | G194: 250.55 | H194: 263.05 | I194: 266.15 | J194: 269.30 | K194: 263 | L194: 256.75 | M194: 22.81154
A195: 186 | B195: TATAMTRDVR | C195: 77.7 | D195: 76.97 | E195: 75.98 | F195: 74.27 | G195: 73.28 | H195: 78.68 | I195: 79.67 | J195: 81.38 | K195: 77.95 | L195: 75.25 | M195: 38.62527
A196: 187 | B196: TATAMOTORS | C196: 159.3 | D196: 158.57 | E196: 156.93 | F196: 154.57 | G196: 152.93 | H196: 160.93 | I196: 162.57 | J196: 164.93 | K196: 160.2 | L196: 156.2 | M196: 131.85118
A197: 188 | B197: TATAPOWER | C197: 65.05 | D197: 65.08 | E197: 64.47 | F197: 63.88 | G197: 63.27 | H197: 65.67 | I197: 66.28 | J197: 66.87 | K197: 65.7 | L197: 64.5 | M197: 34.56625
A198: 189 | B198: TATASTEEL | C198: 486.25 | D198: 489.30 | E198: 478.80 | F198: 471.35 | G198: 460.85 | H198: 496.75 | I198: 507.25 | J198: 514.70 | K198: 499.8 | L198: 481.85 | M198: 72.62
A199: 190 | B199: TECHM | C199: 728.25 | D199: 731.08 | E199: 724.17 | F199: 720.08 | G199: 713.17 | H199: 735.17 | I199: 742.08 | J199: 746.17 | K199: 738 | L199: 727 | M199: 12.42655
A200: 191 | B200: NIACL | C200: 149.05 | D200: 149.22 | E200: 147.03 | F200: 145.02 | G200: 142.83 | H200: 151.23 | I200: 153.42 | J200: 155.43 | K200: 151.4 | L200: 147.2 | M200: 0.22467
A201: 192 | B201: RAMCOCEM | C201: 794.65 | D201: 798.07 | E201: 788.13 | F201: 781.62 | G201: 771.68 | H201: 804.58 | I201: 814.52 | J201: 821.03 | K201: 808 | L201: 791.55 | M201: 2.77366
A202: 193 | B202: TITAN | C202: 1300.05 | D202: 1299.50 | E202: 1291.60 | F202: 1283.15 | G202: 1275.25 | H202: 1307.95 | I202: 1315.85 | J202: 1324.30 | K202: 1307.4 | L202: 1291.05 | M202: 14.19605
A203: 194 | B203: TORNTPHARM | C203: 1512.1 | D203: 1507.37 | E203: 1498.73 | F203: 1485.37 | G203: 1476.73 | H203: 1520.73 | I203: 1529.37 | J203: 1542.73 | K203: 1516 | L203: 1494 | M203: 0.99794
A204: 195 | B204: TORNTPOWER | C204: 242.1 | D204: 242.95 | E204: 240.70 | F204: 239.30 | G204: 237.05 | H204: 244.35 | I204: 246.60 | J204: 248.00 | K204: 245.2 | L204: 241.55 | M204: 5.41854
A205: 196 | B205: UPL | C205: 936.55 | D205: 924.45 | E205: 907.30 | F205: 878.05 | G205: 860.90 | H205: 953.70 | I205: 970.85 | J205: 1000.10 | K205: 941.6 | L205: 895.2 | M205: 65.06356
... 30 more rows

Sheet MidCap Intra
L5: Back To Main Page
A6: FOR INTRA DAY TRADING | K6: =Main!B10 -> 2019-06-25
A9: Sr.no | B9: Scrip | C9: CLOSE RATE | D9: Pivot Point | E9: Supports | H9: Resistances
C10: Point | E10: S1 | F10: S2 | G10: S3 | H10: R1 | I10: R2 | J10: R3 | K10: HIGH | L10: LOW | M10: Total Trade Quanity in Lakhs
A11: 1 | B11: 3MINDIA | C11: 23779.1 | D11: 23626.32 | E11: 23272.78 | F11: 22766.47 | G11: 22412.93 | H11: 24132.63 | I11: 24486.17 | J11: 24992.48 | K11: 23979.85 | L11: 23120 | M11: 0.02765
A12: 2 | B12: ABB | C12: 1560.9 | D12: 1561.30 | E12: 1549.60 | F12: 1538.30 | G12: 1526.60 | H12: 1572.60 | I12: 1584.30 | J12: 1595.60 | K12: 1573 | L12: 1550 | M12: 0.73029
A13: 3 | B13: ACC | C13: 1537.6 | D13: 1535.97 | E13: 1519.08 | F13: 1500.57 | G13: 1483.68 | H13: 1554.48 | I13: 1571.37 | J13: 1589.88 | K13: 1552.85 | L13: 1517.45 | M13: 5.36701
A14: 4 | B14: AIAENG | C14: 1748.55 | D14: 1743.52 | E14: 1730.03 | F14: 1711.52 | G14: 1698.03 | H14: 1762.03 | I14: 1775.52 | J14: 1794.03 | K14: 1757 | L14: 1725 | M14: 0.07702
A15: 5 | B15: APLAPOLLO | C15: 1513.65 | D15: 1524.22 | E15: 1499.43 | F15: 1485.22 | G15: 1460.43 | H15: 1538.43 | I15: 1563.22 | J15: 1577.43 | K15: 1549 | L15: 1510 | M15: 0.08229
A16: 6 | B16: AUBANK | C16: 692.7 | D16: 697.53 | E16: 681.17 | F16: 669.63 | G16: 653.27 | H16: 709.07 | I16: 725.43 | J16: 736.97 | K16: 713.9 | L16: 686 | M16: 2.39944
A17: 7 | B17: AAVAS | C17: 1473.25 | D17: 1463.08 | E17: 1436.17 | F17: 1399.08 | G17: 1372.17 | H17: 1500.17 | I17: 1527.08 | J17: 1564.17 | K17: 1490 | L17: 1426 | M17: 0.09466
A18: 8 | B18: ADANIGREEN | C18: 41.15 | D18: 41.08 | E18: 40.52 | F18: 39.88 | G18: 39.32 | H18: 41.72 | I18: 42.28 | J18: 42.92 | K18: 41.65 | L18: 40.45 | M18: 3.29432
A19: 9 | B19: ADANIPORTS | C19: 406 | D19: 404.40 | E19: 401.40 | F19: 396.80 | G19: 393.80 | H19: 409.00 | I19: 412.00 | J19: 416.60 | K19: 407.4 | L19: 399.8 | M19: 25.8274
A20: 10 | B20: ADANIPOWER | C20: 50.15 | D20: 49.27 | E20: 48.03 | F20: 45.92 | G20: 44.68 | H20: 51.38 | I20: 52.62 | J20: 54.73 | K20: 50.5 | L20: 47.15 | M20: 153.02455
A21: 11 | B21: ADANITRANS | C21: 224.85 | D21: 226.18 | E21: 221.37 | F21: 217.88 | G21: 213.07 | H21: 229.67 | I21: 234.48 | J21: 237.97 | K21: 231 | L21: 222.7 | M21: 0.66
A22: 12 | B22: ABCAPITAL | C22: 92.15 | D22: 92.65 | E22: 91.30 | F22: 90.45 | G22: 89.10 | H22: 93.50 | I22: 94.85 | J22: 95.70 | K22: 94 | L22: 91.8 | M22: 6.93298
A23: 13 | B23: ABFRL | C23: 207.7 | D23: 208.43 | E23: 205.27 | F23: 202.83 | G23: 199.67 | H23: 210.87 | I23: 214.03 | J23: 216.47 | K23: 211.6 | L23: 206 | M23: 1.65305
A24: 14 | B24: ADVENZYMES | C24: 167.65 | D24: 168.58 | E24: 163.17 | F24: 158.68 | G24: 153.27 | H24: 173.07 | I24: 178.48 | J24: 182.97 | K24: 174 | L24: 164.1 | M24: 1.62499
A25: 15 | B25: AEGISCHEM | C25: 201.55 | D25: 204.37 | E25: 197.28 | F25: 193.02 | G25: 185.93 | H25: 208.63 | I25: 215.72 | J25: 219.98 | K25: 211.45 | L25: 200.1 | M25: 0.68425
A26: 16 | B26: AJANTPHARM | C26: 956.6 | D26: 950.90 | E26: 938.70 | F26: 920.80 | G26: 908.60 | H26: 968.80 | I26: 981.00 | J26: 998.90 | K26: 963.1 | L26: 933 | M26: 2.5893
A27: 17 | B27: AKZOINDIA | C27: 1727.75 | D27: 1722.58 | E27: 1706.87 | F27: 1685.98 | G27: 1670.27 | H27: 1743.47 | I27: 1759.18 | J27: 1780.07 | K27: 1738.3 | L27: 1701.7 | M27: 0.02014
A28: 18 | B28: APLLTD | C28: 505 | D28: 497.88 | E28: 482.12 | F28: 459.23 | G28: 443.47 | H28: 520.77 | I28: 536.53 | J28: 559.42 | K28: 513.65 | L28: 475 | M28: 0.64604
A29: 19 | B29: ALKEM | C29: 1715.75 | D29: 1733.58 | E29: 1682.27 | F29: 1648.78 | G29: 1597.47 | H29: 1767.07 | I29: 1818.38 | J29: 1851.87 | K29: 1784.9 | L29: 1700.1 | M29: 0.38423
A30: 20 | B30: ALBK | C30: 40.8 | D30: 40.88 | E30: 40.47 | F30: 40.13 | G30: 39.72 | H30: 41.22 | I30: 41.63 | J30: 41.97 | K30: 41.3 | L30: 40.55 | M30: 21.44903
A31: 21 | B31: ALLCARGO | C31: 102.1 | D31: 102.72 | E31: 100.68 | F31: 99.27 | G31: 97.23 | H31: 104.13 | I31: 106.17 | J31: 107.58 | K31: 104.75 | L31: 101.3 | M31: 0.34069
A32: 22 | B32: AMARAJABAT | C32: 601.6 | D32: 602.07 | E32: 594.53 | F32: 587.47 | G32: 579.93 | H32: 609.13 | I32: 616.67 | J32: 623.73 | K32: 609.6 | L32: 595 | M32: 3.86759
A33: 23 | B33: AMBUJACEM | C33: 215 | D33: 214.80 | E33: 212.70 | F33: 210.40 | G33: 208.30 | H33: 217.10 | I33: 219.20 | J33: 221.50 | K33: 216.9 | L33: 212.5 | M33: 26.39044
A34: 24 | B34: ANDHRABANK | C34: 22.7 | D34: 22.65 | E34: 22.45 | F34: 22.20 | G34: 22.00 | H34: 22.90 | I34: 23.10 | J34: 23.35 | K34: 22.85 | L34: 22.4 | M34: 6.25625
A35: 25 | B35: APOLLOHOSP | C35: 1344.65 | D35: 1343.93 | E35: 1330.77 | F35: 1316.88 | G35: 1303.72 | H35: 1357.82 | I35: 1370.98 | J35: 1384.87 | K35: 1357.1 | L35: 1330.05 | M35: 4.20849
A36: 26 | B36: APOLLOTYRE | C36: 199.45 | D36: 198.55 | E36: 196.20 | F36: 192.95 | G36: 190.60 | H36: 201.80 | I36: 204.15 | J36: 207.40 | K36: 200.9 | L36: 195.3 | M36: 18.29459
A37: 27 | B37: ASHOKLEY | C37: 85.8 | D37: 86.07 | E37: 84.93 | F37: 84.07 | G37: 82.93 | H37: 86.93 | I37: 88.07 | J37: 88.93 | K37: 87.2 | L37: 85.2 | M37: 116.25336
A38: 28 | B38: ASHOKA | C38: 133.65 | D38: 134.38 | E38: 131.77 | F38: 129.88 | G38: 127.27 | H38: 136.27 | I38: 138.88 | J38: 140.77 | K38: 137 | L38: 132.5 | M38: 1.32233
A39: 29 | B39: ASIANPAINT | C39: 1376.15 | D39: 1380.80 | E39: 1363.60 | F39: 1351.05 | G39: 1333.85 | H39: 1393.35 | I39: 1410.55 | J39: 1423.10 | K39: 1398 | L39: 1368.25 | M39: 7.57055
A40: 30 | B40: ASTERDM | C40: 133.65 | D40: 134.77 | E40: 131.78 | F40: 129.92 | G40: 126.93 | H40: 136.63 | I40: 139.62 | J40: 141.48 | K40: 137.75 | L40: 132.9 | M40: 0.1722
A41: 31 | B41: ASTRAZEN | C41: 1945.4 | D41: 1937.20 | E41: 1919.40 | F41: 1893.40 | G41: 1875.60 | H41: 1963.20 | I41: 1981.00 | J41: 2007.00 | K41: 1955 | L41: 1911.2 | M41: 0.15029
A42: 32 | B42: ASTRAL | C42: 1321.8 | D42: 1316.93 | E42: 1300.87 | F42: 1279.93 | G42: 1263.87 | H42: 1337.87 | I42: 1353.93 | J42: 1374.87 | K42: 1333 | L42: 1296 | M42: 0.26625
A43: 33 | B43: ATUL | C43: 3993.1 | D43: 4003.03 | E43: 3960.07 | F43: 3927.03 | G43: 3884.07 | H43: 4036.07 | I43: 4079.03 | J43: 4112.07 | K43: 4046 | L43: 3970 | M43: 0.05954
A44: 34 | B44: AUROPHARMA | C44: 586.3 | D44: 594.43 | E44: 574.17 | F44: 562.03 | G44: 541.77 | H44: 606.57 | I44: 626.83 | J44: 638.97 | K44: 614.7 | L44: 582.3 | M44: 44.12032
A45: 35 | B45: AVANTIFEED | C45: 355.45 | D45: 358.22 | E45: 350.53 | F45: 345.62 | G45: 337.93 | H45: 363.13 | I45: 370.82 | J45: 375.73 | K45: 365.9 | L45: 353.3 | M45: 1.2809
A46: 36 | B46: DMART | C46: 1329.2 | D46: 1328.07 | E46: 1318.13 | F46: 1307.07 | G46: 1297.13 | H46: 1339.13 | I46: 1349.07 | J46: 1360.13 | K46: 1338 | L46: 1317 | M46: 1.18535
A47: 37 | B47: AXISBANK | C47: 762.85 | D47: 766.37 | E47: 757.48 | F47: 752.12 | G47: 743.23 | H47: 771.73 | I47: 780.62 | J47: 785.98 | K47: 775.25 | L47: 761 | M47: 48.66859
A48: 38 | B48: BASF | C48: 1332.35 | D48: 1342.78 | E48: 1309.57 | F48: 1286.78 | G48: 1253.57 | H48: 1365.57 | I48: 1398.78 | J48: 1421.57 | K48: 1376 | L48: 1320 | M48: 0.03575
A49: 39 | B49: BEML | C49: 823.7 | D49: 823.03 | E49: 810.92 | F49: 798.13 | G49: 786.02 | H49: 835.82 | I49: 847.93 | J49: 860.72 | K49: 835.15 | L49: 810.25 | M49: 16.88491
A50: 40 | B50: BSE | C50: 614.75 | D50: 615.17 | E50: 612.58 | F50: 610.42 | G50: 607.83 | H50: 617.33 | I50: 619.92 | J50: 622.08 | K50: 617.75 | L50: 613 | M50: 0.67298
A51: 41 | B51: BAJAJ-AUTO | C51: 2816.9 | D51: 2831.73 | E51: 2786.37 | F51: 2755.83 | G51: 2710.47 | H51: 2862.27 | I51: 2907.63 | J51: 2938.17 | K51: 2877.1 | L51: 2801.2 | M51: 4.34882
A52: 42 | B52: BAJAJCON | C52: 328.1 | D52: 328.88 | E52: 320.57 | F52: 313.03 | G52: 304.72 | H52: 336.42 | I52: 344.73 | J52: 352.27 | K52: 337.2 | L52: 321.35 | M52: 0.51558
A53: 43 | B53: BAJAJELEC | C53: 505.2 | D53: 506.02 | E53: 504.08 | F53: 502.97 | G53: 501.03 | H53: 507.13 | I53: 509.07 | J53: 510.18 | K53: 507.95 | L53: 504.9 | M53: 0.40532
A54: 44 | B54: BAJFINANCE | C54: 3545.35 | D54: 3552.77 | E54: 3525.63 | F54: 3505.92 | G54: 3478.78 | H54: 3572.48 | I54: 3599.62 | J54: 3619.33 | K54: 3579.9 | L54: 3533.05 | M54: 5.43703
A55: 45 | B55: BAJAJFINSV | C55: 8354.65 | D55: 8374.88 | E55: 8317.77 | F55: 8280.88 | G55: 8223.77 | H55: 8411.77 | I55: 8468.88 | J55: 8505.77 | K55: 8432 | L55: 8338 | M55: 1.07927
A56: 46 | B56: BAJAJHLDNG | C56: 3603.95 | D56: 3611.65 | E56: 3564.30 | F56: 3524.65 | G56: 3477.30 | H56: 3651.30 | I56: 3698.65 | J56: 3738.30 | K56: 3659 | L56: 3572 | M56: 0.18104
A57: 47 | B57: BALKRISIND | C57: 741.3 | D57: 741.48 | E57: 732.52 | F57: 723.73 | G57: 714.77 | H57: 750.27 | I57: 759.23 | J57: 768.02 | K57: 750.45 | L57: 732.7 | M57: 3.95077
A58: 48 | B58: BALMLAWRIE | C58: 180.6 | D58: 181.00 | E58: 179.60 | F58: 178.60 | G58: 177.20 | H58: 182.00 | I58: 183.40 | J58: 184.40 | K58: 182.4 | L58: 180 | M58: 0.22987
A59: 49 | B59: BALRAMCHIN | C59: 137 | D59: 138.40 | E59: 134.85 | F59: 132.70 | G59: 129.15 | H59: 140.55 | I59: 144.10 | J59: 146.25 | K59: 141.95 | L59: 136.25 | M59: 9.237
A60: 50 | B60: BANDHANBNK | C60: 533.9 | D60: 537.63 | E60: 527.27 | F60: 520.63 | G60: 510.27 | H60: 544.27 | I60: 554.63 | J60: 561.27 | K60: 548 | L60: 531 | M60: 3.39147
A61: 51 | B61: BANKBARODA | C61: 118.25 | D61: 118.53 | E61: 117.12 | F61: 115.98 | G61: 114.57 | H61: 119.67 | I61: 121.08 | J61: 122.22 | K61: 119.95 | L61: 117.4 | M61: 169.57023
A62: 52 | B62: BANKINDIA | C62: 86.35 | D62: 86.73 | E62: 85.47 | F62: 84.58 | G62: 83.32 | H62: 87.62 | I62: 88.88 | J62: 89.77 | K62: 88 | L62: 85.85 | M62: 42.48911
A63: 53 | B63: MAHABANK | C63: 14.9 | D63: 15.05 | E63: 14.65 | F63: 14.40 | G63: 14.00 | H63: 15.30 | I63: 15.70 | J63: 15.95 | K63: 15.45 | L63: 14.8 | M63: 4.32713
A64: 54 | B64: BATAINDIA | C64: 1405.35 | D64: 1408.00 | E64: 1385.35 | F64: 1365.35 | G64: 1342.70 | H64: 1428.00 | I64: 1450.65 | J64: 1470.65 | K64: 1430.65 | L64: 1388 | M64: 3.41976
A65: 55 | B65: BERGEPAINT | C65: 313.9 | D65: 315.57 | E65: 311.48 | F65: 309.07 | G65: 304.98 | H65: 317.98 | I65: 322.07 | J65: 324.48 | K65: 319.65 | L65: 313.15 | M65: 2.41692
A66: 56 | B66: BDL | C66: 305.15 | D66: 305.82 | E66: 302.58 | F66: 300.02 | G66: 296.78 | H66: 308.38 | I66: 311.62 | J66: 314.18 | K66: 309.05 | L66: 303.25 | M66: 0.19812
A67: 57 | B67: BEL | C67: 114.75 | D67: 113.82 | E67: 112.43 | F67: 110.12 | G67: 108.73 | H67: 116.13 | I67: 117.52 | J67: 119.83 | K67: 115.2 | L67: 111.5 | M67: 140.50589
A68: 58 | B68: BHARATFORG | C68: 436.4 | D68: 436.77 | E68: 432.53 | F68: 428.67 | G68: 424.43 | H68: 440.63 | I68: 444.87 | J68: 448.73 | K68: 441 | L68: 432.9 | M68: 5.64527
A69: 59 | B69: BHEL | C69: 73.7 | D69: 73.23 | E69: 72.47 | F69: 71.23 | G69: 70.47 | H69: 74.47 | I69: 75.23 | J69: 76.47 | K69: 74 | L69: 72 | M69: 183.72701
A70: 60 | B70: BPCL | C70: 380.85 | D70: 378.87 | E70: 375.08 | F70: 369.32 | G70: 365.53 | H70: 384.63 | I70: 388.42 | J70: 394.18 | K70: 382.65 | L70: 373.1 | M70: 32.71602
A71: 61 | B71: BHARTIARTL | C71: 345.1 | D71: 345.72 | E71: 342.88 | F71: 340.67 | G71: 337.83 | H71: 347.93 | I71: 350.77 | J71: 352.98 | K71: 348.55 | L71: 343.5 | M71: 32.49667
A72: 62 | B72: INFRATEL | C72: 272.8 | D72: 273.42 | E72: 270.88 | F72: 268.97 | G72: 266.43 | H72: 275.33 | I72: 277.87 | J72: 279.78 | K72: 275.95 | L72: 271.5 | M72: 5.81858
A73: 63 | B73: BIOCON | C73: 249.5 | D73: 248.87 | E73: 246.93 | F73: 244.37 | G73: 242.43 | H73: 251.43 | I73: 253.37 | J73: 255.93 | K73: 250.8 | L73: 246.3 | M73: 18.12625
A74: 64 | B74: BIRLACORPN | C74: 579.2 | D74: 578.10 | E74: 564.40 | F74: 549.60 | G74: 535.90 | H74: 592.90 | I74: 606.60 | J74: 621.40 | K74: 591.8 | L74: 563.3 | M74: 0.46402
A75: 65 | B75: BLISSGVS | C75: 158.75 | D75: 157.33 | E75: 154.92 | F75: 151.08 | G75: 148.67 | H75: 161.17 | I75: 163.58 | J75: 167.42 | K75: 159.75 | L75: 153.5 | M75: 8.4873
A76: 66 | B76: BLUEDART | C76: 2708.15 | D76: 2710.38 | E76: 2677.77 | F76: 2647.38 | G76: 2614.77 | H76: 2740.77 | I76: 2773.38 | J76: 2803.77 | K76: 2743 | L76: 2680 | M76: 0.00713
A77: 67 | B77: BLUESTARCO | C77: 752.85 | D77: 765.32 | E77: 735.18 | F77: 717.52 | G77: 687.38 | H77: 782.98 | I77: 813.12 | J77: 830.78 | K77: 795.45 | L77: 747.65 | M77: 0.65531
A78: 68 | B78: BBTC | C78: 960.9 | D78: 968.97 | E78: 948.93 | F78: 936.97 | G78: 916.93 | H78: 980.93 | I78: 1000.97 | J78: 1012.93 | K78: 989 | L78: 957 | M78: 0.40791
A79: 69 | B79: BOMDYEING | C79: 101.8 | D79: 102.83 | E79: 99.22 | F79: 96.63 | G79: 93.02 | H79: 105.42 | I79: 109.03 | J79: 111.62 | K79: 106.45 | L79: 100.25 | M79: 11.48747
A80: 70 | B80: BOSCHLTD | C80: 16401.4 | D80: 16447.00 | E80: 16291.40 | F80: 16181.40 | G80: 16025.80 | H80: 16557.00 | I80: 16712.60 | J80: 16822.60 | K80: 16602.6 | L80: 16337 | M80: 0.05669
A81: 71 | B81: BRIGADE | C81: 250.65 | D81: 250.90 | E81: 247.80 | F81: 244.95 | G81: 241.85 | H81: 253.75 | I81: 256.85 | J81: 259.70 | K81: 254 | L81: 248.05 | M81: 0.21715
A82: 72 | B82: BRITANNIA | C82: 2780.5 | D82: 2805.52 | E82: 2746.03 | F82: 2711.57 | G82: 2652.08 | H82: 2839.98 | I82: 2899.47 | J82: 2933.93 | K82: 2865 | L82: 2771.05 | M82: 3.69267
A83: 73 | B83: CARERATING | C83: 911.9 | D83: 912.58 | E83: 899.32 | F83: 886.73 | G83: 873.47 | H83: 925.17 | I83: 938.43 | J83: 951.02 | K83: 925.85 | L83: 900 | M83: 0.05584
A84: 74 | B84: CCL | C84: 252.1 | D84: 250.98 | E84: 248.97 | F84: 245.83 | G84: 243.82 | H84: 254.12 | I84: 256.13 | J84: 259.27 | K84: 253 | L84: 247.85 | M84: 0.53988
A85: 75 | B85: CESC | C85: 758.05 | D85: 757.87 | E85: 754.78 | F85: 751.52 | G85: 748.43 | H85: 761.13 | I85: 764.22 | J85: 767.48 | K85: 760.95 | L85: 754.6 | M85: 1.8473
A86: 77 | B86: CGPOWER | C86: 29.35 | D86: 29.82 | E86: 28.63 | F86: 27.92 | G86: 26.73 | H86: 30.53 | I86: 31.72 | J86: 32.43 | K86: 31 | L86: 29.1 | M86: 148.64446
A87: 78 | B87: CRISIL | C87: 1383.55 | D87: 1387.50 | E87: 1368.05 | F87: 1352.55 | G87: 1333.10 | H87: 1403.00 | I87: 1422.45 | J87: 1437.95 | K87: 1406.95 | L87: 1372 | M87: 0.06486
A88: 79 | B88: CADILAHC | C88: 229.05 | D88: 230.12 | E88: 223.48 | F88: 217.92 | G88: 211.28 | H88: 235.68 | I88: 242.32 | J88: 247.88 | K88: 236.75 | L88: 224.55 | M88: 20.63844
A89: 80 | B89: CANFINHOME | C89: 348.6 | D89: 348.83 | E89: 344.97 | F89: 341.33 | G89: 337.47 | H89: 352.47 | I89: 356.33 | J89: 359.97 | K89: 352.7 | L89: 345.2 | M89: 4.22602
A90: 81 | B90: CANBK | C90: 273.1 | D90: 272.18 | E90: 270.42 | F90: 267.73 | G90: 265.97 | H90: 274.87 | I90: 276.63 | J90: 279.32 | K90: 273.95 | L90: 269.5 | M90: 36.10147
A91: 82 | B91: CAPLIPOINT | C91: 407.15 | D91: 407.28 | E91: 404.87 | F91: 402.58 | G91: 400.17 | H91: 409.57 | I91: 411.98 | J91: 414.27 | K91: 409.7 | L91: 405 | M91: 0.07556
A92: 83 | B92: CARBORUNIV | C92: 347.25 | D92: 345.67 | E92: 341.53 | F92: 335.82 | G92: 331.68 | H92: 351.38 | I92: 355.52 | J92: 361.23 | K92: 349.8 | L92: 339.95 | M92: 0.31001
A93: 84 | B93: CASTROLIND | C93: 137.05 | D93: 138.20 | E93: 135.40 | F93: 133.75 | G93: 130.95 | H93: 139.85 | I93: 142.65 | J93: 144.30 | K93: 141 | L93: 136.55 | M93: 7.7342
A94: 85 | B94: CEATLTD | C94: 902.25 | D94: 901.25 | E94: 886.50 | F94: 870.75 | G94: 856.00 | H94: 917.00 | I94: 931.75 | J94: 947.50 | K94: 916 | L94: 885.5 | M94: 6.44469
A95: 86 | B95: CENTRALBK | C95: 20.9 | D95: 21.03 | E95: 20.27 | F95: 19.63 | G95: 18.87 | H95: 21.67 | I95: 22.43 | J95: 23.07 | K95: 21.8 | L95: 20.4 | M95: 8.13385
A96: 87 | B96: CDSL | C96: 220.5 | D96: 219.83 | E96: 218.47 | F96: 216.43 | G96: 215.07 | H96: 221.87 | I96: 223.23 | J96: 225.27 | K96: 221.2 | L96: 217.8 | M96: 1.51332
A97: 88 | B97: CENTURYPLY | C97: 157.3 | D97: 157.80 | E97: 155.60 | F97: 153.90 | G97: 151.70 | H97: 159.50 | I97: 161.70 | J97: 163.40 | K97: 160 | L97: 156.1 | M97: 0.47301
A98: 89 | B98: CERA | C98: 2967 | D98: 2958.00 | E98: 2915.00 | F98: 2863.00 | G98: 2820.00 | H98: 3010.00 | I98: 3053.00 | J98: 3105.00 | K98: 3001 | L98: 2906 | M98: 0.01687
A99: 90 | B99: CHAMBLFERT | C99: 171 | D99: 172.73 | E99: 168.47 | F99: 165.93 | G99: 161.67 | H99: 175.27 | I99: 179.53 | J99: 182.07 | K99: 177 | L99: 170.2 | M99: 1.19609
A100: 91 | B100: CHENNPETRO | C100: 206.9 | D100: 208.98 | E100: 204.02 | F100: 201.13 | G100: 196.17 | H100: 211.87 | I100: 216.83 | J100: 219.72 | K100: 213.95 | L100: 206.1 | M100: 3.46323
A101: 92 | B101: CHOLAHLDNG | C101: 474.3 | D101: 477.75 | E101: 469.50 | F101: 464.70 | G101: 456.45 | H101: 482.55 | I101: 490.80 | J101: 495.60 | K101: 486 | L101: 472.95 | M101: 0.08818
A102: 93 | B102: CHOLAFIN | C102: 274.7 | D102: 275.25 | E102: 271.00 | F102: 267.30 | G102: 263.05 | H102: 278.95 | I102: 283.20 | J102: 286.90 | K102: 279.5 | L102: 271.55 | M102: 4.42832
A103: 94 | B103: CIPLA | C103: 549.9 | D103: 549.15 | E103: 545.85 | F103: 541.80 | G103: 538.50 | H103: 553.20 | I103: 556.50 | J103: 560.55 | K103: 552.45 | L103: 545.1 | M103: 9.81017
A104: 95 | B104: CUB | C104: 211.85 | D104: 211.80 | E104: 209.35 | F104: 206.85 | G104: 204.40 | H104: 214.30 | I104: 216.75 | J104: 219.25 | K104: 214.25 | L104: 209.3 | M104: 2.55801
A105: 96 | B105: COALINDIA | C105: 256.75 | D105: 256.12 | E105: 253.98 | F105: 251.22 | G105: 249.08 | H105: 258.88 | I105: 261.02 | J105: 263.78 | K105: 258.25 | L105: 253.35 | M105: 26.33348
A106: 97 | B106: COCHINSHIP | C106: 377 | D106: 378.20 | E106: 375.30 | F106: 373.60 | G106: 370.70 | H106: 379.90 | I106: 382.80 | J106: 384.50 | K106: 381.1 | L106: 376.5 | M106: 0.18398
A107: 98 | B107: COFFEEDAY | C107: 215.35 | D107: 215.70 | E107: 212.40 | F107: 209.45 | G107: 206.15 | H107: 218.65 | I107: 221.95 | J107: 224.90 | K107: 219 | L107: 212.75 | M107: 0.18742
A108: 99 | B108: COLPAL | C108: 1135.45 | D108: 1135.58 | E108: 1130.82 | F108: 1126.18 | G108: 1121.42 | H108: 1140.22 | I108: 1144.98 | J108: 1149.62 | K108: 1140.35 | L108: 1130.95 | M108: 1.35974
A109: 100 | B109: CONCOR | C109: 553.35 | D109: 552.57 | E109: 547.78 | F109: 542.22 | G109: 537.43 | H109: 558.13 | I109: 562.92 | J109: 568.48 | K109: 557.35 | L109: 547 | M109: 8.72206
A110: 101 | B110: COROMANDEL | C110: 405.65 | D110: 406.15 | E110: 402.00 | F110: 398.35 | G110: 394.20 | H110: 409.80 | I110: 413.95 | J110: 417.60 | K110: 410.3 | L110: 402.5 | M110: 0.36659
A111: 102 | B111: CORPBANK | C111: 22.85 | D111: 22.95 | E111: 22.45 | F111: 22.05 | G111: 21.55 | H111: 23.35 | I111: 23.85 | J111: 24.25 | K111: 23.45 | L111: 22.55 | M111: 1.93828
A112: 103 | B112: COX&KINGS | C112: 48.3 | D112: 52.53 | E112: 44.07 | F112: 39.83 | G112: 31.37 | H112: 56.77 | I112: 65.23 | J112: 69.47 | K112: 61 | L112: 48.3 | M112: 8.66426
A113: 104 | B113: CREDITACC | C113: 523.65 | D113: 525.37 | E113: 503.33 | F113: 483.02 | G113: 460.98 | H113: 545.68 | I113: 567.72 | J113: 588.03 | K113: 547.4 | L113: 505.05 | M113: 1.06227
A114: 105 | B114: CROMPTON | C114: 232.3 | D114: 234.70 | E114: 227.80 | F114: 223.30 | G114: 216.40 | H114: 239.20 | I114: 246.10 | J114: 250.60 | K114: 241.6 | L114: 230.2 | M114: 4.75672
A115: 106 | B115: CUMMINSIND | C115: 754.95 | D115: 750.97 | E115: 741.98 | F115: 729.02 | G115: 720.03 | H115: 763.93 | I115: 772.92 | J115: 785.88 | K115: 759.95 | L115: 738 | M115: 2.65761
A116: 107 | B116: CYIENT | C116: 559.8 | D116: 560.92 | E116: 552.93 | F116: 546.07 | G116: 538.08 | H116: 567.78 | I116: 575.77 | J116: 582.63 | K116: 568.9 | L116: 554.05 | M116: 1.29453
A117: 108 | B117: DBCORP | C117: 193.2 | D117: 193.55 | E117: 192.25 | F117: 191.30 | G117: 190.00 | H117: 194.50 | I117: 195.80 | J117: 196.75 | K117: 194.85 | L117: 192.6 | M117: 0.11205
A118: 109 | B118: DCBBANK | C118: 229.65 | D118: 229.33 | E118: 227.67 | F118: 225.68 | G118: 224.02 | H118: 231.32 | I118: 232.98 | J118: 234.97 | K118: 231 | L118: 227.35 | M118: 8.47937
A119: 110 | B119: DCMSHRIRAM | C119: 517.15 | D119: 519.68 | E119: 509.47 | F119: 501.78 | G119: 491.57 | H119: 527.37 | I119: 537.58 | J119: 545.27 | K119: 529.9 | L119: 512 | M119: 0.71219
A120: 111 | B120: DLF | C120: 175.55 | D120: 176.30 | E120: 173.20 | F120: 170.85 | G120: 167.75 | H120: 178.65 | I120: 181.75 | J120: 184.10 | K120: 179.4 | L120: 173.95 | M120: 72.31257
A121: 112 | B121: DABUR | C121: 392.35 | D121: 392.27 | E121: 388.13 | F121: 383.92 | G121: 379.78 | H121: 396.48 | I121: 400.62 | J121: 404.83 | K121: 396.4 | L121: 388.05 | M121: 12.84017
A122: 113 | B122: DEEPAKFERT | C122: 126 | D122: 126.08 | E122: 124.67 | F122: 123.33 | G122: 121.92 | H122: 127.42 | I122: 128.83 | J122: 130.17 | K122: 127.5 | L122: 124.75 | M122: 0.44486
A123: 114 | B123: DEEPAKNTR | C123: 281.1 | D123: 282.30 | E123: 278.90 | F123: 276.70 | G123: 273.30 | H123: 284.50 | I123: 287.90 | J123: 290.10 | K123: 285.7 | L123: 280.1 | M123: 1.0009
A124: 115 | B124: DELTACORP | C124: 174.9 | D124: 176.63 | E124: 172.12 | F124: 169.33 | G124: 164.82 | H124: 179.42 | I124: 183.93 | J124: 186.72 | K124: 181.15 | L124: 173.85 | M124: 4.08419
A125: 116 | B125: DHFL | C125: 78.7 | D125: 77.20 | E125: 73.50 | F125: 68.30 | G125: 64.60 | H125: 82.40 | I125: 86.10 | J125: 91.30 | K125: 80.9 | L125: 72 | M125: 408.69645
A126: 117 | B126: DBL | C126: 399.3 | D126: 400.12 | E126: 395.23 | F126: 391.17 | G126: 386.28 | H126: 404.18 | I126: 409.07 | J126: 413.13 | K126: 405 | L126: 396.05 | M126: 1.6856
A127: 118 | B127: DISHTV | C127: 26.95 | D127: 27.15 | E127: 26.30 | F127: 25.65 | G127: 24.80 | H127: 27.80 | I127: 28.65 | J127: 29.30 | K127: 28 | L127: 26.5 | M127: 186.87686
A128: 119 | B128: DCAL | C128: 221.5 | D128: 219.83 | E128: 215.67 | F128: 209.83 | G128: 205.67 | H128: 225.67 | I128: 229.83 | J128: 235.67 | K128: 224 | L128: 214 | M128: 0.63618
A129: 120 | B129: DIVISLAB | C129: 1576.3 | D129: 1565.57 | E129: 1546.78 | F129: 1517.27 | G129: 1498.48 | H129: 1595.08 | I129: 1613.87 | J129: 1643.38 | K129: 1584.35 | L129: 1536.05 | M129: 5.12756
A130: 121 | B130: DIXON | C130: 2242.45 | D130: 2225.82 | E130: 2166.63 | F130: 2090.82 | G130: 2031.63 | H130: 2301.63 | I130: 2360.82 | J130: 2436.63 | K130: 2285 | L130: 2150 | M130: 0.06411
A131: 122 | B131: LALPATHLAB | C131: 1171.6 | D131: 1170.53 | E131: 1163.07 | F131: 1154.53 | G131: 1147.07 | H131: 1179.07 | I131: 1186.53 | J131: 1195.07 | K131: 1178 | L131: 1162 | M131: 0.92514
A132: 123 | B132: DRREDDY | C132: 2513.4 | D132: 2516.68 | E132: 2501.37 | F132: 2489.33 | G132: 2474.02 | H132: 2528.72 | I132: 2544.03 | J132: 2556.07 | K132: 2532 | L132: 2504.65 | M132: 4.52261
A133: 124 | B133: EIDPARRY | C133: 165.95 | D133: 166.12 | E133: 163.83 | F133: 161.72 | G133: 159.43 | H133: 168.23 | I133: 170.52 | J133: 172.63 | K133: 168.4 | L133: 164 | M133: 0.41612
A134: 125 | B134: EIHOTEL | C134: 171.3 | D134: 170.73 | E134: 168.97 | F134: 166.63 | G134: 164.87 | H134: 173.07 | I134: 174.83 | J134: 177.17 | K134: 172.5 | L134: 168.4 | M134: 2.35218
A135: 126 | B135: EDELWEISS | C135: 171.3 | D135: 173.03 | E135: 168.32 | F135: 165.33 | G135: 160.62 | H135: 176.02 | I135: 180.73 | J135: 183.72 | K135: 177.75 | L135: 170.05 | M135: 11.67583
A136: 127 | B136: EICHERMOT | C136: 19098.2 | D136: 19280.42 | E136: 18729.88 | F136: 18361.57 | G136: 17811.03 | H136: 19648.73 | I136: 20199.27 | J136: 20567.58 | K136: 19830.95 | L136: 18912.1 | M136: 1.24036
A137: 128 | B137: ELGIEQUIP | C137: 261.4 | D137: 261.20 | E137: 260.40 | F137: 259.40 | G137: 258.60 | H137: 262.20 | I137: 263.00 | J137: 264.00 | K137: 262 | L137: 260.2 | M137: 0.03857
A138: 129 | B138: EMAMILTD | C138: 267.25 | D138: 266.02 | E138: 247.13 | F138: 227.02 | G138: 208.13 | H138: 286.13 | I138: 305.02 | J138: 325.13 | K138: 284.9 | L138: 245.9 | M138: 225.07454
A139: 130 | B139: ENDURANCE | C139: 1129.45 | D139: 1133.52 | E139: 1113.93 | F139: 1098.42 | G139: 1078.83 | H139: 1149.03 | I139: 1168.62 | J139: 1184.13 | K139: 1153.1 | L139: 1118 | M139: 0.32213
A140: 131 | B140: ENGINERSIN | C140: 116.6 | D140: 117.23 | E140: 115.47 | F140: 114.33 | G140: 112.57 | H140: 118.37 | I140: 120.13 | J140: 121.27 | K140: 119 | L140: 116.1 | M140: 11.80224
A141: 132 | B141: EQUITAS | C141: 124.7 | D141: 125.83 | E141: 122.07 | F141: 119.43 | G141: 115.67 | H141: 128.47 | I141: 132.23 | J141: 134.87 | K141: 129.6 | L141: 123.2 | M141: 53.28416
A142: 133 | B142: ERIS | C142: 508.8 | D142: 510.47 | E142: 501.48 | F142: 494.17 | G142: 485.18 | H142: 517.78 | I142: 526.77 | J142: 534.08 | K142: 519.45 | L142: 503.15 | M142: 0.06207
A143: 134 | B143: ESCORTS | C143: 551.65 | D143: 555.00 | E143: 544.75 | F143: 537.85 | G143: 527.60 | H143: 561.90 | I143: 572.15 | J143: 579.05 | K143: 565.25 | L143: 548.1 | M143: 20.76143
A144: 135 | B144: ESSELPACK | C144: 129.6 | D144: 129.70 | E144: 129.05 | F144: 128.50 | G144: 127.85 | H144: 130.25 | I144: 130.90 | J144: 131.45 | K144: 130.35 | L144: 129.15 | M144: 0.50264
A145: 136 | B145: EXIDEIND | C145: 199.65 | D145: 200.85 | E145: 197.45 | F145: 195.25 | G145: 191.85 | H145: 203.05 | I145: 206.45 | J145: 208.65 | K145: 204.25 | L145: 198.65 | M145: 10.85
A146: 137 | B146: FDC | C146: 175 | D146: 175.92 | E146: 172.78 | F146: 170.57 | G146: 167.43 | H146: 178.13 | I146: 181.27 | J146: 183.48 | K146: 179.05 | L146: 173.7 | M146: 0.36928
A147: 138 | B147: FEDERALBNK | C147: 102.9 | D147: 102.72 | E147: 101.83 | F147: 100.77 | G147: 99.88 | H147: 103.78 | I147: 104.67 | J147: 105.73 | K147: 103.6 | L147: 101.65 | M147: 53.4727
A148: 139 | B148: FINEORG | C148: 1343.55 | D148: 1348.58 | E148: 1316.32 | F148: 1289.08 | G148: 1256.82 | H148: 1375.82 | I148: 1408.08 | J148: 1435.32 | K148: 1380.85 | L148: 1321.35 | M148: 0.25725
A149: 140 | B149: FINCABLES | C149: 441.15 | D149: 441.80 | E149: 434.60 | F149: 428.05 | G149: 420.85 | H149: 448.35 | I149: 455.55 | J149: 462.10 | K149: 449 | L149: 435.25 | M149: 0.24762
A150: 141 | B150: FINPIPE | C150: 500.8 | D150: 505.77 | E150: 495.03 | F150: 489.27 | G150: 478.53 | H150: 511.53 | I150: 522.27 | J150: 528.03 | K150: 516.5 | L150: 500 | M150: 0.09749
A151: 142 | B151: FSL | C151: 49.85 | D151: 49.60 | E151: 48.50 | F151: 47.15 | G151: 46.05 | H151: 50.95 | I151: 52.05 | J151: 53.40 | K151: 50.7 | L151: 48.25 | M151: 15.92509
A152: 143 | B152: FORTIS | C152: 129.25 | D152: 128.90 | E152: 127.85 | F152: 126.45 | G152: 125.40 | H152: 130.30 | I152: 131.35 | J152: 132.75 | K152: 129.95 | L152: 127.5 | M152: 4.90926
A153: 144 | B153: FCONSUMER | C153: 39.4 | D153: 39.27 | E153: 38.73 | F153: 38.07 | G153: 37.53 | H153: 39.93 | I153: 40.47 | J153: 41.13 | K153: 39.8 | L153: 38.6 | M153: 6.6969
A154: 145 | B154: FLFL | C154: 461.45 | D154: 459.03 | E154: 448.57 | F154: 435.68 | G154: 425.22 | H154: 471.92 | I154: 482.38 | J154: 495.27 | K154: 469.5 | L154: 446.15 | M154: 1.23932
A155: 146 | B155: FRETAIL | C155: 469.1 | D155: 471.22 | E155: 463.88 | F155: 458.67 | G155: 451.33 | H155: 476.43 | I155: 483.77 | J155: 488.98 | K155: 478.55 | L155: 466 | M155: 1.80023
A156: 147 | B156: GAIL | C156: 306.7 | D156: 308.32 | E156: 304.13 | F156: 301.57 | G156: 297.38 | H156: 310.88 | I156: 315.07 | J156: 317.63 | K156: 312.5 | L156: 305.75 | M156: 33.2924
A157: 148 | B157: GEPIL | C157: 828.9 | D157: 833.60 | E157: 818.40 | F157: 807.90 | G157: 792.70 | H157: 844.10 | I157: 859.30 | J157: 869.80 | K157: 848.8 | L157: 823.1 | M157: 0.04917
A158: 149 | B158: GET&D | C158: 232.45 | D158: 234.15 | E158: 229.50 | F158: 226.55 | G158: 221.90 | H158: 237.10 | I158: 241.75 | J158: 244.70 | K158: 238.8 | L158: 231.2 | M158: 0.1229
A159: 150 | B159: GHCL | C159: 244.85 | D159: 245.30 | E159: 242.55 | F159: 240.25 | G159: 237.50 | H159: 247.60 | I159: 250.35 | J159: 252.65 | K159: 248.05 | L159: 243 | M159: 0.80106
A160: 151 | B160: GMRINFRA | C160: 15.35 | D160: 15.40 | E160: 15.20 | F160: 15.05 | G160: 14.85 | H160: 15.55 | I160: 15.75 | J160: 15.90 | K160: 15.6 | L160: 15.25 | M160: 55.55927
A161: 152 | B161: GALAXYSURF | C161: 1196.3 | D161: 1198.45 | E161: 1180.90 | F161: 1165.50 | G161: 1147.95 | H161: 1213.85 | I161: 1231.40 | J161: 1246.80 | K161: 1216 | L161: 1183.05 | M161: 0.02359
A162: 153 | B162: GDL | C162: 130.25 | D162: 131.57 | E162: 128.23 | F162: 126.22 | G162: 122.88 | H162: 133.58 | I162: 136.92 | J162: 138.93 | K162: 134.9 | L162: 129.55 | M162: 0.42609
A163: 154 | B163: GAYAPROJ | C163: 158.6 | D163: 159.03 | E163: 157.07 | F163: 155.53 | G163: 153.57 | H163: 160.57 | I163: 162.53 | J163: 164.07 | K163: 161 | L163: 157.5 | M163: 0.05178
A164: 155 | B164: GICRE | C164: 205.8 | D164: 206.45 | E164: 204.80 | F164: 203.80 | G164: 202.15 | H164: 207.45 | I164: 209.10 | J164: 210.10 | K164: 208.1 | L164: 205.45 | M164: 0.60195
A165: 156 | B165: GILLETTE | C165: 7404.2 | D165: 7424.05 | E165: 7353.15 | F165: 7302.10 | G165: 7231.20 | H165: 7475.10 | I165: 7546.00 | J165: 7597.05 | K165: 7494.95 | L165: 7373 | M165: 0.01107
A166: 157 | B166: GSKCONS | C166: 7535.35 | D166: 7547.23 | E166: 7489.52 | F166: 7443.68 | G166: 7385.97 | H166: 7593.07 | I166: 7650.78 | J166: 7696.62 | K166: 7604.95 | L166: 7501.4 | M166: 0.16141
A167: 158 | B167: GLAXO | C167: 1229.85 | D167: 1232.65 | E167: 1225.30 | F167: 1220.75 | G167: 1213.40 | H167: 1237.20 | I167: 1244.55 | J167: 1249.10 | K167: 1240 | L167: 1228.1 | M167: 0.13786
A168: 159 | B168: GLENMARK | C168: 461 | D168: 471.67 | E168: 448.33 | F168: 435.67 | G168: 412.33 | H168: 484.33 | I168: 507.67 | J168: 520.33 | K168: 495 | L168: 459 | M168: 80.38743
A169: 160 | B169: GODFRYPHLP | C169: 866.95 | D169: 875.22 | E169: 851.73 | F169: 836.52 | G169: 813.03 | H169: 890.43 | I169: 913.92 | J169: 929.13 | K169: 898.7 | L169: 860 | M169: 1.56226
A170: 161 | B170: GODREJAGRO | C170: 505.15 | D170: 505.40 | E170: 500.75 | F170: 496.35 | G170: 491.70 | H170: 509.80 | I170: 514.45 | J170: 518.85 | K170: 510.05 | L170: 501 | M170: 0.3208
A171: 162 | B171: GODREJCP | C171: 674.2 | D171: 673.07 | E171: 669.13 | F171: 664.07 | G171: 660.13 | H171: 678.13 | I171: 682.07 | J171: 687.13 | K171: 677 | L171: 668 | M171: 3.51635
A172: 163 | B172: GODREJIND | C172: 477.75 | D172: 477.67 | E172: 470.33 | F172: 462.92 | G172: 455.58 | H172: 485.08 | I172: 492.42 | J172: 499.83 | K172: 485 | L172: 470.25 | M172: 7.32376
A173: 164 | B173: GODREJPROP | C173: 960.45 | D173: 962.52 | E173: 949.58 | F173: 938.72 | G173: 925.78 | H173: 973.38 | I173: 986.32 | J173: 997.18 | K173: 975.45 | L173: 951.65 | M173: 2.52657
A174: 165 | B174: GRANULES | C174: 95.7 | D174: 95.07 | E174: 93.63 | F174: 91.57 | G174: 90.13 | H174: 97.13 | I174: 98.57 | J174: 100.63 | K174: 96.5 | L174: 93 | M174: 4.96554
A175: 166 | B175: GRAPHITE | C175: 338.55 | D175: 340.13 | E175: 335.37 | F175: 332.18 | G175: 327.42 | H175: 343.32 | I175: 348.08 | J175: 351.27 | K175: 344.9 | L175: 336.95 | M175: 12.05548
A176: 167 | B176: GRASIM | C176: 886.65 | D176: 891.98 | E176: 874.67 | F176: 862.68 | G176: 845.37 | H176: 903.97 | I176: 921.28 | J176: 933.27 | K176: 909.3 | L176: 880 | M176: 10.69347
A177: 168 | B177: GESHIP | C177: 266.05 | D177: 266.35 | E177: 262.70 | F177: 259.35 | G177: 255.70 | H177: 269.70 | I177: 273.35 | J177: 276.70 | K177: 270 | L177: 263 | M177: 0.38091
A178: 169 | B178: GREAVESCOT | C178: 146.3 | D178: 146.97 | E178: 144.78 | F178: 143.27 | G178: 141.08 | H178: 148.48 | I178: 150.67 | J178: 152.18 | K178: 149.15 | L178: 145.45 | M178: 3.25826
A179: 170 | B179: GRINDWELL | C179: 562.1 | D179: 564.02 | E179: 556.08 | F179: 550.07 | G179: 542.13 | H179: 570.03 | I179: 577.97 | J179: 583.98 | K179: 571.95 | L179: 558 | M179: 0.31794
A180: 171 | B180: GRUH | C180: 278 | D180: 280.03 | E180: 274.77 | F180: 271.53 | G180: 266.27 | H180: 283.27 | I180: 288.53 | J180: 291.77 | K180: 285.3 | L180: 276.8 | M180: 5.62407
A181: 172 | B181: GUJALKALI | C181: 500.5 | D181: 502.52 | E181: 497.98 | F181: 495.47 | G181: 490.93 | H181: 505.03 | I181: 509.57 | J181: 512.08 | K181: 507.05 | L181: 500 | M181: 0.11566
A182: 173 | B182: GUJFLUORO | C182: 994.65 | D182: 996.48 | E182: 985.32 | F182: 975.98 | G182: 964.82 | H182: 1005.82 | I182: 1016.98 | J182: 1026.32 | K182: 1007.65 | L182: 987.15 | M182: 0.29201
A183: 174 | B183: GUJGASLTD | C183: 168.65 | D183: 170.90 | E183: 165.00 | F183: 161.35 | G183: 155.45 | H183: 174.55 | I183: 180.45 | J183: 184.10 | K183: 176.8 | L183: 167.25 | M183: 2.79717
A184: 175 | B184: GMDCLTD | C184: 74.5 | D184: 74.62 | E184: 73.68 | F184: 72.87 | G184: 71.93 | H184: 75.43 | I184: 76.37 | J184: 77.18 | K184: 75.55 | L184: 73.8 | M184: 0.48585
A185: 176 | B185: GNFC | C185: 240.25 | D185: 241.92 | E185: 237.43 | F185: 234.62 | G185: 230.13 | H185: 244.73 | I185: 249.22 | J185: 252.03 | K185: 246.4 | L185: 239.1 | M185: 1.59637
A186: 177 | B186: GPPL | C186: 84.65 | D186: 84.70 | E186: 83.45 | F186: 82.25 | G186: 81.00 | H186: 85.90 | I186: 87.15 | J186: 88.35 | K186: 85.95 | L186: 83.5 | M186: 2.75901
A187: 178 | B187: GSFC | C187: 91.95 | D187: 93.00 | E187: 90.65 | F187: 89.35 | G187: 87.00 | H187: 94.30 | I187: 96.65 | J187: 97.95 | K187: 95.35 | L187: 91.7 | M187: 10.11962
A188: 179 | B188: GSPL | C188: 184 | D188: 185.30 | E188: 181.20 | F188: 178.40 | G188: 174.30 | H188: 188.10 | I188: 192.20 | J188: 195.00 | K188: 189.4 | L188: 182.5 | M188: 0.85952
A189: 180 | B189: GULFOILLUB | C189: 857.35 | D189: 861.77 | E189: 850.58 | F189: 843.82 | G189: 832.63 | H189: 868.53 | I189: 879.72 | J189: 886.48 | K189: 872.95 | L189: 855 | M189: 0.04545
A190: 181 | B190: HEG | C190: 1368.4 | D190: 1369.55 | E190: 1340.10 | F190: 1311.80 | G190: 1282.35 | H190: 1397.85 | I190: 1427.30 | J190: 1455.60 | K190: 1399 | L190: 1341.25 | M190: 2.19467
A191: 182 | B191: HCLTECH | C191: 1077.9 | D191: 1076.68 | E191: 1069.32 | F191: 1060.73 | G191: 1053.37 | H191: 1085.27 | I191: 1092.63 | J191: 1101.22 | K191: 1084.05 | L191: 1068.1 | M191: 6.75052
A192: 183 | B192: HDFCAMC | C192: 1933.85 | D192: 1916.28 | E192: 1887.57 | F192: 1841.28 | G192: 1812.57 | H192: 1962.57 | I192: 1991.28 | J192: 2037.57 | K192: 1945 | L192: 1870 | M192: 2.75168
A193: 184 | B193: HDFCBANK | C193: 2417.95 | D193: 2419.52 | E193: 2408.43 | F193: 2398.92 | G193: 2387.83 | H193: 2429.03 | I193: 2440.12 | J193: 2449.63 | K193: 2430.6 | L193: 2410 | M193: 17.2875
A194: 185 | B194: HDFCLIFE | C194: 440.1 | D194: 439.32 | E194: 436.38 | F194: 432.67 | G194: 429.73 | H194: 443.03 | I194: 445.97 | J194: 449.68 | K194: 442.25 | L194: 435.6 | M194: 4.7902
A195: 186 | B195: HATHWAY | C195: 24.55 | D195: 24.18 | E195: 23.37 | F195: 22.18 | G195: 21.37 | H195: 25.37 | I195: 26.18 | J195: 27.37 | K195: 25 | L195: 23 | M195: 0.99717
A196: 187 | B196: HATSUN | C196: 714.35 | D196: 711.40 | E196: 705.95 | F196: 697.55 | G196: 692.10 | H196: 719.80 | I196: 725.25 | J196: 733.65 | K196: 716.85 | L196: 703 | M196: 0.03582
A197: 188 | B197: HAVELLS | C197: 785.4 | D197: 785.92 | E197: 780.48 | F197: 775.57 | G197: 770.13 | H197: 790.83 | I197: 796.27 | J197: 801.18 | K197: 791.35 | L197: 781 | M197: 7.70379
A198: 189 | B198: HEIDELBERG | C198: 190.75 | D198: 189.12 | E198: 186.63 | F198: 182.52 | G198: 180.03 | H198: 193.23 | I198: 195.72 | J198: 199.83 | K198: 191.6 | L198: 185 | M198: 1.47373
A199: 190 | B199: HERITGFOOD | C199: 411.2 | D199: 408.25 | E199: 403.95 | F199: 396.70 | G199: 392.40 | H199: 415.50 | I199: 419.80 | J199: 427.05 | K199: 412.55 | L199: 401 | M199: 0.11605
A200: 191 | B200: HEROMOTOCO | C200: 2586.25 | D200: 2577.65 | E200: 2549.30 | F200: 2512.35 | G200: 2484.00 | H200: 2614.60 | I200: 2642.95 | J200: 2679.90 | K200: 2606 | L200: 2540.7 | M200: 7.25058
A201: 192 | B201: HEXAWARE | C201: 394.2 | D201: 398.63 | E201: 387.57 | F201: 380.93 | G201: 369.87 | H201: 405.27 | I201: 416.33 | J201: 422.97 | K201: 409.7 | L201: 392 | M201: 23.70427
A202: 193 | B202: HFCL | C202: 19.65 | D202: 19.73 | E202: 19.42 | F202: 19.18 | G202: 18.87 | H202: 19.97 | I202: 20.28 | J202: 20.52 | K202: 20.05 | L202: 19.5 | M202: 11.28978
A203: 194 | B203: HSCL | C203: 104.65 | D203: 105.27 | E203: 103.48 | F203: 102.32 | G203: 100.53 | H203: 106.43 | I203: 108.22 | J203: 109.38 | K203: 107.05 | L203: 104.1 | M203: 2.54254
A204: 195 | B204: HIMATSEIDE | C204: 157.8 | D204: 159.55 | E204: 154.55 | F204: 151.30 | G204: 146.30 | H204: 162.80 | I204: 167.80 | J204: 171.05 | K204: 164.55 | L204: 156.3 | M204: 0.95478
A205: 196 | B205: HINDALCO | C205: 198.2 | D205: 199.32 | E205: 195.38 | F205: 192.57 | G205: 188.63 | H205: 202.13 | I205: 206.07 | J205: 208.88 | K205: 203.25 | L205: 196.5 | M205: 104.64941
A206: 197 | B206: HAL | C206: 700.7 | D206: 703.20 | E206: 696.40 | F206: 692.10 | G206: 685.30 | H206: 707.50 | I206: 714.30 | J206: 718.60 | K206: 710 | L206: 698.9 | M206: 0.0787
... 320 more rows

Sheet Bulk Deals
E6: Back To Main Page
A7: Subject : | B7: BULK DEAL | D7: =Main!B10 -> 2019-06-25
A9: Date | B9: Scrip code | C9: Scrip Name | D9: Client Name | E9: Buy / Sell | F9: Quantity Traded | G9: Trade Price / Wt.Avg.trade price | H9: Exchange
A10: 2019-06-24 | B10: 530245 | C10: ARYAMAN | D10: VIPUL HARIDAS THAKKAR | E10: SELL | F10: 70,000 | G10: 48.00 | H10: BSE
A11: 2019-06-24 | B11: 537766 | C11: BCP | D11: KAMALESH SHANTILALJI JAIN | E11: BUY | F11: 366,872 | G11: 39.41 | H11: BSE
A12: 2019-06-24 | B12: 537766 | C12: BCP | D12: BON LON SECURITIES LTD | E12: SELL | F12: 1,000,000 | G12: 40.29 | H12: BSE
A13: 2019-06-24 | B13: 540789 | C13: DNAMEDIA | D13: FINDSTONE INTERNET P LTD | E13: BUY | F13: 1,000,000 | G13: 0.59 | H13: BSE
A14: 2019-06-24 | B14: 540789 | C14: DNAMEDIA | D14: VINAY R SOMANI | E14: SELL | F14: 1,000,000 | G14: 0.59 | H14: BSE
A15: 2019-06-24 | B15: 531162 | C15: EMAMILTD | D15: AMITABH GOENKA | E15: SELL | F15: 3,000,000 | G15: 274.77 | H15: BSE
A16: 2019-06-24 | B16: 531162 | C16: EMAMILTD | D16: RAVIRAJ VINIYOG PRIVATE LIMITED | E16: SELL | F16: 3,640,000 | G16: 270 | H16: BSE
A17: 2019-06-24 | B17: 531162 | C17: EMAMILTD | D17: SURAJ VINIYOG PVT LTD | E17: SELL | F17: 3,640,000 | G17: 270.00 | H17: BSE
A18: 2019-06-24 | B18: 531162 | C18: EMAMILTD | D18: PRABHAKAR VINIYOG PRIVATE LIMITED | E18: SELL | F18: 3,640,000 | G18: 272.00 | H18: BSE
A19: 2019-06-24 | B19: 531162 | C19: EMAMILTD | D19: TMT VINIYOGAN LIMITED | E19: SELL | F19: 6,000,000 | G19: 271.68 | H19: BSE
A20: 2019-06-24 | B20: 531162 | C20: EMAMILTD | D20: BHANU VYAPAAR PRIVATE LIMITED | E20: SELL | F20: 7,280,000 | G20: 270.15 | H20: BSE
A21: 2019-06-24 | B21: 531162 | C21: EMAMILTD | D21: DIWAKAR VINIYOG PVT LTD | E21: SELL | F21: 9,100,000 | G21: 270.00 | H21: BSE
A22: 2019-06-24 | B22: 531162 | C22: EMAMILTD | D22: SUNTRACK COMMERCE PRIVATELIMITED | E22: SELL | F22: 9,100,000 | G22: 272.00 | H22: BSE
A23: 2019-06-24 | B23: 531162 | C23: EMAMILTD | D23: SBI MUTUAL FUND | E23: BUY | F23: 7,116,000 | G23: 270 | H23: BSE
A24: 2019-06-24 | B24: 531162 | C24: EMAMILTD | D24: SBI MUTUAL FUND | E24: BUY | F24: 2,600,000 | G24: 270.00 | H24: BSE
A25: 2019-06-24 | B25: 531162 | C25: EMAMILTD | D25: SBI MUTUAL FUND | E25: BUY | F25: 4,000,000 | G25: 270 | H25: BSE
A26: 2019-06-24 | B26: 531739 | C26: GENNEX | D26: IVORY CONSULTANTS PVT LTD | E26: BUY | F26: 1,300,000 | G26: 3.60 | H26: BSE
A27: 2019-06-24 | B27: 531739 | C27: GENNEX | D27: REGIUS SUPPLIERS PRIVATE LIMITED | E27: BUY | F27: 700,000 | G27: 3.6 | H27: BSE
A28: 2019-06-24 | B28: 531739 | C28: GENNEX | D28: REGENT CAPITAL PRIVATE LIMITED | E28: BUY | F28: 31,169 | G28: 3.5 | H28: BSE
A29: 2019-06-24 | B29: 531739 | C29: GENNEX | D29: REGENT CAPITAL PRIVATE LIMITED | E29: SELL | F29: 1,678,781 | G29: 3.6 | H29: BSE
A30: 2019-06-24 | B30: 530663 | C30: GOYALASS | D30: VISHAL VIJAY SHAH | E30: BUY | F30: 324,767 | G30: 2.57 | H30: BSE
A31: 2019-06-24 | B31: 542682 | C31: HARISH | D31: SHARAD RAMANLAL DESAI | E31: BUY | F31: 29,102 | G31: 59.17 | H31: BSE
A32: 2019-06-24 | B32: 532617 | C32: JETAIRWAYS | D32: CROSSLAND TRADING COMPANY | E32: BUY | F32: 1,329,670 | G32: 74.72 | H32: BSE
A33: 2019-06-24 | B33: 532617 | C33: JETAIRWAYS | D33: CROSSLAND TRADING COMPANY | E33: SELL | F33: 1,411,404 | G33: 74.81 | H33: BSE
A34: 2019-06-24 | B34: 532617 | C34: JETAIRWAYS | D34: TOWER RESEARCH CAPITAL MARKETS INDIA PRIVATE LIMITED | E34: BUY | F34: 723,021 | G34: 74.48 | H34: BSE
A35: 2019-06-24 | B35: 532617 | C35: JETAIRWAYS | D35: TOWER RESEARCH CAPITAL MARKETS INDIA PRIVATE LIMITED | E35: SELL | F35: 723,021 | G35: 74.53 | H35: BSE
A36: 2019-06-24 | B36: 503772 | C36: MODWOOL | D36: LIFE INSURANCE CORPORATION OF INDIA | E36: SELL | F36: 5,000 | G36: 13.35 | H36: BSE
A37: 2019-06-24 | B37: 540243 | C37: NEWLIGHT | D37: MANISH NITIN THAKUR | E37: SELL | F37: 15,324 | G37: 39.77 | H37: BSE
A38: 2019-06-24 | B38: 540243 | C38: NEWLIGHT | D38: SAINT GLOBAL MARKETS LLP | E38: BUY | F38: 14,942 | G38: 40.49 | H38: BSE
A39: 2019-06-24 | B39: 530733 | C39: NOVAPUB | D39: DIPIKA PIYUSHBHAI MODI | E39: BUY | F39: 16,500 | G39: 13.36 | H39: BSE
A40: 2019-06-24 | B40: 530733 | C40: NOVAPUB | D40: LEENA NITIL MISTRY | E40: BUY | F40: 25,000 | G40: 13.36 | H40: BSE
A41: 2019-06-24 | B41: 530733 | C41: NOVAPUB | D41: RAJAN TANDON | E41: SELL | F41: 35,000 | G41: 13.36 | H41: BSE
A42: 2019-06-24 | B42: 539814 | C42: RADHEY | D42: SANDEEP OMPRAKASH SHARMA | E42: BUY | F42: 20,000 | G42: 16.95 | H42: BSE
A43: 2019-06-24 | B43: 540696 | C43: RUCHINDLTD | D43: DIVYAKANDA | E43: BUY | F43: 10,450 | G43: 21.05 | H43: BSE
A44: 2019-06-24 | B44: 540693 | C44: SHISHIND | D44: PRABHULAL LALLUBHAI PAREKH | E44: BUY | F44: 72,000 | G44: 39.68 | H44: BSE
A45: 2019-06-24 | B45: 540693 | C45: SHISHIND | D45: BEELINE BROKING LIMITED | E45: SELL | F45: 72,000 | G45: 39.68 | H45: BSE
A46: 2019-06-24 | B46: 540736 | C46: SIDDH | D46: PURAN CHAND CHOUDHARY | E46: SELL | F46: 124000 | G46: 28.75 | H46: BSE
A47: 2019-06-24 | B47: 540736 | C47: SIDDH | D47: KAPIL RAHUL KASBE | E47: BUY | F47: 104000 | G47: 28.75 | H47: BSE
A48: 2019-06-24 | B48: 539026 | C48: SSPNFIN | D48: RUSHIL SHAILESH PANDYA | E48: BUY | F48: 18000 | G48: 32 | H48: BSE
A49: 2019-06-24 | B49: 539026 | C49: SSPNFIN | D49: CHANDU KESHRIMAL JAIN | E49: SELL | F49: 12000 | G49: 33 | H49: BSE
A50: 2019-06-24 | B50: 539026 | C50: SSPNFIN | D50: NIKITA ALPESH JAIN | E50: SELL | F50: 18000 | G50: 32 | H50: BSE
A51: 2019-06-24 | B51: 540738 | C51: STL | D51: EMRALD COMMERCIAL LIMITED | E51: BUY | F51: 23000 | G51: 154.46 | H51: BSE
A52: 2019-06-24 | B52: 540738 | C52: STL | D52: OVERSKUD MULTI ASSET MANAGEMENT PRIVATE LIMITED | E52: SELL | F52: 22000 | G52: 154.5 | H52: BSE
A53: 2019-06-24 | B53: 532070 | C53: SUPRBPA | D53: HITESHBHAI MISTRI | E53: BUY | F53: 40000 | G53: 16.47 | H53: BSE
A54: 2019-06-24 | B54: 532070 | C54: SUPRBPA | D54: HITESHBHAI MISTRI | E54: SELL | F54: 3 | G54: 16.05 | H54: BSE
A55: 2019-06-24 | B55: 526957 | C55: UDL | D55: SUPER BAND PRIVATE LIMITED | E55: SELL | F55: 842106 | G55: 22.15 | H55: BSE
A56: 2019-06-24 | B56: 539402 | C56: VAL | D56: EMRALD COMMERCIAL LIMITED | E56: BUY | F56: 72000 | G56: 20 | H56: BSE
A57: 2019-06-24 | B57: 539402 | C57: VAL | D57: OVERSKUD MULTI ASSET MANAGEMENT PRIVATE LIMITED | E57: SELL | F57: 72000 | G57: 20 | H57: BSE
A58: 2019-06-24 | B58: 538598 | C58: VISHAL | D58: VEENA INVESTMENTS PRIVATE LIMITED | E58: BUY | F58: 330015 | G58: 334 | H58: BSE
A59: 2019-06-24 | B59: DHFL | C59: Dewan Housing Fin Corp | D59: CROSSLAND TRADING CO | E59: BUY | F59: 2287122 | G59: 77.6 | H59: NSE
A60: 2019-06-24 | B60: DHFL | C60: Dewan Housing Fin Corp | D60: TOWER RESEARCH CAPITAL MARKETS INDIA PRIVATE LIMITED | E60: BUY | F60: 2549860 | G60: 76.71 | H60: NSE
A61: 2019-06-24 | B61: DUCON | C61: Ducon Infratech Ltd | D61: MARFATIA NISHIL SURENDRA | E61: BUY | F61: 632925 | G61: 8.2 | H61: NSE
A62: 2019-06-24 | B62: JETAIRWAYS | C62: Jet Airways (India) Ltd. | D62: PURITY TRADEMAX LLP | E62: BUY | F62: 1548167 | G62: 74.03 | H62: NSE
A63: 2019-06-24 | B63: JETAIRWAYS | C63: Jet Airways (India) Ltd. | D63: VAIBHAV STOCK AND DERIVATIVES BROKING PRIVATE LIMITED | E63: BUY | F63: 1701843 | G63: 73.81 | H63: NSE
A64: 2019-06-24 | B64: JETAIRWAYS | C64: Jet Airways (India) Ltd. | D64: N.K.SECURITIES | E64: BUY | F64: 837544 | G64: 75.38 | H64: NSE
A65: 2019-06-24 | B65: JETAIRWAYS | C65: Jet Airways (India) Ltd. | D65: GENUINE STOCK BROKERS PVT. LTD. | E65: BUY | F65: 1405550 | G65: 73.8 | H65: NSE
A66: 2019-06-24 | B66: JETAIRWAYS | C66: Jet Airways (India) Ltd. | D66: SIGMAQUANT TECHNOLOGIES PRIVATE LTD | E66: BUY | F66: 960622 | G66: 73.7 | H66: NSE
A67: 2019-06-24 | B67: JETAIRWAYS | C67: Jet Airways (India) Ltd. | D67: ALPHAGREP SECURITIES PRIVATE LIMITED | E67: BUY | F67: 1177875 | G67: 73.78 | H67: NSE
A68: 2019-06-24 | B68: JETAIRWAYS | C68: Jet Airways (India) Ltd. | D68: UCB DEVELOPERS LLP | E68: BUY | F68: 1078322 | G68: 73.91 | H68: NSE
A69: 2019-06-24 | B69: JETAIRWAYS | C69: Jet Airways (India) Ltd. | D69: CROSSLAND TRADING CO | E69: BUY | F69: 1778152 | G69: 74.29 | H69: NSE
A70: 2019-06-24 | B70: JETAIRWAYS | C70: Jet Airways (India) Ltd. | D70: TOWER RESEARCH CAPITAL MARKETS INDIA PRIVATE LIMITED | E70: BUY | F70: 3137152 | G70: 73.78 | H70: NSE
A71: 2019-06-24 | B71: JISLJALEQS | C71: Jain Irrigation Systems L | D71: TOWER RESEARCH CAPITAL MARKETS INDIA PRIVATE LIMITED | E71: BUY | F71: 5908113 | G71: 26.82 | H71: NSE
A72: 2019-06-24 | B72: JISLJALEQS | C72: Jain Irrigation Systems L | D72: ADROIT FINANCIAL SERVICES PVT LTD | E72: BUY | F72: 3504970 | G72: 27.79 | H72: NSE
A73: 2019-06-24 | B73: PCJEWELLER | C73: PC Jeweller Ltd | D73: TOWER RESEARCH CAPITAL MARKETS INDIA PRIVATE LIMITED | E73: BUY | F73: 4248590 | G73: 52.43 | H73: NSE
A74: 2019-06-24 | B74: RELCAPITAL | C74: Reliance Capital Limited | D74: TOWER RESEARCH CAPITAL MARKETS INDIA PRIVATE LIMITED | E74: BUY | F74: 2533724 | G74: 69.18 | H74: NSE
A75: 2019-06-24 | B75: RELCAPITAL | C75: Reliance Capital Limited | D75: ALPHAGREP SECURITIES PRIVATE LIMITED | E75: BUY | F75: 1408017 | G75: 69.35 | H75: NSE
A76: 2019-06-24 | B76: RELINFRA | C76: Reliance Infrastructu Ltd | D76: TOWER RESEARCH CAPITAL MARKETS INDIA PRIVATE LIMITED | E76: BUY | F76: 2614281 | G76: 57.16 | H76: NSE
A77: 2019-06-24 | B77: RELINFRA | C77: Reliance Infrastructu Ltd | D77: ALPHAGREP SECURITIES PRIVATE LIMITED | E77: BUY | F77: 1595704 | G77: 57 | H77: NSE
A78: 2019-06-24 | B78: DHFL | C78: Dewan Housing Fin Corp | D78: TOWER RESEARCH CAPITAL MARKETS INDIA PRIVATE LIMITED | E78: SELL | F78: 2549860 | G78: 77.07 | H78: NSE
A79: 2019-06-24 | B79: DHFL | C79: Dewan Housing Fin Corp | D79: CROSSLAND TRADING CO | E79: SELL | F79: 2279547 | G79: 77.63 | H79: NSE
A80: 2019-06-24 | B80: DUCON | C80: Ducon Infratech Ltd | D80: MARFATIA NISHIL SURENDRA | E80: SELL | F80: 632925 | G80: 8.73 | H80: NSE
A81: 2019-06-24 | B81: JETAIRWAYS | C81: Jet Airways (India) Ltd. | D81: TOWER RESEARCH CAPITAL MARKETS INDIA PRIVATE LIMITED | E81: SELL | F81: 3137152 | G81: 73.61 | H81: NSE
A82: 2019-06-24 | B82: JETAIRWAYS | C82: Jet Airways (India) Ltd. | D82: VAIBHAV STOCK AND DERIVATIVES BROKING PRIVATE LIMITED | E82: SELL | F82: 1701843 | G82: 73.85 | H82: NSE
A83: 2019-06-24 | B83: JETAIRWAYS | C83: Jet Airways (India) Ltd. | D83: PURITY TRADEMAX LLP | E83: SELL | F83: 1548167 | G83: 74.11 | H83: NSE
A84: 2019-06-24 | B84: JETAIRWAYS | C84: Jet Airways (India) Ltd. | D84: N.K.SECURITIES | E84: SELL | F84: 837544 | G84: 75.42 | H84: NSE
A85: 2019-06-24 | B85: JETAIRWAYS | C85: Jet Airways (India) Ltd. | D85: UCB DEVELOPERS LLP | E85: SELL | F85: 1078322 | G85: 74.11 | H85: NSE
A86: 2019-06-24 | B86: JETAIRWAYS | C86: Jet Airways (India) Ltd. | D86: SIGMAQUANT TECHNOLOGIES PRIVATE LTD | E86: SELL | F86: 960622 | G86: 73.75 | H86: NSE
A87: 2019-06-24 | B87: JETAIRWAYS | C87: Jet Airways (India) Ltd. | D87: ALPHAGREP SECURITIES PRIVATE LIMITED | E87: SELL | F87: 1177875 | G87: 73.92 | H87: NSE
A88: 2019-06-24 | B88: JETAIRWAYS | C88: Jet Airways (India) Ltd. | D88: CROSSLAND TRADING CO | E88: SELL | F88: 1696418 | G88: 74.29 | H88: NSE
A89: 2019-06-24 | B89: JETAIRWAYS | C89: Jet Airways (India) Ltd. | D89: GENUINE STOCK BROKERS PVT. LTD. | E89: SELL | F89: 1405550 | G89: 73.85 | H89: NSE
A90: 2019-06-24 | B90: JISLJALEQS | C90: Jain Irrigation Systems L | D90: ADROIT FINANCIAL SERVICES PVT LTD | E90: SELL | F90: 3465422 | G90: 27.81 | H90: NSE
A91: 2019-06-24 | B91: JISLJALEQS | C91: Jain Irrigation Systems L | D91: TOWER RESEARCH CAPITAL MARKETS INDIA PRIVATE LIMITED | E91: SELL | F91: 5908113 | G91: 26.87 | H91: NSE
A92: 2019-06-24 | B92: PCJEWELLER | C92: PC Jeweller Ltd | D92: CARLINA LTD | E92: SELL | F92: 2211000 | G92: 52.17 | H92: NSE
A93: 2019-06-24 | B93: PCJEWELLER | C93: PC Jeweller Ltd | D93: TOWER RESEARCH CAPITAL MARKETS INDIA PRIVATE LIMITED | E93: SELL | F93: 4248590 | G93: 52.74 | H93: NSE
A94: 2019-06-24 | B94: PCJEWELLER | C94: PC Jeweller Ltd | D94: IDRIA LIMITED | E94: SELL | F94: 2199000 | G94: 52.18 | H94: NSE
A95: 2019-06-24 | B95: RELCAPITAL | C95: Reliance Capital Limited | D95: ALPHAGREP SECURITIES PRIVATE LIMITED | E95: SELL | F95: 1407936 | G95: 69.37 | H95: NSE
A96: 2019-06-24 | B96: RELCAPITAL | C96: Reliance Capital Limited | D96: TOWER RESEARCH CAPITAL MARKETS INDIA PRIVATE LIMITED | E96: SELL | F96: 2533724 | G96: 69.05 | H96: NSE
A97: 2019-06-24 | B97: RELINFRA | C97: Reliance Infrastructu Ltd | D97: ALPHAGREP SECURITIES PRIVATE LIMITED | E97: SELL | F97: 1594317 | G97: 57.02 | H97: NSE
A98: 2019-06-24 | B98: RELINFRA | C98: Reliance Infrastructu Ltd | D98: TOWER RESEARCH CAPITAL MARKETS INDIA PRIVATE LIMITED | E98: SELL | F98: 2614281 | G98: 57.24 | H98: NSE

Sheet Call Tracker (Equity & F&O)
M5: Back To Main Page
A6: Retail Research Technical Calls & Fundamental Performance Report for the month of June-2019
M7: =Main!B10 -> 2019-06-25
B8: Positional Call
A9: Sr.no | B9: Date | D9: Company | E9: Rec | F9: Rec Price | G9: Stop Loss*** | H9: Call Closed At | I9: Target | J9: Remark | K9: Profit / Loss per Share | L9: Gain / Loss % | M9: Status | N9: Closed Date | O9: NSE Closed Price
A10: 1 | B10: 2019-04-23 | D10: DMART | E10: Buy | F10: 1305 | G10: 1265 | H10: 1350 | I10: 1470-1500 | J10: Part Profit of Rs.45/- | K10: =H10-F10 -> 45 | L10: =K10/F10 -> 3.45% | M10: Successful | N10: 2019-05-24 | O10: =VLOOKUP(D10,Sheet2!A45:M1840,6,0) -> 1329.2 | R10: R
A11: 2 | B11: 2019-05-08 | D11: COLPAL | E11: Buy | F11: 1137 | G11: 1081 | H11: 1185 | I11: 1242 | J11: Profit of Rs.48/- | K11: =H11-F11 -> 48 | L11: =K11/F11 -> 4.22% | M11: Successful | N11: 2019-06-14 | R11: H
A12: 3 | B12: 2019-05-20 | D12: TCS | E12: Buy | F12: 2112 | G12: 2195 | H12: 2221 | I12: 2405 | J12: Profit of Rs.109/- | K12: =H12-F12 -> 109 | L12: =K12/F12 -> 5.16% | M12: Successful | N12: 2019-06-10 | R12: H
A13: 4 | B13: 2019-05-24 | D13: SBIN | E13: Sell | F13: 351 | G13: 372 | H13: 336.5 | I13: 320-310 | J13: Profit of Rs.14.5/- | K13: =F13-H13 -> 14.5 | L13: 4.13% | M13: Successful | N13: 2019-06-06 | R13: H
A14: 5 | B14: 2019-05-27 | D14: GRASIM | E14: Sell | F14: 927.5 | G14: 972.6 | H14: 862.5 | I14: 840-820 | J14: Profit of Rs.65/- | K14: =F14-H14 -> 65 | L14: =K14/F14 -> 7.01% | M14: Successful | N14: 2019-06-06 | R14: R
A15: 6 | B15: 2019-05-27 | D15: TATAELXSI | E15: Buy | F15: 870-878 | G15: 818.7 | I15: 970-990 | J15: Open | O15: =VLOOKUP(D15,Sheet2!A50:M1845,6,0) -> 851.6 | R15: R
A16: 7 | B16: 2019-05-28 | D16: ASTRAZEN | E16: Buy | F16: 2030 | G16: 1883.3 | H16: 1883.3 | I16: 2310-2330 | J16: Loss of Rs. 146.7/- | K16: =H16-F16 -> -146.7 | L16: =K16/F16 -> -7.23% | M16: UnSuccessful | N16: 2019-06-06 | R16: R
A17: 8 | B17: 2019-05-28 | D17: BAJAJFINSV | E17: Sell | F17: 8150-8200 | G17: 8625 | I17: 7300 | J17: Open | O17: =VLOOKUP(D17,Sheet2!A54:M1849,6,0) -> 8354.65 | R17: H
A18: 9 | B18: 2019-05-28 | D18: CEATLTD | E18: Buy | F18: 1000 | G18: 945 | H18: 960 | I18: 1100-1120 | J18: Loss of Rs. 40/- | K18: -40 | L18: -4.00% | M18: UnSuccessful | N18: 2019-06-11 | R18: H
A19: 10 | B19: 2019-05-30 | D19: ENDURANCE | E19: Buy | F19: 1205 | G19: 1128 | H19: 1127.5 | I19: 1350 | J19: Loss of Rs. 77.5/- | K19: -77.5 | L19: -6.43% | M19: UnSuccessful | N19: 2019-06-24 | R19: H
A20: 11 | B20: 2019-05-31 | D20: BALKRISIND | E20: Buy | F20: 802.5 | G20: 748 | H20: 760 | I20: 900 | J20: Loss of Rs. 42.5/- | K20: =H20-F20 -> -42.5 | L20: =K20/F20 -> -5.30% | M20: UnSuccessful | N20: 2019-06-17 | R20: H
A21: 12 | B21: 2019-05-31 | D21: HEROMOTOCO | E21: Buy | F21: 2725 | G21: 2645 | H21: 2718.5 | I21: 3040-3080 | J21: Loss of Rs. 6.5/- | K21: =H21-F21 -> -6.5 | L21: =K21/F21 -> -0.24% | M21: Neutral | N21: 2019-06-19 | R21: R
A22: 13 | B22: 2019-05-31 | D22: VRLLOG | E22: Buy | F22: 286-290 | G22: 269 | I22: 320-330 | J22: Open | O22: =VLOOKUP(D22,Sheet2!A59:M1854,6,0) -> 275.95 | R22: H
A23: 14 | B23: 2019-05-31 | D23: DLF | E23: Sell | F23: 191 | G23: 202.6 | H23: 175.5 | I23: 170-166 | J23: Profit of Rs.15.5/- | K23: =F23-H23 -> 15.5 | L23: =K23/F23 -> 8.12% | M23: Successful | N23: 2019-06-14 | R23: R
A24: 15 | B24: 2019-05-31 | D24: ITC | E24: Buy | F24: 285-287 | G24: 268.3 | I24: 315-325 | J24: Open | O24: =VLOOKUP(D24,Sheet2!A61:M1856,6,0) -> 276.25 | R24: R
A25: 16 | B25: 2019-05-31 | D25: AMARAJABAT | E25: Buy | F25: 643 | G25: 598 | H25: 610 | I25: 720-740 | J25: Loss of Rs. 33/- | K25: =H25-F25 -> -33 | L25: =K25/F25 -> -5.13% | M25: UnSuccessful | N25: 2019-06-13 | R25: H
A26: 17 | B26: 2019-06-03 | D26: LEMONTREE | E26: Buy | F26: 73.5 | G26: 67.8 | H26: 67.5 | I26: 82-86 | J26: Loss of Rs. 6/- | K26: =H26-F26 -> -6 | L26: =K26/F26 -> -8.16% | M26: UnSuccessful | N26: 2019-06-13 | R26: R
A27: 18 | B27: 2019-06-04 | D27: RADICO | E27: Buy | F27: 335 | G27: 314.4 | H27: 313 | I27: 365 -370 | J27: Loss of Rs. 22/- | K27: =H27-F27 -> -22 | L27: =K27/F27 -> -6.57% | M27: UnSuccessful | N27: 2019-06-06 | R27: R
A28: 19 | B28: 2001-06-06 | D28: ESCORTS | E28: Buy | F28: 578 | G28: 537 | H28: 537.5 | I28: 680 | J28: Loss of Rs. 40.5/- | K28: =H28-F28 -> -40.5 | L28: =K28/F28 -> -7.01% | M28: UnSuccessful | N28: 2019-06-19 | R28: H
A29: 20 | B29: 2019-06-13 | D29: GODREJCP | E29: Buy | F29: 675-680 | G29: 644 | I29: 740-750 | J29: Open | O29: =VLOOKUP(D29,Sheet2!A66:M1861,6,0) -> 674.2 | R29: H
A30: 21 | B30: 2019-06-13 | D30: TVSMOTOR | E30: Buy | F30: 468.5 | G30: 438 | H30: 438.5 | I30: 530-550 | J30: Loss of Rs.30/- | K30: =H30-F30 -> -30 | L30: =K30/F30 -> -6.40% | M30: UnSuccessful | N30: 2019-06-19 | R30: H
A31: 22 | B31: 2019-06-17 | D31: SUNTV | E31: Buy | F31: 517 | G31: 476 | H31: 539.5 | I31: 575-585 | J31: Part Profit of Rs.22.5/- | K31: 22.5 | L31: 4.35% | M31: Successful | N31: 2019-06-20 | O31: =VLOOKUP(D31,Sheet2!A66:M1861,6,0) -> 518.7 | R31: R
A32: 23 | B32: 2019-06-20 | D32: M&M | E32: Buy | F32: 615-620 | G32: 588 | I32: 670-700 | J32: Open | O32: =VLOOKUP(D32,Sheet2!A69:M1864,6,0) -> 634.85 | R32: H
A33: 24 | B33: 2019-06-20 | D33: BANKBARODA | E33: Buy | F33: 115.5-117.5 | G33: 109 | I33: 128-132 | J33: Open | O33: =VLOOKUP(D33,Sheet2!A70:M1865,6,0) -> 118.25 | R33: H
A34: 25 | B34: 2019-06-21 | D34: AJANTPHARM | E34: Buy | F34: 950-960 | G34: 897.7 | I34: 1060-1080 | J34: Open | O34: =VLOOKUP(D34,[1]EQ!$A$2:$H$1636,6,0) -> 956.6 | R34: R
A35: 26 | B35: 2019-06-24 | D35: ESCORTS | E35: Buy | F35: 546-553 | G35: 518 | I35: 600 | J35: Open | O35: =VLOOKUP(D35,[1]EQ!$A$2:$H$1636,6,0) -> 551.65 | R35: H
A44: CLBS = Closing Basis *** | F44: Reinitiated $
A45: Dividend adjusted <> | F45: Revised stoploss #
A46: Part book {}
B48: Momentum Call
A49: Sr.no | B49: Date | D49: Company | E49: Rec | F49: Rec Price | G49: Stop Loss | H49: Call Closed At | I49: Target | J49: Remark | K49: Profit / Loss per Share/Lot | L49: Gain / Loss % | M49: Gain / Loss per Lot | N49: Lot | O49: Status | P49: Closed Date
A50: 1 | B50: 2019-05-29 | D50: BATAINDIA JUN FUT | E50: Buy | F50: 1330 | G50: 1307.7 | H50: 1345 | I50: 1360-1370 | J50: Profit of Rs.15/- | K50: =H50-F50 -> 15 | M50: =N50*K50 -> 8250 | N50: 550 | O50: Successful | P50: 2019-06-03 | R50: R
A51: 2 | B51: 2019-05-31 | D51: EXIDEIND JUN FUT | E51: Buy | F51: 215.5 | G51: 209.5 | H51: 218.75 | I51: 225 | J51: Profit of Rs.3.25/- | K51: =H51-F51 -> 3.25 | M51: =N51*K51 -> 6500 | N51: 2000 | O51: Successful | P51: 2019-06-04 | R51: N
A52: 3 | B52: 2019-05-31 | D52: JUSTDIAL | E52: Sell | F52: 757.5 | G52: 775.8 | H52: 775.8 | I52: 730-720 | J52: Loss of Rs. 18.3/- | K52: =F52-H52 -> -18.3 | L52: =K52/F52 -> -2.42% | O52: UnSuccessful | P52: 2019-06-03 | R52: R
A53: 4 | B53: 2019-06-03 | D53: INDUSINDBK JUNE FUT | E53: Buy | F53: 1603 | G53: 1562 | H53: 1624 | I53: 1650-1660 | J53: Profit of Rs.21/- | K53: =H53-F53 -> 21 | M53: =N53*K53 -> 6300 | N53: 300 | O53: Successful | P53: 2019-06-03 | R53: N
A54: 5 | B54: 2019-06-03 | D54: JSWSTEEL | E54: Buy | F54: 274 | G54: 267 | H54: 267 | I54: 285-290 | J54: Loss of Rs. 7/- | K54: =H54-F54 -> -7 | L54: =K54/F54 -> -2.55% | O54: UnSuccessful | P54: 2019-06-06 | R54: H
A55: 6 | B55: 2019-06-03 | D55: VEDL JUN FUT | E55: Sell | F55: 164.5 | G55: 170 | H55: 161.75 | I55: 152 | J55: Profit of Rs.2.75/- | K55: =F55-H55 -> 2.75 | M55: =N55*K55 -> 6325 | N55: 2300 | O55: Successful | P55: 2019-06-06 | R55: N
A56: 7 | B56: 2019-06-04 | D56: ASIANPAINT JUNE FUT | E56: Buy | F56: 1438.5 | G56: 1418 | H56: 1424 | I56: 1475 | J56: Loss of Rs. 14.5/- | K56: =H56-F56 -> -14.5 | M56: =N56*K56 -> -8700 | N56: 600 | O56: UnSuccessful | P56: 2019-06-04 | R56: N
A57: 8 | B57: 2019-06-04 | D57: PEL | E57: Buy | F57: 2205 | G57: 2134.4 | H57: 2135 | I57: 2330-2350 | J57: Loss of Rs. 70/- | K57: =H57-F57 -> -70 | L57: =K57/F57 -> -3.17% | O57: UnSuccessful | P57: 2019-06-06 | R57: R
A58: 9 | B58: 2019-06-04 | D58: MCDOWELL-N JUN FUT | E58: Sell | F58: 574.5 | G58: 585.3 | H58: 566.5 | I58: 555 | J58: Profit of Rs.8/- | K58: =F58-H58 -> 8 | M58: =N58*K58 -> 10000 | N58: 1250 | O58: Successful | P58: 2019-06-06 | R58: R
A59: 10 | B59: 2019-06-06 | D59: COALINDIA | E59: Sell | F59: 267 | G59: 275.3 | H59: 261.25 | I59: 253-250 | J59: Profit of Rs.5.75/- | K59: =F59-H59 -> 5.75 | L59: =K59/F59 -> 2.15% | O59: Successful | P59: 2019-06-10 | R59: R
A60: 11 | B60: 2019-06-06 | D60: BANKNIFTY JUN FUT | E60: Buy | F60: 31420 | G60: 31280 | H60: 31280 | I60: 31700 | J60: Loss of Rs. 140/- | K60: =H60-F60 -> -140 | M60: =N60*K60 -> -2800 | N60: 20 | O60: UnSuccessful | P60: 2019-06-06 | R60: R
A61: 12 | B61: 2019-06-06 | D61: NIITTECH JUNE FUT | E61: Buy | F61: 1312 | G61: 1296 | H61: 1324 | I61: 1340 | J61: Profit of Rs.12/- | K61: =H61-F61 -> 12 | M61: =N61*K61 -> 9000 | N61: 750 | O61: Successful | P61: 2019-06-07 | R61: N
A62: 13 | B62: 2019-06-06 | D62: EXIDEIND JUNE FUT | E62: Buy | F62: 210.75 | G62: 204.5 | H62: 213.5 | I62: 222 | J62: Profit of Rs.2.75/- | K62: =H62-F62 -> 2.75 | M62: =N62*K62 -> 5500 | N62: 2000 | O62: Successful | P62: 2019-06-07 | R62: N
A63: 14 | B63: 2019-06-07 | D63: AXISBANK | E63: Sell | F63: 808 | G63: 828.8 | H63: 789 | I63: 780 - 770 | J63: Profit of Rs.19/- | K63: =F63-H63 -> 19 | L63: =K63/F63 -> 2.35% | O63: Successful | P63: 2019-06-17 | R63: R
A64: 15 | B64: 2019-06-07 | D64: VEDL JUN FUT | E64: Sell | F64: 166.5 | G64: 172 | H64: 163.5 | I64: 156 | J64: Profit of Rs.3/- | K64: =F64-H64 -> 3 | M64: =N64*K64 -> 6900 | N64: 2300 | O64: Successful | P64: 2019-06-07 | R64: N
A65: 16 | B65: 2019-06-07 | D65: BATAINDIA JUNE FUT | E65: Buy | F65: 1385.5 | G65: 1365 | H65: 1365 | I65: 1420 | J65: Loss of Rs. 20.5/- | K65: =H65-F65 -> -20.5 | M65: =N65*K65 -> -11275 | N65: 550 | O65: UnSuccessful | P65: 2019-06-07 | R65: N
A66: 17 | B66: 2019-06-07 | D66: TATAMOTORS JUN FUT | E66: Buy | F66: 171 | G66: 166 | H66: 166 | I66: 178-180 | J66: Loss of Rs. 5/- | K66: =H66-F66 -> -5 | M66: =N66*K66 -> -1250 | N66: 250 | O66: UnSuccessful | P66: 2019-06-10 | R66: R
A67: 18 | B67: 2019-06-07 | D67: VIPIND | E67: Buy | F67: 462 | G67: 450 | H67: 472.5 | I67: 480-485 | J67: Profit of Rs.10.5/- | K67: =H67-F67 -> 10.5 | L67: =K67/F67 -> 2.27% | O67: Successful | P67: 2019-06-10 | R67: R
A68: 19 | B68: 2019-06-07 | D68: VARROC | E68: Buy | F68: 460 | G68: 448 | H68: 470.5 | I68: 480-485 | J68: Profit of Rs.10.5/- | K68: =H68-F68 -> 10.5 | L68: =K68/F68 -> 2.28% | O68: Successful | P68: 2019-06-10 | R68: H
A69: 20 | B69: 2019-06-10 | D69: IGL | E69: Sell | F69: 338.5 | G69: 351 | H69: 332.5 | I69: 320 | J69: Profit of Rs.6/- | K69: =F69-H69 -> 6 | L69: =K69/F69 -> 1.77% | O69: Successful | P69: 2019-06-13 | R69: H
A70: 21 | B70: 2019-06-10 | D70: BHARTIARTL JUN FUT | E70: Sell | F70: 364.5 | G70: 371 | H70: 359.5 | I70: 350 | J70: Profit of Rs.5/- | K70: =F70-H70 -> 5 | M70: =N70*K70 -> 9255 | N70: 1851 | O70: Successful | P70: 2019-06-11 | R70: R
A71: 22 | B71: 2019-06-11 | D71: SUNTV JUN FUT | E71: Buy | F71: 517 | G71: 504..8 | H71: 524.5 | I71: 535-540 | J71: Profit of Rs.7.5/- | K71: =H71-F71 -> 7.5 | M71: =N71*K71 -> 7500 | N71: 1000 | O71: Successful | P71: 2019-06-11 | R71: R
A72: 23 | B72: 2019-06-11 | D72: GAIL | E72: Buy | F72: 308.5 | G72: 298 | H72: 308.5 | I72: 325-330 | J72: Neutral | K72: =F72-H72 -> 0 | L72: 0 | O72: Neutral | P72: 2019-06-24 | R72: H
A73: 24 | B73: 2019-06-11 | D73: VOLTAS | E73: Sell | F73: 619.5 | G73: 632 | H73: 606.5 | I73: 600 | J73: Profit of Rs.13/- | K73: =F73-H73 -> 13 | L73: =K73/F73 -> 2.10% | O73: Successful | P73: 2019-06-12 | R73: H
A74: 25 | B74: 2019-06-11 | D74: HINDALCO JUN FUT | E74: Sell | F74: 201 | G74: 205.3 | H74: 199.25 | I74: 194 | J74: Profit of Rs.1.75/- | K74: =F74-H74 -> 1.75 | M74: =N74*K74 -> 6125 | N74: 3500 | O74: Successful | P74: 2019-06-11 | R74: R
A75: 26 | B75: 2019-06-11 | D75: NTPC | E75: Sell | F75: 136.25 | G75: 140.5 | H75: 134 | I75: 130-128 | J75: Profit of Rs.2.25/- | K75: =F75-H75 -> 2.25 | L75: =K75/F75 -> 1.65% | O75: Successful | P75: 2019-06-12 | R75: H
A76: 27 | B76: 2019-06-12 | D76: LICHSGFIN JUN FUT | E76: Buy | F76: 547 | G76: 536 | H76: 536 | I76: 565-570 | J76: Loss of Rs.11/- | K76: =H76-F76 -> -11 | M76: =N76*K76 -> -12100 | N76: 1100 | O76: UnSuccessful | P76: 2019-06-13 | R76: R
A77: 28 | B77: 2019-06-12 | D77: BHARTIARTL JUN FUT | E77: Sell | F77: 363.5 | G77: 370.2 | H77: 360.25 | I77: 350-348 | J77: Profit of Rs.3.25/- | K77: =F77-H77 -> 3.25 | M77: =N77*K77 -> 6015.75 | N77: 1851 | O77: Successful | P77: 2019-06-12 | R77: R
A78: 29 | B78: 2019-06-12 | D78: HINDALCO JUN FUT | E78: Sell | F78: 202.75 | G78: 206.3 | H78: 200.75 | I78: 195 | J78: Profit of Rs.2/- | K78: =F78-H78 -> 2 | M78: =N78*K78 -> 7000 | N78: 3500 | O78: Successful | P78: 2019-06-12 | R78: R
A79: 30 | B79: 2019-06-12 | D79: IOC | E79: Buy | F79: 162.5 | G79: 158.4 | H79: 158 | I79: 169 -171 | J79: Loss of Rs. 4.5/- | K79: =H79-F79 -> -4.5 | L79: =K79/F79 -> -2.77% | O79: UnSuccessful | P79: 2019-06-17 | R79: R
A80: 31 | B80: 2019-06-13 | D80: BERGEPAINT | E80: Sell | F80: 333.5 | G80: 341 | H80: 326.5 | I80: 325-322 | J80: Profit of Rs.7/- | K80: =F80-H80 -> 7 | L80: =K80/F80 -> 2.10% | O80: Successful | P80: 2019-06-14 | R80: H
A81: 32 | B81: 2019-06-13 | D81: BHARTIARTL JUN FUT | E81: Sell | F81: 364.5 | G81: 371.2 | H81: 360.5 | I81: 350 | J81: Profit of Rs.4/- | K81: =F81-H81 -> 4 | M81: =N81*K81 -> 7404 | N81: 1851 | O81: Successful | P81: 2019-06-14 | R81: R
A82: 33 | B82: 2019-06-14 | D82: BANKNIFTY JUN FUT | E82: Buy | F82: 30840 | G82: 30590 | H82: 30650 | I82: 31200 | J82: Loss of Rs.190/- | K82: =H82-F82 -> -190 | M82: =N82*K82 -> -3800 | N82: 20 | O82: UnSuccessful | P82: 2019-06-14 | R82: R
A83: 34 | B83: 2019-06-14 | D83: TORNTPHARM JUN FUT | E83: Buy | F83: 1512.5 | G83: 1492 | H83: 1492 | I83: 1550 | J83: Loss of Rs.20.5/- | K83: =H83-F83 -> -20.5 | M83: =N83*K83 -> -10250 | N83: 500 | O83: UnSuccessful | P83: 2019-06-14 | R83: H
A84: 35 | B84: 2019-06-15 | D84: PIDILITIND JUN FUT | E84: Buy | F84: 1251 | G84: 1228.7 | H84: 1228.7 | I84: 1285 -1295 | J84: Loss of Rs.22.3/- | K84: =H84-F84 -> -22.3 | M84: =N84*K84 -> -11150 | N84: 500 | O84: UnSuccessful | P84: 2019-06-21 | R84: R
A85: 36 | B85: 2019-06-17 | D85: OFSS | E85: Sell | F85: 3247.5 | G85: 3330 | H85: 3180 | I85: 3150-3110 | J85: Profit of Rs.67.5/- | K85: =F85-H85 -> 67.5 | L85: =K85/F85 -> 2.08% | O85: Successful | P85: 2019-06-20 | R85: H
A86: 37 | B86: 2019-06-17 | D86: NIFTY JUN FUT | E86: Buy | F86: 11770 | G86: 11720 | H86: 11720 | I86: 11840-11850 | J86: Loss of Rs.50/- | K86: =H86-F86 -> -50 | M86: =N86*K86 -> -3750 | N86: 75 | O86: UnSuccessful | P86: 2019-06-17 | R86: R
A87: 38 | B87: 2019-06-17 | D87: INFRATEL | E87: Sell | F87: 280 | G87: 288 | H87: 274.25 | I87: 270-265 | J87: Profit of Rs.5.75/- | K87: =F87-H87 -> 5.75 | L87: =K87/F87 -> 2.05% | O87: Successful | P87: 2019-06-17 | R87: H
A88: 39 | B88: 2019-06-17 | D88: KOTAKBANK JUN FUT | E88: Sell | F88: 1466 | G88: 1492 | H88: 1464.5 | I88: 1420 | J88: Profit of Rs.1.5/- | K88: =F88-H88 -> 1.5 | M88: =N88*K88 -> 600 | N88: 400 | O88: Neutral | P88: 2019-06-18 | R88: H
A89: 40 | B89: 2019-06-17 | D89: SRTRANSFIN | E89: Buy | F89: 1047.5 | G89: 1018 | H89: 1015 | I89: 1100-1120 | J89: Loss of Rs. 32.5/- | K89: =H89-F89 -> -32.5 | L89: =K89/F89 -> -3.10% | O89: UnSuccessful | P89: 2019-06-17 | R89: R
A90: 41 | B90: 2019-06-17 | D90: HINDPETRO JUN FUT | E90: Sell | F90: 297.5 | G90: 302.5 | H90: 302.5 | I90: 290-287 | J90: Loss of Rs.5/- | K90: =F90-H90 -> -5 | M90: =N90*K90 -> -10500 | N90: 2100 | O90: UnSuccessful | P90: 2019-06-18 | R90: H
A91: 42 | B91: 2019-06-18 | D91: BATAINDIA | E91: Buy | F91: 1400-1410 | G91: 1370 | I91: 1460-1470 | J91: Open | R91: H
A92: 43 | B92: 2019-06-18 | D92: DRREDDY JUN FUT | E92: Buy | F92: 2577.5 | G92: 2525 | H92: 2602.5 | I92: 2670-2690 | J92: Profit of Rs.25/- | K92: =H92-F92 -> 25 | M92: =N92*K92 -> 6250 | N92: 250 | O92: Successful | P92: 2019-06-18 | R92: R
A93: 44 | B93: 2019-06-18 | D93: AMARAJABAT | E93: Buy | F93: 607 | G93: 588 | H93: 587.5 | I93: 640 | J93: Loss of Rs. 19.5/- | K93: =H93-F93 -> -19.5 | L93: =K93/F93 -> -3.21% | O93: UnSuccessful | P93: 2019-06-19 | R93: H
A94: 45 | B94: 2019-06-18 | D94: IGL | E94: Sell | F94: 342.5 | G94: 352 | H94: 337.5 | I94: 330 | J94: Profit of Rs.5/- | K94: =F94-H94 -> 5 | L94: =K94/F94 -> 1.46% | O94: Successful | P94: 2019-06-18 | R94: H
A95: 46 | B95: 2019-06-19 | D95: HCLTECH JUN FUT | E95: Buy | F95: 1085 | G95: 1068 | H95: 1095 | I95: 1110 | J95: Profit of Rs.10/- | K95: =H95-F95 -> 10 | M95: =N95*K95 -> 7000 | N95: 700 | O95: Successful | P95: 2019-06-21 | R95: H
A96: 47 | B96: 2019-06-19 | D96: NIITTECH | E96: Buy | F96: 1300-1305 | G96: 1277 | I96: 1350-1370 | J96: Open | R96: R
A97: 48 | B97: 2019-06-19 | D97: UPL | E97: Buy | F97: 972.5 | G97: 947.7 | H97: 947.7 | I97: 1020-1030 | J97: Loss of Rs.24.8/- | K97: =H97-F97 -> -24.8 | L97: =K97/F97 -> -2.55% | O97: UnSuccessful | P97: 2019-06-19 | R97: R
A98: 49 | B98: 2019-06-20 | D98: BANKINDIA | E98: Buy | F98: 82.7 | G98: 79.5 | H98: 84.27 | I98: 86-88 | J98: Profit of Rs.1.57/- | K98: =H98-F98 -> 1.57 | L98: =K98/F98 -> 1.90% | O98: Successful | P98: 2019-06-20 | R98: H
A99: 50 | B99: 2019-06-21 | D99: ESCORTS | E99: Buy | F99: 547.5 | G99: 528 | H99: 557 | I99: 575-580 | J99: Profit of Rs.9.5/- | K99: =H99-F99 -> 9.5 | L99: =K99/F99 -> 1.74% | O99: Successful | P99: 2019-06-21 | R99: H
A100: 51 | B100: 2019-06-21 | D100: VOLTAS JUN FUT | E100: Sell | F100: 618 | G100: 630.3 | H100: 630.3 | I100: 595-590 | J100: Loss of Rs.12.3/- | K100: =F100-H100 -> -12.3 | M100: =N100*K100 -> -12300 | N100: 1000 | O100: UnSuccessful | P100: 2019-06-24 | R100: R
A101: 52 | B101: 2019-06-24 | D101: AXISBANK JUN FUT | E101: Buy | F101: 768-770 | G101: 757.7 | I101: 785-790 | J101: Open | R101: R
A102: 53 | B102: 2019-06-24 | D102: AMARAJABAT JUNE FUT | E102: Buy | F102: 603-605 | G102: 587 | I102: 640 | J102: Open | R102: N
A110: CLBS = Closing Basis ***
A111: Dividend adjusted <> | F111: Reinitiated $
F112: Revised stoploss #
A114: Master Trade High Risk
A115: Sr.no | B115: Date | D115: Company | E115: Rec | F115: Rec Price | G115: Stop Loss | H115: Call Closed At | I115: Target | J115: Remark | K115: Profit / Loss per share | L115: Gain / Loss per Lot | M115: Lot | N115: Status | O115: Closed Date
A116: 1 | B116: 2019-05-31 | D116: ACC JUN FUT | E116: Buy | F116: 1693.5 | G116: 1662 | H116: 1719 | I116: 1750 | J116: Profit of Rs.25.5/- | K116: =H116-F116 -> 25.5 | L116: =M116*K116 -> 10200 | M116: 400 | N116: Successful | O116: 2019-06-03 | R116: R
A117: 2 | B117: 2019-06-03 | D117: HDFC JUN FUT | E117: Sell | F117: 2212.5 | G117: 2252 | H117: 2212 | I117: 2140 | J117: Profit of Rs.7.5/- | K117: =F117-H117 -> 0.5 | L117: =7.5*M117 -> 3750 | M117: 500 | N117: Successful | O117: 2019-06-06 | R117: H
D118: HDFC 2160 PE JUNE | E118: Sell | F118: 28 | H118: 21 | K118: =F118-H118 -> 7 | R118: H
A126: Master Trade Medium Risk
A127: Sr.no | B127: Date | D127: Company | E127: Rec | F127: Rec Price | G127: Stop Loss | H127: Call Closed At | I127: Target | J127: Remark | K127: Profit/ Loss per lot | L127: Gain / Loss per Lot | M127: Lot | N127: Status | O127: Closed Date
A128: 1 | B128: 2019-05-29 | D128: HDFCBANK JUN 2400 PE | E128: Buy | F128: 42.5 | G128: 20 | H128: 24 | I128: 80 -85 | J128: Loss of Rs.18.5/- | K128: =H128-F128 -> -18.5 | L128: =K128*M128 -> -4625 | M128: 250 | N128: Unsuccessful | O128: 2019-06-03 | R128: H
A129: 2 | B129: 2019-06-03 | D129: NIFTY 11850 PE 6-JUNE | E129: Buy | F129: 49.5 | G129: 14 | H129: 30 | I129: 90-100 | J129: Loss of Rs.19.5/- | K129: -19.5 | L129: -1462.5 | M129: 75 | N129: Unsuccessful | O129: 2019-06-03 | R129: H
A130: 3 | B130: 2019-06-03 | D130: NIFTY 11900 PE 6-JUNE | E130: Buy | F130: 41.5 | G130: 17 | H130: 17 | I130: 80 | J130: Loss of Rs.24.5/- | K130: -24.5 | L130: -1837.5 | M130: 75 | N130: Unsuccessful | O130: 2019-06-03 | R130: H
A131: 4 | B131: 2019-06-07 | D131: NIFTY 11800 PE 13 JUN | E131: Buy | F131: 44.5 | G131: 15 | H131: 56.5 | I131: 80-90 | J131: Profit of Rs.12/- | K131: 12 | L131: 900 | M131: 75 | N131: Successful | O131: 2019-06-07 | R131: R
A132: 5 | B132: 2019-06-07 | D132: NIFTY 11900 CE 13 JUN | E132: Buy | F132: 46 | G132: 15 | H132: 56.5 | I132: 80-90 | J132: Profit of Rs.10.5/- | K132: 10.5 | L132: 787.5 | M132: 75 | N132: Successful | O132: 2019-06-07 | R132: H
A133: 6 | B133: 2019-06-10 | D133: NIFTY 11900 PE 13-JUNE | E133: Buy | F133: 37.5 | G133: 14 | H133: 48.5 | I133: 80 | J133: Profit of Rs.11/- | K133: 11 | L133: 825 | M133: 75 | N133: Successful | O133: 2019-06-10 | R133: H
A134: 7 | B134: 2019-06-10 | D134: NIFTY 11900 CE 13-JUNE | E134: Buy | F134: 45.5 | G134: 27 | H134: 55.5 | I134: 80-85 | J134: Profit of Rs.10/- | K134: 10 | L134: 750 | M134: 75 | N134: Successful | O134: 2019-06-10 | R134: H
A135: 8 | B135: 2019-06-11 | D135: NIFTY 11900 PE 13-JUNE | E135: Buy | F135: 36 | G135: 14 | H135: 46 | I135: 80 | J135: Profit of Rs.10/- | K135: =H135-F135 -> 10 | L135: =K135*M135 -> 750 | M135: 75 | N135: Successful | O135: 2019-06-11 | R135: H
A136: 9 | B136: 2019-06-11 | D136: NIFTY 11900 PE 13-JUNE | E136: Buy | F136: 36 | G136: 14 | H136: 38 | I136: 80 | J136: Profit of Rs.2/- | K136: 2 | L136: =K136*M136 -> 150 | M136: 75 | N136: Neutral | O136: 2019-06-11 | R136: H
A137: 10 | B137: 2019-06-11 | D137: NIFTY 11950 PE 13 JUNE | E137: Buy | F137: 39.5 | G137: 18 | H137: 30 | I137: 80 | J137: Loss of Rs.9.5/- | K137: -9.5 | L137: =K137*M137 -> -712.5 | M137: 75 | N137: Unsuccessful | O137: 2019-06-11 | R137: H
A138: 11 | B138: 2019-06-12 | D138: NIFTY 11900 CE 13-JUNE | E138: Buy | F138: 46 | G138: 28 | H138: 28 | I138: 80 | J138: Loss of Rs.18/- | K138: -18 | L138: =K138*M138 -> -1350 | M138: 75 | N138: Unsuccessful | O138: 2019-06-12 | R138: H
A139: 12 | B139: 2019-06-13 | D139: NIFTY 13-Jun 11850 CE | E139: Buy | F139: 24 | G139: 8 | H139: 8 | I139: 60 | J139: Loss of Rs.16/- | K139: =H139-F139 -> -16 | L139: =K139*M139 -> -1200 | M139: 75 | N139: Unsuccessful | O139: 2019-06-13 | R139: R
A140: 13 | B140: 2019-06-14 | D140: NIFTY 12000 CE 27 JUNE | E140: Buy | F140: 53.5 | G140: 37 | H140: 43.5 | I140: 75-85 | J140: Loss of Rs.10/- | K140: -10 | L140: -750 | M140: 75 | N140: Unsuccessful | O140: 2019-06-14 | R140: H
A141: 14 | B141: 2019-06-14 | D141: RELIANCE JUNE 1340 CE | E141: Buy | F141: 13.5 | G141: 5 | H141: 5 | I141: 30 | J141: Loss of Rs.8.5/- | K141: =H141-F141 -> -8.5 | L141: =K141*M141 -> -4250 | M141: 500 | N141: Unsuccessful | O141: 2019-06-17 | R141: R
A142: 15 | B142: 20 June` | D142: NIFTY 11700 PE 27-JUNE | E142: Buy | F142: 55.5 | G142: 37 | H142: 37 | I142: 80-85 | J142: Loss of Rs.18.5/- | K142: =H142-F142 -> -18.5 | L142: =K142*M142 -> -1387.5 | M142: 75 | N142: Unsuccessful | O142: 2019-06-20 | R142: H
A143: 16 | B143: 2019-06-21 | D143: LT 1560 CE JUNE | E143: Buy | F143: 15-18 | G143: 5 | I143: 35-40 | J143: Open | R143: H
A144: 17 | B144: 2019-06-24 | D144: NIFTY 11750 CE 27-JUNE | E144: Buy | F144: 42-45 | G144: 17 | I144: 70-80 | J144: Open | R144: H
A148: Techno -Funda (positional)
A149: Sr.no | B149: Date | D149: Company | E149: Rec | F149: Rec Price | G149: Stop Loss*** | H149: Call Closed At | I149: Target | J149: Remark | K149: Profit / Loss per Share | L149: Gain / Loss % | M149: Status | N149: Closed Date | O149: NSE Closed Price
A150: 1 | B150: 2019-04-04 | D150: FINPIPE | E150: Buy | F150: 474.5 | G150: 435 | H150: 505.5 | I150: 560 | J150: Part Profit of Rs.31/- | K150: =H150-F150 -> 31 | L150: =K150/F150 -> 6.53% | M150: Successful | N150: 2019-06-11 | R150: H
A151: 2 | B151: 2019-05-24 | D151: APOLLOTYRE | E151: Buy | F151: 187.5 | G151: 178.7 | H151: 201.5 | I151: 220-230 | J151: Part Profit of Rs.14/- | K151: =H151-F151 -> 14 | L151: 7.47% | M151: Successful | N151: 2019-06-04 | R151: R
A154: CLBS = Closing Basis *** | F154: Reinitiated $
A155: Dividend adjusted <> | F155: Revised stoploss #
B160: Investment Idea
A161: Sr.no | B161: Date | D161: Company | E161: Rec | F161: Rec Price | G161: Point of Review | H161: Close Rate | I161: Target | J161: Remark | K161: Profit / Loss per Share | L161: Gain / Loss % | M161: Status | N161: Closed Date
A162: 1 | B162: 2013-11-01 | D162: L&T Finance Holding | E162: Accu | F162: 82.00 | G162: - | H162: 100 | I162: 100.00 | J162: Target Achieved | K162: =H162-F162 -> 18.00 | L162: =K162/F162 -> 21.95% | M162: Successful | N162: 2016-10-14
A163: 2 | B163: 2014-06-04 | D163: Finolex Inds | E163: Buy | F163: 257.00 | G163: - | H163: 300 | I163: 300.00 | J163: Target Achieved | K163: =H163-F163 -> 43.00 | L163: 16.73% | M163: Successful | N163: 2014-07-02
A164: =1+A163 -> 3 | B164: 2014-07-08 | D164: JK Cement | E164: Buy | F164: 393.00 | G164: - | H164: 468 | I164: 468.00 | J164: Target Achieved | K164: =H164-F164 -> 75.00 | L164: 19.08% | M164: Successful | N164: 2014-08-12
A165: 4 | B165: 2014-08-06 | D165: Finolex Cables | E165: Buy | F165: 205.00 | G165: - | H165: 275 | I165: 250.00 | J165: Target Achieved | K165: 70.00 | L165: 34.15% | M165: Successful | N165: 2014-11-19
A166: 5 | B166: 2014-09-04 | D166: Exide Inds | E166: Buy | F166: 162.00 | G166: - | H166: 190 | I166: 190.00 | J166: Target Achieved | K166: 28.00 | L166: 17.28% | M166: Successful | N166: 2015-01-02
A167: 6 | B167: 2014-09-04 | D167: Deepak Nitrite | E167: Buy | F167: 75.00 | G167: - | H167: 91.5 | I167: 95-100 | J167: Profit of Rs.16.50/- | K167: 16.50 | L167: 22.00% | M167: Successful | N167: 2014-11-11
A168: 7 | B168: 2014-10-01 | D168: Mercks | E168: Buy | F168: 850.00 | G168: - | H168: 982.5 | I168: 1050.00 | J168: Profit of Rs.132.50/- | K168: 132.50 | L168: 15.59% | M168: Successful | N168: 2015-02-04
A169: 8 | B169: 2014-10-01 | D169: Grindwell Norton | E169: Buy | F169: 475.00 | G169: - | H169: 515 | I169: 600.00 | J169: Profit of Rs.40/- | K169: 40.00 | L169: 8.42% | M169: Successful | N169: 2014-10-27
A170: 9 | B170: 2014-10-01 | D170: Snowman Logistics | E170: Buy | F170: 86.00 | G170: - | H170: 99 | I170: 140.00 | J170: Profit of Rs.13.00/- | K170: 13.00 | L170: 15.12% | M170: Successful | N170: 2014-10-27
A171: 10 | B171: 2014-10-14 | D171: Birla Corp | E171: Buy | F171: 496.60 | G171: - | H171: 621 | I171: 580.00 | J171: Target Achieved | K171: 124.40 | L171: 25.05% | M171: Successful | N171: 2016-08-23
A172: 11 | B172: 2014-10-14 | D172: Ultratech Cem | E172: Buy | F172: 2481.90 | G172: - | H172: 2840 | I172: 2870.00 | J172: Profit of Rs.358.10/- | K172: 358.10 | L172: 14.43% | M172: Successful | N172: 2015-01-13
A173: =1+A170 -> 10 | B173: 2014-10-16 | D173: Sintex Inds | E173: Buy | F173: 84.50 | G173: - | H173: 93 | I173: 110.00 | J173: Profit of Rs.8.50/- | K173: 8.50 | L173: 10.06% | M173: Successful | N173: 2014-10-27
A174: =1+A173 -> 11 | B174: 2014-10-16 | D174: HSIL | E174: Buy | F174: 401.00 | G174: - | H174: 428 | I174: 450.00 | J174: Profit of Rs.27.00/- | K174: 27.00 | L174: 6.73% | M174: Successful | N174: 2015-01-16
A175: 12 | B175: 2014-10-16 | D175: Eveready Inds | E175: Buy | F175: 101.00 | G175: - | H175: 112 | I175: 120.00 | J175: Profit of Rs.11.00/- | K175: 11.00 | L175: 10.89% | M175: Successful | N175: 2014-10-27
A176: 13 | B176: 2014-11-11 | D176: Pennar Inds | E176: Buy | F176: 59.00 | G176: - | H176: 76 | I176: 76.00 | J176: Target Achieved | K176: 17.00 | L176: 28.81% | M176: Successful | N176: 2017-10-24
A177: 14 | B177: 2014-11-11 | D177: Snowman Logistics | E177: Buy | F177: 99.00 | G177: - | H177: 120 | I177: 120.00 | J177: Profit of Rs.21/- | K177: 21.00 | L177: 21.21% | M177: Successful | N177: 2014-11-17
A178: 15 | B178: 2014-11-13 | D178: Dharamsi Morarji Chem | E178: Buy | F178: 22.00 | G178: - | H178: 33.55 | I178: 32.00 | J178: Profit of Rs 11.55/- | K178: 11.55 | L178: 52.50% | M178: Successful | N178: 2015-07-03
A179: 16 | B179: 2014-12-03 | D179: Tatachem | E179: Buy | F179: 440.00 | G179: - | H179: 520 | I179: 520.00 | J179: Profit of Rs 80.00/- | K179: 80.00 | L179: 18.18% | M179: Successful | N179: 2015-07-23
A180: 17 | B180: 2014-12-03 | D180: Advanta | E180: Buy | F180: 360.00 | G180: - | H180: 427 | I180: 425.00 | J180: Profit of Rs.67.00/- | K180: 67.00 | L180: 18.61% | M180: Successful | N180: 2015-02-23
A181: 18 | B181: 2015-01-08 | D181: GDL | E181: Buy | F181: 360.00 | G181: - | H181: 455 | I181: 420.00 | J181: Profit of Rs.95.00/- | K181: 95.00 | L181: 26.39% | M181: Successful | N181: 2015-01-20
A182: 19 | B182: 2015-01-08 | D182: NRB Bearing | E182: Buy | F182: 130.00 | H182: 175.5 | I182: 165.00 | J182: Profit of Rs 45.50/- | K182: 45.50 | L182: 35.00% | M182: Successful | N182: 2017-12-19
A183: 20 | B183: 2015-02-05 | D183: GSFC | E183: Accu | F183: 98.00 | H183: 120 | I183: 120.00 | J183: Target Achieved | K183: 22.00 | L183: 22.45% | M183: Successful | N183: 2017-01-18
A184: 21 | B184: 2015-02-05 | D184: Sundrmfast | E184: Accu | F184: 196.00 | H184: 262 | I184: 255.00 | J184: Target Achieved | K184: 66.00 | L184: 33.67% | M184: Successful | N184: 2016-08-17
A185: 22 | B185: 2015-03-04 | D185: GPPL | E185: Accu | F185: 235 | H185: 77.00 | I185: 280-285 | J185: Loss of Rs.158/- | K185: =H185-F185 -> -158.00 | L185: -67.23% | M185: Unsuccessful | N185: 2019-02-26
A186: 23 | B186: 2015-03-04 | D186: ORIENTCEM | E186: Accu | F186: 185.00 | H186: 224 | I186: 220-225 | J186: Target Achieved | K186: 39.00 | L186: =K186/F186 -> 21.08% | M186: Successful | N186: 2016-10-04
A187: 24 | B187: 2015-03-27 | D187: PFS | E187: Accu | F187: 49.5 | H187: 15.85 | I187: 67.00 | J187: Loss of Rs.33.65/- | K187: =H187-F187 -> -33.65 | L187: =K187/F187 -> -68% | M187: Unsuccessful | N187: 2019-06-11
A188: 25 | B188: 2015-03-30 | D188: Walchandnagar Ind Ltd | E188: Accu | F188: 183.50 | H188: 219 | I188: 218.00 | J188: Profit of Rs.35.50/- | K188: 35.50 | L188: =K188/F188 -> 19.35% | M188: Successful | N188: 2015-04-09
A189: 26 | B189: 2015-04-20 | D189: Kalpataru Power Transmission Ltd | E189: Accu | F189: =(227+237)/2 -> 232.00 | H189: 298 | I189: 298.00 | J189: Target Achieved | K189: 66.00 | L189: 28.45% | M189: Successful | N189: 2017-03-29
A190: 27 | B190: 2015-05-04 | D190: Mastek Ltd | E190: Buy | F190: 385.00 | H190: =212.5+331 -> 543.5 | I190: 510.00 | J190: Profit of Rs 158.50/- | K190: 158.50 | L190: 41.17% | M190: Successful | N190: 2015-08-19
A191: 28 | B191: 2015-05-04 | D191: Suprajit Eng | E191: Buy | F191: 115.50 | H191: 146 | I191: 142.00 | J191: Profit of Rs 30.50/- | K191: 30.50 | L191: 26.41% | M191: Successful | N191: 2015-07-17
A192: 29 | B192: 2015-05-27 | D192: TCI | E192: Buy | F192: 237.50 | H192: 279.5 | I192: 278.00 | J192: Target Achieved | K192: 42.00 | L192: 17.68% | M192: Successful | N192: 2015-08-06
A193: 30 | B193: 2015-06-19 | D193: HSIL | E193: Accu | F193: 340.00 | H193: 448 | I193: 448.00 | J193: Target Achieved | K193: 108.00 | L193: 31.76% | M193: Successful | N193: 2017-10-10
A194: 31 | B194: 2015-07-06 | D194: Capital First | E194: Accu | F194: 390.00 | H194: 460 | I194: 460.00 | J194: Target Achieved | K194: 70.00 | L194: 17.95% | M194: Successful | N194: 2016-04-18
A195: 32 | B195: 2015-07-10 | D195: Dolphin OffShore | E195: Accu | F195: 122.5 | H195: 61.00 | I195: 172.00 | J195: Loss of Rs.61.50/- | K195: -61.50 | L195: -50.20% | M195: Unsuccessful | N195: 2018-08-21
A196: 33 | B196: 2015-08-03 | D196: Allcargo logistics | E196: Accu | F196: 297.50 | H196: 350 | I196: 360.00 | J196: Profit of Rs 52.50/- | K196: 52.50 | L196: =K196/F196 -> 17.65% | M196: Successful | N196: 2015-08-16
A197: 34 | B197: 2015-08-03 | D197: Camline Fine | E197: Accu | F197: 115.50 | H197: 149 | I197: 140.00 | J197: Profit of Rs 33.50/- | K197: 33.50 | L197: 29.00% | M197: Successful | N197: 2017-01-05
A198: 35 | B198: 2015-09-04 | D198: TCI | E198: Accu | F198: 226.00 | H198: 292 | I198: 292.00 | J198: Target Achieved | K198: 66.00 | L198: 29.20% | M198: Successful | N198: 2015-10-09
A199: 36 | B199: 2015-09-07 | D199: Kalpataru Power Transmission Ltd | E199: Accu | F199: 232.50 | H199: 312.5 | I199: 310.00 | J199: Target Achieved | K199: 80.00 | L199: 34.41% | M199: Successful | N199: 2017-03-29
A200: 37 | B200: 2015-09-21 | D200: LLOYD ELECTRIC & ENG LTD | E200: Accu | F200: 196.50 | H200: 238 | I200: 238.00 | J200: Target Achieved | K200: 41.50 | L200: 21.12% | M200: Successful | N200: 2015-10-14
A201: 38 | B201: 2015-09-24 | D201: L&T Finance Holding | E201: Accu | F201: 65.00 | H201: 82 | I201: 82.00 | J201: Target Achieved | K201: 17.00 | L201: 26.15% | M201: Successful | N201: 2016-07-27
A202: 39 | B202: 2015-10-14 | D202: KEC International ltd | E202: Accu | F202: 144.00 | H202: 182.5 | I202: 181.00 | J202: Target Achieved | K202: 38.50 | L202: 26.74% | M202: Successful | N202: 2017-03-23
A203: 40 | B203: 2015-10-14 | D203: Gruh Finance | E203: Accu | F203: 264.00 | H203: 311 | I203: 311.00 | J203: Target Achieved | K203: 47.00 | L203: 17.80% | M203: Successful | N203: 2016-08-22
A204: 41 | B204: 2015-11-10 | D204: Pidilitind | E204: Buy | F204: 549.50 | H204: 630 | I204: 630.00 | J204: Target Achieved | K204: 80.50 | L204: 14.65% | M204: Successful | N204: 2016-02-19
A205: 42 | B205: 2015-12-04 | D205: Zensar Technology | E205: Accu | F205: 1027.50 | H205: 1315 | I205: 1250.00 | J205: Target Achieved | K205: =H205-F205 -> 287.50 | L205: 27.98% | M205: Successful | N205: 2018-05-24
A206: 43 | B206: 2015-12-29 | D206: Vinati Organics Ltd | E206: Accu | F206: 465.00 | H206: 540 | I206: 540.00 | J206: Target Achieved | K206: 75.00 | L206: =K206/F206 -> 16.13% | M206: Successful | N206: 2016-06-09
A207: 44 | B207: 2016-01-11 | D207: GSFC | E207: Buy | F207: 81.00 | H207: 110 | I207: 110.00 | J207: Target Achieved | K207: 29.00 | L207: 35.80% | M207: Successful | N207: 2017-01-10
A208: 45 | B208: 2016-01-13 | D208: SSWL | E208: Buy | F208: 417.50 | H208: 547 | I208: 535.00 | J208: Target Achieved | K208: 129.50 | L208: 31.02% | M208: Successful | N208: 2016-07-27 | T208: .
A209: 46 | B209: 2016-02-08 | D209: Persistent System Ltd | E209: Accu | F209: 650.00 | H209: 800 | I209: 800.00 | J209: Target Achieved | K209: 150.00 | L209: 23.08% | M209: Successful | N209: 2018-02-23
A210: 47 | B210: 2016-03-04 | D210: UPL | E210: Accu | F210: 437.50 | H210: 504.5 | I210: 522.00 | J210: Profit of Rs.67/- | K210: 67.00 | L210: 15.31% | M210: Successful | N210: 2016-04-20
A211: 48 | B211: 2016-03-09 | D211: Ashoka Buildcon Ltd | E211: Accu | F211: 189.50 | H211: 218 | I211: 218.00 | J211: Target Achieved | K211: 28.50 | L211: 15.04% | M211: Successful | N211: 2017-10-26
A212: 49 | B212: 2016-04-11 | D212: PTC INDIA FIN SERV LTD | E212: Accu | F212: 36.5 | H212: 15.85 | I212: 60.00 | J212: Loss of Rs.20.65/- | K212: -20.65 | L212: -56.58% | M212: Unsuccessful | N212: 2019-06-11
A213: 50 | B213: 2016-04-12 | D213: CAMLINFINE $ | E213: Accu | F213: 93.00 | H213: 149 | I213: 140.00 | J213: Profit of Rs 56/- | K213: 56.00 | L213: =K213/F213 -> 60.22% | M213: Successful | N213: 2017-01-05
A214: 51 | B214: 2016-04-12 | D214: Greaves Cotton Ltd. | E214: Accu | F214: 130.00 | H214: 150 | I214: 150-155 | J214: Target Achieved | K214: 20.00 | L214: 15.38% | M214: Successful | N214: 2016-07-13
A215: 52 | B215: 2016-04-13 | D215: DHFL | E215: Accu | F215: 196.00 | H215: 299 | I215: 299.00 | J215: Target Achieved | K215: 103.00 | L215: 52.55% | M215: Successful | N215: 2016-09-07
A216: 53 | B216: 2016-04-13 | D216: Magma | E216: Accu | F216: 88.00 | H216: 103 | I216: 103.00 | J216: Target Achieved | K216: 15.00 | L216: 17.05% | M216: Successful | N216: 2016-06-09
A217: 54 | B217: 2016-05-02 | D217: KEC International ltd $ | E217: Accu | F217: 127.50 | H217: 148 | I217: 148-150 | J217: Target Achieved | K217: 20.50 | L217: 16.08% | M217: Successful | N217: 2016-07-13
A218: 55 | B218: 2016-05-03 | D218: Mindtree | E218: Accu | F218: 675.00 | H218: 815 | I218: 790-800 | J218: Target Achieved | K218: 140.00 | L218: 20.74% | M218: Successful | N218: 2018-02-23
A219: 56 | B219: 2016-06-06 | D219: TRITURBINE | E219: Accu | F219: 110.00 | H219: 126.5 | I219: 125.00 | J219: Profit of Rs.16.50/- | K219: 16.50 | L219: =K219/F219 -> 15.00% | M219: Successful | N219: 2016-07-01
A220: 57 | B220: 2016-06-17 | D220: Pennar Industries Ltd | E220: Accu | F220: 44.00 | H220: 69.5 | I220: 69.50 | J220: Profit of Rs.25.50/- | K220: 25.50 | L220: 57.95% | M220: Successful | N220: 2017-08-30
A221: 58 | B221: 2016-06-28 | D221: EVEREADY INDS. IND. LTD. | E221: Accu | F221: 262.50 | H221: 340 | I221: 333.00 | J221: Profit of Rs.77.50/- | K221: 77.50 | L221: 29.52% | M221: Successful | N221: 2017-10-09
A222: 59 | B222: 2016-06-28 | D222: FIEM INDUSTRIES LIMITED | E222: Accu | F222: 840.00 | H222: 1230 | I222: 1230.00 | J222: Target Achieved | K222: 390.00 | L222: 46.43% | M222: Successful | N222: 2016-10-06
A223: 60 | B223: 2016-07-05 | D223: Bajaj Corp Ltd | E223: Accu | F223: 395 | H223: =(468.5+342.5)/2 -> 405.50 | I223: 510.00 | J223: Profit of Rs.10.50/- | K223: 10.50 | L223: 3% | M223: Neutral | N223: 2019-05-21
A224: 61 | B224: 2016-08-02 | D224: GPPL $ | E224: Buy | F224: 169.5 | H224: 77.00 | I224: 198-200 | J224: Loss of Rs.92.5/- | K224: -92.50 | L224: -54.57% | M224: Unsuccessful | N224: 2019-02-26
A225: 62 | B225: 2016-08-04 | D225: WONDERLA HOLIDAYS LTD | E225: Accu | F225: 400 | H225: 305.00 | I225: 475.00 | J225: Loss of Rs.95/- | K225: =H225-F225 -> -95.00 | L225: =K225/F225 -> -23.75% | M225: Unsuccessful | N225: 2019-05-21
A226: 63 | B226: 2016-08-11 | D226: CAMLINFINE | E226: Accu | F226: 86.50 | H226: 130 | I226: 130.00 | J226: Profit of Rs.43.50/- | K226: =H226-F226 -> 43.50 | L226: =K226/F226 -> 50.29% | M226: Successful | N226: 2017-12-22
A227: 64 | B227: 2016-08-18 | D227: GRANULES | E227: Accu | F227: 133.5 | H227: 126.50 | I227: 178.00 | J227: Exit | K227: -7.00 | L227: -5.24% | M227: Unsuccessful | N227: 2016-09-02
A228: 65 | B228: 2016-08-31 | D228: VA TECH WABAG | E228: Accu | F228: 560.00 | H228: 725 | I228: 725.00 | J228: Target Achieved | K228: 165.00 | L228: 29.46% | M228: Successful | N228: 2016-03-27
A229: 66 | B229: 2016-09-01 | D229: SKIPPER LIMITED | E229: Accu | F229: 160.50 | H229: 210 | I229: 210.00 | J229: Target Achieved | K229: 49.50 | L229: 30.84% | M229: Successful | N229: 2017-05-16
A230: 67 | B230: 2016-10-03 | D230: IFB Industries | E230: Accu | F230: 430.00 | H230: 596 | I230: 575.00 | J230: Profit of Rs.166/- | K230: 166.00 | L230: 38.60% | M230: Successful | N230: 2017-02-03
A231: 68 | B231: 2016-10-14 | D231: ASIANTILES | E231: Accu | F231: 280.00 | H231: 345 | I231: 345.00 | J231: Target Achieved | K231: 65.00 | L231: 23.21% | M231: Successful | N231: 2017-03-20
A232: 69 | B232: 2016-10-14 | D232: DEEPIND | E232: Accu | F232: 245.00 | H232: 325.5 | I232: 330.00 | J232: Profit of Rs.80.5/- | K232: 80.50 | L232: 32.86% | M232: Successful | N232: 2017-02-03
A233: 70 | B233: 2016-10-17 | D233: DCBBANK | E233: Accu | F233: 125.00 | H233: 160 | I233: 160.00 | J233: Target Achieved | K233: 35.00 | L233: 28.00% | M233: Successful | N233: 2017-03-09
A234: 71 | B234: 2016-10-17 | D234: ORIENTREF | E234: Accu | F234: 114.00 | H234: 145 | I234: 145.00 | J234: Target Achieved | K234: 31.00 | L234: =K234/F234 -> 27.19% | M234: Successful | N234: 2017-05-04
A235: 72 | B235: 2016-10-17 | D235: GANECOS | E235: Accu | F235: 212.00 | H235: 280 | I235: 276.00 | J235: Profit of Rs.68/- | K235: 68.00 | L235: =K235/F235 -> 32.08% | M235: Successful | N235: 2017-05-03
A236: 73 | B236: 2016-11-04 | D236: NBCC | E236: Accu | F236: 155.00 | H236: 210 | I236: 210.00 | J236: Profit of Rs.55/- | K236: 55.00 | L236: =K236/F236 -> 35.48% | M236: Successful | N236: 2017-07-28
A237: 74 | B237: 2016-12-06 | D237: PRECAM | E237: Accu | F237: 150.5 | H237: 72.50 | I237: 174.00 | J237: Loss of Rs.78/- | K237: -78.00 | L237: =K237/F237 -> -51.83% | M237: Unsuccessful | N237: 2018-08-21
... 79 more rows

Sheet Sheet2 (hidden)
A1: SYMBOL | B1: SERIES | C1: OPEN | D1: HIGH | E1: LOW | F1: CLOSE | G1: LAST | H1: PREVCLOSE | I1: TOTTRDQTY | J1: TOTTRDVAL | K1: TIMESTAMP | L1: TOTALTRADES | M1: ISIN | N1: ISIN
A2: 20MICRONS | B2: EQ | C2: 35.2 | D2: 36.5 | E2: 35 | F2: 35.85 | G2: 35.6 | H2: 35.2 | I2: 11223 | J2: 400147 | K2: 2019-06-24 | L2: 160 | M2: INE144J01027
A3: 21STCENMGM | B3: EQ | C3: 17.65 | D3: 18.25 | E3: 17.65 | F3: 18.25 | G3: 18.25 | H3: 18 | I3: 1313 | J3: 23631.5 | K3: 2019-06-24 | L3: 22 | M3: INE253B01015
A4: 3IINFOTECH | B4: EQ | C4: 3.25 | D4: 3.3 | E4: 3.15 | F4: 3.2 | G4: 3.2 | H4: 3.3 | I4: 1471211 | J4: 4743511.1 | K4: 2019-06-24 | L4: 504 | M4: INE748C01020
A5: 3MINDIA | B5: EQ | C5: 23700 | D5: 23979.85 | E5: 23120 | F5: 23779.1 | G5: 23511 | H5: 23529.6 | I5: 2765 | J5: 65940300.25 | K5: 2019-06-24 | L5: 820 | M5: INE470A01017
A6: 3PLAND | B6: BE | C6: 8.4 | D6: 8.8 | E6: 8.4 | F6: 8.8 | G6: 8.8 | H6: 8.4 | I6: 93 | J6: 806.4 | K6: 2019-06-24 | L6: 3 | M6: INE105C01023
A7: 5PAISA | B7: EQ | C7: 207.1 | D7: 207.1 | E7: 198.3 | F7: 203.4 | G7: 203.2 | H7: 206.8 | I7: 2951 | J7: 604461.3 | K7: 2019-06-24 | L7: 222 | M7: INE618L01018
A8: 63MOONS | B8: EQ | C8: 117 | D8: 120.8 | E8: 113.55 | F8: 115.7 | G8: 114.8 | H8: 116.7 | I8: 128950 | J8: 15237180.35 | K8: 2019-06-24 | L8: 2457 | M8: INE111B01023
A9: 8KMILES | B9: EQ | C9: 80.65 | D9: 80.65 | E9: 80.65 | F9: 80.65 | G9: 80.65 | H9: 76.85 | I9: 14089 | J9: 1136277.85 | K9: 2019-06-24 | L9: 88 | M9: INE650K01021
A10: A2ZINFRA | B10: EQ | C10: 13.45 | D10: 13.65 | E10: 13 | F10: 13.35 | G10: 13.45 | H10: 13.05 | I10: 128186 | J10: 1715272.5 | K10: 2019-06-24 | L10: 505 | M10: INE619I01012
A11: AARTIDRUGS | B11: EQ | C11: 515.2 | D11: 539.35 | E11: 515.2 | F11: 530 | G11: 531 | H11: 516.35 | I11: 12170 | J11: 6434856 | K11: 2019-06-24 | L11: 1850 | M11: INE767A01016
A12: AARTIIND | B12: EQ | C12: 1774.6 | D12: 1812.35 | E12: 1766 | F12: 1803.2 | G12: 1805 | H12: 1764.4 | I12: 130258 | J12: 233313522.5 | K12: 2019-06-24 | L12: 14743 | M12: INE769A01020
A13: AARVEEDEN | B13: EQ | C13: 21.65 | D13: 21.65 | E13: 20.25 | F13: 21.5 | G13: 21.65 | H13: 21.05 | I13: 3473 | J13: 73145.8 | K13: 2019-06-24 | L13: 82 | M13: INE273D01019
A14: AAVAS | B14: EQ | C14: 1426 | D14: 1490 | E14: 1426 | F14: 1473.25 | G14: 1468 | H14: 1451.05 | I14: 9466 | J14: 13864345.9 | K14: 2019-06-24 | L14: 1826 | M14: INE216P01012
A15: ABAN | B15: BE | C15: 36.85 | D15: 37.05 | E15: 35 | F15: 37 | G15: 36.95 | H15: 35.3 | I15: 68392 | J15: 2496948 | K15: 2019-06-24 | L15: 785 | M15: INE421A01028
A16: ABB | B16: EQ | C16: 1560.15 | D16: 1573 | E16: 1550 | F16: 1560.9 | G16: 1551.3 | H16: 1559.05 | I16: 73029 | J16: 113931886.5 | K16: 2019-06-24 | L16: 5020 | M16: INE117A01022
A17: ABBOTINDIA | B17: EQ | C17: 8545 | D17: 8764.9 | E17: 8504.15 | F17: 8541.85 | G17: 8539.95 | H17: 8504.15 | I17: 6256 | J17: 53883405.25 | K17: 2019-06-24 | L17: 1386 | M17: INE358A01014
A18: ABCAPITAL | B18: EQ | C18: 93.45 | D18: 94 | E18: 91.8 | F18: 92.15 | G18: 91.95 | H18: 93.45 | I18: 693298 | J18: 64218019.9 | K18: 2019-06-24 | L18: 8459 | M18: INE674K01013
A19: ABFRL | B19: EQ | C19: 210.1 | D19: 211.6 | E19: 206 | F19: 207.7 | G19: 207 | H19: 210.35 | I19: 165305 | J19: 34382570.65 | K19: 2019-06-24 | L19: 9356 | M19: INE647O01011
A20: ABSLNN50ET | B20: EQ | C20: 272 | D20: 272 | E20: 268.05 | F20: 268.05 | G20: 268.05 | H20: 270.78 | I20: 5 | J20: 1352.05 | K20: 2019-06-24 | L20: 3 | M20: INF209KB1B87
A21: ACC | B21: EQ | C21: 1530 | D21: 1552.85 | E21: 1517.45 | F21: 1537.6 | G21: 1537.1 | H21: 1532.45 | I21: 536701 | J21: 826880881.5 | K21: 2019-06-24 | L21: 22987 | M21: INE012A01025
A22: ACCELYA | B22: EQ | C22: 876.05 | D22: 885 | E22: 860.55 | F22: 876.2 | G22: 866.1 | H22: 878.25 | I22: 3470 | J22: 3016280.6 | K22: 2019-06-24 | L22: 423 | M22: INE793A01012
A23: ACE | B23: EQ | C23: 95 | D23: 95.65 | E23: 91.9 | F23: 93.95 | G23: 93.15 | H23: 94.35 | I23: 253277 | J23: 23768951.3 | K23: 2019-06-24 | L23: 6375 | M23: INE731H01025
A24: ADANIENT | B24: EQ | C24: 145.9 | D24: 148.8 | E24: 144.6 | F24: 147.75 | G24: 146.6 | H24: 146.8 | I24: 3240654 | J24: 476670230.1 | K24: 2019-06-24 | L24: 15888 | M24: INE423A01024
A25: ADANIGAS | B25: EQ | C25: 160.6 | D25: 162.5 | E25: 157.55 | F25: 158.7 | G25: 158.5 | H25: 159.45 | I25: 275114 | J25: 43956652.1 | K25: 2019-06-24 | L25: 3823 | M25: INE399L01023
A26: ADANIGREEN | B26: EQ | C26: 41.6 | D26: 41.65 | E26: 40.45 | F26: 41.15 | G26: 41.25 | H26: 41.25 | I26: 329432 | J26: 13598431.65 | K26: 2019-06-24 | L26: 1787 | M26: INE364U01010
A27: ADANIPORTS | B27: EQ | C27: 400 | D27: 407.4 | E27: 399.8 | F27: 406 | G27: 406 | H27: 402 | I27: 2582740 | J27: 1044778849 | K27: 2019-06-24 | L27: 30902 | M27: INE742F01042
A28: ADANIPOWER | B28: EQ | C28: 47.9 | D28: 50.5 | E28: 47.15 | F28: 50.15 | G28: 50.35 | H28: 47.9 | I28: 15302455 | J28: 752489274.4 | K28: 2019-06-24 | L28: 24086 | M28: INE814H01011
A29: ADANITRANS | B29: EQ | C29: 226 | D29: 231 | E29: 222.7 | F29: 224.85 | G29: 223.25 | H29: 225.15 | I29: 66000 | J29: 14990544.45 | K29: 2019-06-24 | L29: 1885 | M29: INE931S01010
A30: ADFFOODS | B30: EQ | C30: 267.6 | D30: 282.1 | E30: 267.6 | F30: 274.8 | G30: 275 | H30: 270.45 | I30: 22695 | J30: 6258910.8 | K30: 2019-06-24 | L30: 844 | M30: INE982B01019
A31: ADHUNIK | B31: BE | C31: 1.35 | D31: 1.45 | E31: 1.35 | F31: 1.35 | G31: 1.35 | H31: 1.4 | I31: 49540 | J31: 69298.95 | K31: 2019-06-24 | L31: 53 | M31: INE400H01019
A32: ADHUNIKIND | B32: EQ | C32: 73.1 | D32: 77.95 | E32: 73.1 | F32: 77.5 | G32: 77.95 | H32: 73.25 | I32: 42439 | J32: 3248197 | K32: 2019-06-24 | L32: 211 | M32: INE452L01012
A33: ADLABS | B33: EQ | C33: 4.35 | D33: 4.8 | E33: 4.25 | F33: 4.8 | G33: 4.8 | H33: 4.4 | I33: 94000 | J33: 448742.7 | K33: 2019-06-24 | L33: 147 | M33: INE172N01012
A34: ADORWELD | B34: EQ | C34: 334.9 | D34: 342.8 | E34: 334.9 | F34: 338.1 | G34: 337 | H34: 336.15 | I34: 1052 | J34: 355614.45 | K34: 2019-06-24 | L34: 72 | M34: INE045A01017
A35: ADROITINFO | B35: BE | C35: 9.8 | D35: 10.25 | E35: 9.35 | F35: 10.25 | G35: 10.25 | H35: 9.8 | I35: 728 | J35: 6816 | K35: 2019-06-24 | L35: 8 | M35: INE737B01033
A36: ADSL | B36: EQ | C36: 16.45 | D36: 16.45 | E36: 14.75 | F36: 14.95 | G36: 15.1 | H36: 15.75 | I36: 59471 | J36: 903722.25 | K36: 2019-06-24 | L36: 173 | M36: INE102I01027
A37: ADVANIHOTR | B37: EQ | C37: 58.45 | D37: 58.5 | E37: 57.8 | F37: 58.5 | G37: 58.5 | H37: 58.55 | I37: 1112 | J37: 64527.85 | K37: 2019-06-24 | L37: 25 | M37: INE199C01026
A38: ADVENZYMES | B38: EQ | C38: 171.85 | D38: 174 | E38: 164.1 | F38: 167.65 | G38: 167.7 | H38: 170.9 | I38: 162499 | J38: 27700263 | K38: 2019-06-24 | L38: 2135 | M38: INE837H01020
A39: AEGISCHEM | B39: EQ | C39: 210.1 | D39: 211.45 | E39: 200.1 | F39: 201.55 | G39: 201.45 | H39: 209.6 | I39: 68425 | J39: 14073754.65 | K39: 2019-06-24 | L39: 2803 | M39: INE208C01025
A40: AGARIND | B40: EQ | C40: 118 | D40: 121.85 | E40: 114.2 | F40: 121.5 | G40: 119.25 | H40: 110.8 | I40: 15409 | J40: 1849548.05 | K40: 2019-06-24 | L40: 162 | M40: INE204E01012
A41: AGCNET | B41: EQ | C41: 113.9 | D41: 113.9 | E41: 108.3 | F41: 109.55 | G41: 108.3 | H41: 112.1 | I41: 1349 | J41: 148882.05 | K41: 2019-06-24 | L41: 55 | M41: INE676A01019
A42: AGLSL | B42: EQ | C42: 55.2 | D42: 57 | E42: 55.2 | F42: 57 | G42: 57 | H42: 56.2 | I42: 809 | J42: 46003.05 | K42: 2019-06-24 | L42: 37 | M42: INE517U01013
A43: AGRITECH | B43: EQ | C43: 51.2 | D43: 51.5 | E43: 48.45 | F43: 50.2 | G43: 49.65 | H43: 51.2 | I43: 4886 | J43: 246303.3 | K43: 2019-06-24 | L43: 135 | M43: INE449G01018
A44: AGROPHOS | B44: BE | C44: 85.95 | D44: 85.95 | E44: 81.7 | F44: 82.75 | G44: 83 | H44: 86 | I44: 405 | J44: 33816.45 | K44: 2019-06-24 | L44: 18 | M44: INE740V01019
A45: AHLEAST | B45: EQ | C45: 180.15 | D45: 192.95 | E45: 180.15 | F45: 189.95 | G45: 189.95 | H45: 187.45 | I45: 117 | J45: 22083.65 | K45: 2019-06-24 | L45: 64 | M45: INE926K01017
A46: AHLUCONT | B46: EQ | C46: 329.4 | D46: 331.5 | E46: 326 | F46: 330 | G46: 330 | H46: 330.25 | I46: 6044 | J46: 1992129.9 | K46: 2019-06-24 | L46: 193 | M46: INE758C01029
A47: AHLWEST | B47: EQ | C47: 335.85 | D47: 336.65 | E47: 335.75 | F47: 336.5 | G47: 336.5 | H47: 337.05 | I47: 89 | J47: 29939.2 | K47: 2019-06-24 | L47: 5 | M47: INE915K01010
A48: AIAENG | B48: EQ | C48: 1751 | D48: 1757 | E48: 1725 | F48: 1748.55 | G48: 1750 | H48: 1759.35 | I48: 7702 | J48: 13452088.1 | K48: 2019-06-24 | L48: 1725 | M48: INE212H01026
A49: AIONJSW | B49: EQ | C49: 17.05 | D49: 17.5 | E49: 16.8 | F49: 16.9 | G49: 16.8 | H49: 17.05 | I49: 4767 | J49: 81988.1 | K49: 2019-06-24 | L49: 102 | M49: INE743C01021
A50: AIRAN | B50: EQ | C50: 26.5 | D50: 28.4 | E50: 26.5 | F50: 27.5 | G50: 27.5 | H50: 27.45 | I50: 146 | J50: 4068.25 | K50: 2019-06-24 | L50: 11 | M50: INE645W01026
A51: AJANTPHARM | B51: EQ | C51: 953 | D51: 963.1 | E51: 933 | F51: 956.6 | G51: 956.1 | H51: 954.55 | I51: 258930 | J51: 245394785.6 | K51: 2019-06-24 | L51: 10479 | M51: INE031B01049
A52: AJMERA | B52: EQ | C52: 160 | D52: 164.75 | E52: 152.5 | F52: 158.15 | G52: 156.5 | H52: 159.55 | I52: 31929 | J52: 5037636.55 | K52: 2019-06-24 | L52: 1075 | M52: INE298G01027
A53: AKSHARCHEM | B53: EQ | C53: 263.05 | D53: 270 | E53: 261.55 | F53: 264.8 | G53: 266 | H53: 267.15 | I53: 4188 | J53: 1117748.95 | K53: 2019-06-24 | L53: 264 | M53: INE542B01011
A54: AKSHOPTFBR | B54: EQ | C54: 11.1 | D54: 11.9 | E54: 10.7 | F54: 10.8 | G54: 10.8 | H54: 11.1 | I54: 271820 | J54: 2972465.35 | K54: 2019-06-24 | L54: 1028 | M54: INE523B01011
A55: AKZOINDIA | B55: EQ | C55: 1706.25 | D55: 1738.3 | E55: 1701.7 | F55: 1727.75 | G55: 1715.5 | H55: 1725.15 | I55: 2014 | J55: 3468626.8 | K55: 2019-06-24 | L55: 431 | M55: INE133A01011
A56: ALANKIT | B56: EQ | C56: 31 | D56: 31.4 | E56: 29.4 | F56: 30 | G56: 29.4 | H56: 31 | I56: 490432 | J56: 14966727.1 | K56: 2019-06-24 | L56: 3038 | M56: INE914E01040
A57: ALBERTDAVD | B57: EQ | C57: 402.05 | D57: 402.5 | E57: 395.05 | F57: 397 | G57: 397 | H57: 401.6 | I57: 341 | J57: 136528.05 | K57: 2019-06-24 | L57: 34 | M57: INE155C01010
A58: ALBK | B58: EQ | C58: 41.2 | D58: 41.3 | E58: 40.55 | F58: 40.8 | G58: 40.6 | H58: 41.15 | I58: 2144903 | J58: 87740730.25 | K58: 2019-06-24 | L58: 5238 | M58: INE428A01015
A59: ALCHEM | B59: BE | C59: 1.15 | D59: 1.25 | E59: 1.15 | F59: 1.2 | G59: 1.2 | H59: 1.2 | I59: 4170 | J59: 5054.2 | K59: 2019-06-24 | L59: 15 | M59: INE964B01033
A60: ALEMBICLTD | B60: EQ | C60: 41 | D60: 42.15 | E60: 41 | F60: 41.85 | G60: 42.1 | H60: 41.5 | I60: 88931 | J60: 3692621.05 | K60: 2019-06-24 | L60: 616 | M60: INE426A01027
A61: ALICON | B61: EQ | C61: 555 | D61: 570.5 | E61: 555 | F61: 561.05 | G61: 561 | H61: 562.45 | I61: 1274 | J61: 725012.8 | K61: 2019-06-24 | L61: 83 | M61: INE062D01024
A62: ALKALI | B62: EQ | C62: 39.45 | D62: 40.3 | E62: 38.7 | F62: 39.45 | G62: 39.9 | H62: 39.45 | I62: 4082 | J62: 161087.3 | K62: 2019-06-24 | L62: 69 | M62: INE773I01017
A63: ALKEM | B63: EQ | C63: 1760.75 | D63: 1784.9 | E63: 1700.1 | F63: 1715.75 | G63: 1708.9 | H63: 1760.45 | I63: 38423 | J63: 67173142.45 | K63: 2019-06-24 | L63: 7805 | M63: INE540L01014
A64: ALKYLAMINE | B64: EQ | C64: 816 | D64: 819.95 | E64: 802.1 | F64: 803.65 | G64: 802.1 | H64: 820 | I64: 1526 | J64: 1231630.45 | K64: 2019-06-24 | L64: 98 | M64: INE150B01021
A65: ALLCARGO | B65: EQ | C65: 104.5 | D65: 104.75 | E65: 101.3 | F65: 102.1 | G65: 102.2 | H65: 102.45 | I65: 34069 | J65: 3484200.5 | K65: 2019-06-24 | L65: 843 | M65: INE418H01029
A66: ALLSEC | B66: BE | C66: 316.1 | D66: 318.85 | E66: 316.1 | F66: 316.3 | G66: 316.3 | H66: 316.95 | I66: 6668 | J66: 2110217.8 | K66: 2019-06-24 | L66: 35 | M66: INE835G01018
A67: ALMONDZ | B67: EQ | C67: 16.05 | D67: 18.4 | E67: 16.05 | F67: 16.55 | G67: 16.55 | H67: 16.8 | I67: 1272 | J67: 21257.2 | K67: 2019-06-24 | L67: 11 | M67: INE326B01027
A68: ALOKTEXT | B68: BE | C68: 3.65 | D68: 3.75 | E68: 3.55 | F68: 3.55 | G68: 3.55 | H68: 3.6 | I68: 2419013 | J68: 8824905.75 | K68: 2019-06-24 | L68: 778 | M68: INE270A01011
A69: ALPA | B69: EQ | C69: 18.05 | D69: 18.55 | E69: 18 | F69: 18.15 | G69: 18.3 | H69: 18.4 | I69: 3930 | J69: 71355 | K69: 2019-06-24 | L69: 126 | M69: INE385I01010
A70: ALPHAGEO | B70: EQ | C70: 431 | D70: 447.9 | E70: 426.05 | F70: 431.6 | G70: 432 | H70: 431 | I70: 2407 | J70: 1057493.35 | K70: 2019-06-24 | L70: 392 | M70: INE137C01018
A71: ALPSINDUS | B71: BE | C71: 0.7 | D71: 0.7 | E71: 0.7 | F71: 0.7 | G71: 0.7 | H71: 0.75 | I71: 1000 | J71: 700 | K71: 2019-06-24 | L71: 5 | M71: INE093B01015
A72: AMARAJABAT | B72: EQ | C72: 607 | D72: 609.6 | E72: 595 | F72: 601.6 | G72: 601 | H72: 607.5 | I72: 386759 | J72: 232757192.9 | K72: 2019-06-24 | L72: 12118 | M72: INE885A01032
A73: AMBER | B73: EQ | C73: 825 | D73: 825 | E73: 801 | F73: 818.95 | G73: 815.5 | H73: 820.6 | I73: 3837 | J73: 3136617.55 | K73: 2019-06-24 | L73: 525 | M73: INE371P01015
A74: AMBIKCO | B74: EQ | C74: 1075.05 | D74: 1075.05 | E74: 1030 | F74: 1039.25 | G74: 1034 | H74: 1069.9 | I74: 3839 | J74: 4034143.8 | K74: 2019-06-24 | L74: 419 | M74: INE540G01014
A75: AMBUJACEM | B75: EQ | C75: 213.1 | D75: 216.9 | E75: 212.5 | F75: 215 | G75: 214.7 | H75: 212.85 | I75: 2639044 | J75: 567873337.2 | K75: 2019-06-24 | L75: 33979 | M75: INE079A01024
A76: AMDIND | B76: EQ | C76: 17.6 | D76: 18 | E76: 17.35 | F76: 17.45 | G76: 17.45 | H76: 17.6 | I76: 2604 | J76: 45571.2 | K76: 2019-06-24 | L76: 25 | M76: INE005I01014
A77: AMJLAND | B77: EQ | C77: 16 | D77: 16.9 | E77: 16 | F77: 16.4 | G77: 16.8 | H77: 16.55 | I77: 4030 | J77: 65716.05 | K77: 2019-06-24 | L77: 47 | M77: INE606A01024
A78: AMRUTANJAN | B78: EQ | C78: 296.45 | D78: 304.95 | E78: 296 | F78: 296.8 | G78: 297.25 | H78: 298.7 | I78: 9948 | J78: 2974371.05 | K78: 2019-06-24 | L78: 647 | M78: INE098F01031
A79: ANANTRAJ | B79: EQ | C79: 29.15 | D79: 29.8 | E79: 28.55 | F79: 29 | G79: 28.9 | H79: 29 | I79: 187495 | J79: 5459706 | K79: 2019-06-24 | L79: 1052 | M79: INE242C01024
A80: ANDHRABANK | B80: EQ | C80: 22.5 | D80: 22.85 | E80: 22.4 | F80: 22.7 | G80: 22.65 | H80: 22.55 | I80: 625625 | J80: 14175754.6 | K80: 2019-06-24 | L80: 1907 | M80: INE434A01013
A81: ANDHRACEMT | B81: BE | C81: 4 | D81: 4.2 | E81: 3.9 | F81: 4.1 | G81: 4.1 | H81: 4 | I81: 35699 | J81: 144729.9 | K81: 2019-06-24 | L81: 80 | M81: INE666E01012
A82: ANDHRSUGAR | B82: EQ | C82: 328 | D82: 328 | E82: 318 | F82: 324.35 | G82: 322.75 | H82: 324.95 | I82: 14017 | J82: 4532997.15 | K82: 2019-06-24 | L82: 715 | M82: INE715B01013
A83: ANIKINDS | B83: EQ | C83: 12.2 | D83: 12.2 | E83: 11.25 | F83: 11.85 | G83: 12.2 | H83: 12.2 | I83: 476 | J83: 5544.3 | K83: 2019-06-24 | L83: 19 | M83: INE087B01017
A84: ANKITMETAL | B84: BE | C84: 0.4 | D84: 0.45 | E84: 0.35 | F84: 0.4 | G84: 0.35 | H84: 0.4 | I84: 17151 | J84: 6935.95 | K84: 2019-06-24 | L84: 25 | M84: INE106I01010
A85: ANSALAPI | B85: EQ | C85: 5.05 | D85: 5.05 | E85: 4.9 | F85: 5.05 | G85: 5.05 | H85: 4.85 | I85: 33532 | J85: 169143.5 | K85: 2019-06-24 | L85: 60 | M85: INE436A01026
A86: ANSALHSG | B86: EQ | C86: 6.8 | D86: 6.8 | E86: 6.3 | F86: 6.4 | G86: 6.4 | H86: 6.5 | I86: 60591 | J86: 392570.55 | K86: 2019-06-24 | L86: 505 | M86: INE880B01015
A87: ANTGRAPHIC | B87: BE | C87: 0.85 | D87: 0.85 | E87: 0.85 | F87: 0.85 | G87: 0.85 | H87: 0.9 | I87: 8803 | J87: 7482.55 | K87: 2019-06-24 | L87: 19 | M87: INE414B01021
A88: ANUP | B88: EQ | C88: 463.75 | D88: 479.75 | E88: 460.05 | F88: 474.75 | G88: 475 | H88: 466.75 | I88: 7057 | J88: 3319725.8 | K88: 2019-06-24 | L88: 767 | M88: INE294Z01018
A89: APARINDS | B89: EQ | C89: 598 | D89: 602.7 | E89: 578.05 | F89: 584.9 | G89: 583.95 | H89: 599.65 | I89: 16459 | J89: 9712067.3 | K89: 2019-06-24 | L89: 632 | M89: INE372A01015
A90: APCL | B90: EQ | C90: 165.4 | D90: 171 | E90: 157 | F90: 164.85 | G90: 169.9 | H90: 165.15 | I90: 4206 | J90: 687616.75 | K90: 2019-06-24 | L90: 301 | M90: INE071F01012
A91: APCOTEXIND | B91: EQ | C91: 569.8 | D91: 569.8 | E91: 558.4 | F91: 566.8 | G91: 565.2 | H91: 560.55 | I91: 4130 | J91: 2329287.35 | K91: 2019-06-24 | L91: 255 | M91: INE116A01024
A92: APEX | B92: EQ | C92: 249.05 | D92: 253.85 | E92: 245.8 | F92: 249.35 | G92: 249.05 | H92: 249.05 | I92: 22782 | J92: 5692675.8 | K92: 2019-06-24 | L92: 1331 | M92: INE346W01013
A93: APLAPOLLO | B93: EQ | C93: 1549 | D93: 1549 | E93: 1510 | F93: 1513.65 | G93: 1510 | H93: 1529.1 | I93: 8229 | J93: 12553656.45 | K93: 2019-06-24 | L93: 1426 | M93: INE702C01019
A94: APLLTD | B94: EQ | C94: 478 | D94: 513.65 | E94: 475 | F94: 505 | G94: 512 | H94: 473.5 | I94: 64604 | J94: 31935055.15 | K94: 2019-06-24 | L94: 3258 | M94: INE901L01018
A95: APOLLO | B95: EQ | C95: 116.05 | D95: 118.65 | E95: 114.5 | F95: 115.1 | G95: 114.7 | H95: 116.6 | I95: 8707 | J95: 1015025.9 | K95: 2019-06-24 | L95: 529 | M95: INE713T01010
A96: APOLLOHOSP | B96: EQ | C96: 1353.9 | D96: 1357.1 | E96: 1330.05 | F96: 1344.65 | G96: 1345 | H96: 1348.25 | I96: 420849 | J96: 563687451.8 | K96: 2019-06-24 | L96: 30942 | M96: INE437A01024
A97: APOLLOTYRE | B97: EQ | C97: 197.6 | D97: 200.9 | E97: 195.3 | F97: 199.45 | G97: 199.15 | H97: 197.55 | I97: 1829459 | J97: 363544371.2 | K97: 2019-06-24 | L97: 14674 | M97: INE438A01022
A98: APOLSINHOT | B98: EQ | C98: 831.05 | D98: 850.05 | E98: 802 | F98: 843.4 | G98: 847.9 | H98: 837.55 | I98: 1026 | J98: 863364.3 | K98: 2019-06-24 | L98: 168 | M98: INE451F01024
A99: APTECHT | B99: EQ | C99: 137.35 | D99: 139.6 | E99: 133.6 | F99: 136.25 | G99: 136.05 | H99: 137.35 | I99: 137626 | J99: 18769940.5 | K99: 2019-06-24 | L99: 3319 | M99: INE266F01018
A100: ARCHIDPLY | B100: EQ | C100: 33.15 | D100: 33.2 | E100: 32.2 | F100: 32.35 | G100: 32.2 | H100: 33.05 | I100: 3740 | J100: 121419.75 | K100: 2019-06-24 | L100: 102 | M100: INE877I01016
A101: ARCHIES | B101: EQ | C101: 20.6 | D101: 21 | E101: 20 | F101: 20.65 | G101: 20.55 | H101: 20.8 | I101: 34708 | J101: 715273.35 | K101: 2019-06-24 | L101: 270 | M101: INE731A01020
A102: ARCOTECH | B102: BE | C102: 2.55 | D102: 2.75 | E102: 2.55 | F102: 2.75 | G102: 2.75 | H102: 2.65 | I102: 38819 | J102: 102869.9 | K102: 2019-06-24 | L102: 112 | M102: INE574I01035
A103: ARIES | B103: EQ | C103: 60.65 | D103: 62.65 | E103: 60.65 | F103: 61.55 | G103: 61.4 | H103: 60.35 | I103: 31824 | J103: 1969059.1 | K103: 2019-06-24 | L103: 490 | M103: INE298I01015
A104: ARIHANT | B104: EQ | C104: 24 | D104: 24 | E104: 21.75 | F104: 21.8 | G104: 21.75 | H104: 22.4 | I104: 915 | J104: 20135.55 | K104: 2019-06-24 | L104: 35 | M104: INE413D01011
A105: ARIHANTSUP | B105: BE | C105: 55.3 | D105: 59.95 | E105: 55.3 | F105: 55.65 | G105: 56 | H105: 57.8 | I105: 27021 | J105: 1566139.1 | K105: 2019-06-24 | L105: 162 | M105: INE643K01018
A106: ARMANFIN | B106: EQ | C106: 400.5 | D106: 407.3 | E106: 400.4 | F106: 405.25 | G106: 405 | H106: 404.5 | I106: 785 | J106: 318148.05 | K106: 2019-06-24 | L106: 32 | M106: INE109C01017
A107: AROGRANITE | B107: EQ | C107: 44.55 | D107: 45.95 | E107: 44.35 | F107: 45.1 | G107: 45 | H107: 44.35 | I107: 8079 | J107: 363542.05 | K107: 2019-06-24 | L107: 80 | M107: INE210C01013
A108: ARROWGREEN | B108: EQ | C108: 49.25 | D108: 50.9 | E108: 48.15 | F108: 48.65 | G108: 48.4 | H108: 49.3 | I108: 6175 | J108: 304668.95 | K108: 2019-06-24 | L108: 107 | M108: INE570D01018
A109: ARROWTEX | B109: EQ | C109: 12.5 | D109: 12.9 | E109: 12 | F109: 12.25 | G109: 12.45 | H109: 12.45 | I109: 23833 | J109: 297625.25 | K109: 2019-06-24 | L109: 106 | M109: INE933J01015
A110: ARSHIYA | B110: EQ | C110: 22.5 | D110: 23.2 | E110: 20.75 | F110: 20.8 | G110: 20.75 | H110: 22.05 | I110: 58041 | J110: 1248605.35 | K110: 2019-06-24 | L110: 359 | M110: INE968D01022
A111: ARSSINFRA | B111: BE | C111: 32.1 | D111: 35.25 | E111: 32.1 | F111: 33.95 | G111: 33 | H111: 33.75 | I111: 3109 | J111: 104184.8 | K111: 2019-06-24 | L111: 33 | M111: INE267I01010
A112: ARVIND | B112: EQ | C112: 63.9 | D112: 64.4 | E112: 60.5 | F112: 62.5 | G112: 61.95 | H112: 63.55 | I112: 3365109 | J112: 210508079.3 | K112: 2019-06-24 | L112: 20825 | M112: INE034A01011
A113: ARVINDFASN | B113: EQ | C113: 700 | D113: 703 | E113: 680.05 | F113: 700.25 | G113: 701 | H113: 696.75 | I113: 50049 | J113: 34891247.25 | K113: 2019-06-24 | L113: 1132 | M113: INE955V01021
A114: ARVSMART | B114: EQ | C114: 99.4 | D114: 105.9 | E114: 97.25 | F114: 98.5 | G114: 102 | H114: 100.7 | I114: 22161 | J114: 2235374.9 | K114: 2019-06-24 | L114: 1123 | M114: INE034S01021
A115: ASAHIINDIA | B115: EQ | C115: 225.95 | D115: 225.95 | E115: 218 | F115: 218.65 | G115: 218.5 | H115: 222.45 | I115: 3321 | J115: 726763 | K115: 2019-06-24 | L115: 249 | M115: INE439A01020
A116: ASAHISONG | B116: EQ | C116: 146.95 | D116: 149 | E116: 135.65 | F116: 136.9 | G116: 136 | H116: 140.35 | I116: 1906 | J116: 264456.45 | K116: 2019-06-24 | L116: 140 | M116: INE228I01012
A117: ASAL | B117: EQ | C117: 43.7 | D117: 46 | E117: 43.6 | F117: 44.9 | G117: 44.75 | H117: 43.1 | I117: 2969 | J117: 133748.6 | K117: 2019-06-24 | L117: 44 | M117: INE900C01027
A118: ASHAPURMIN | B118: BE | C118: 17 | D118: 18.45 | E118: 17 | F118: 17.35 | G118: 17.35 | H118: 17.65 | I118: 32955 | J118: 580720.3 | K118: 2019-06-24 | L118: 112 | M118: INE348A01023
A119: ASHIANA | B119: EQ | C119: 128.65 | D119: 132.4 | E119: 125.5 | F119: 126.15 | G119: 125.8 | H119: 125.85 | I119: 92800 | J119: 11953938.2 | K119: 2019-06-24 | L119: 1541 | M119: INE365D01021
A120: ASHIMASYN | B120: EQ | C120: 9.2 | D120: 10.25 | E120: 9.2 | F120: 10.05 | G120: 10.1 | H120: 9.95 | I120: 28994 | J120: 288679.9 | K120: 2019-06-24 | L120: 110 | M120: INE440A01010
A121: ASHOKA | B121: EQ | C121: 134 | D121: 137 | E121: 132.5 | F121: 133.65 | G121: 132.95 | H121: 135.45 | I121: 132233 | J121: 17784674.45 | K121: 2019-06-24 | L121: 2315 | M121: INE442H01029
A122: ASHOKLEY | B122: EQ | C122: 86.65 | D122: 87.2 | E122: 85.2 | F122: 85.8 | G122: 85.85 | H122: 86.5 | I122: 11625336 | J122: 1000334650 | K122: 2019-06-24 | L122: 38924 | M122: INE208A01029
A123: ASIANHOTNR | B123: EQ | C123: 121.25 | D123: 126.8 | E123: 121.25 | F123: 122.4 | G123: 122.15 | H123: 124.45 | I123: 532 | J123: 65843.1 | K123: 2019-06-24 | L123: 80 | M123: INE363A01022
A124: ASIANPAINT | B124: EQ | C124: 1386 | D124: 1398 | E124: 1368.25 | F124: 1376.15 | G124: 1374.5 | H124: 1383 | I124: 757055 | J124: 1043086865 | K124: 2019-06-24 | L124: 44297 | M124: INE021A01026
A125: ASIANTILES | B125: EQ | C125: 262.65 | D125: 264.5 | E125: 254.1 | F125: 255.45 | G125: 254.5 | H125: 261.3 | I125: 94047 | J125: 24443632.35 | K125: 2019-06-24 | L125: 3656 | M125: INE022I01019
A126: ASPINWALL | B126: EQ | C126: 148 | D126: 156.95 | E126: 148 | F126: 150.95 | G126: 150.95 | H126: 149.2 | I126: 141 | J126: 21327.4 | K126: 2019-06-24 | L126: 12 | M126: INE991I01015
A127: ASSAMCO | B127: BE | C127: 1.35 | D127: 1.35 | E127: 1.25 | F127: 1.25 | G127: 1.25 | H127: 1.3 | I127: 220512 | J127: 277210.25 | K127: 2019-06-24 | L127: 110 | M127: INE442A01024
A128: ASTEC | B128: EQ | C128: 457.1 | D128: 464.85 | E128: 455 | F128: 459.2 | G128: 459.95 | H128: 459.5 | I128: 3586 | J128: 1639392.5 | K128: 2019-06-24 | L128: 308 | M128: INE563J01010
A129: ASTERDM | B129: EQ | C129: 137.75 | D129: 137.75 | E129: 132.9 | F129: 133.65 | G129: 134 | H129: 134.7 | I129: 17220 | J129: 2314128.3 | K129: 2019-06-24 | L129: 770 | M129: INE914M01019
A130: ASTRAL | B130: EQ | C130: 1296 | D130: 1333 | E130: 1296 | F130: 1321.8 | G130: 1324 | H130: 1298.2 | I130: 26625 | J130: 35215245.95 | K130: 2019-06-24 | L130: 3983 | M130: INE006I01046
A131: ASTRAMICRO | B131: EQ | C131: 87.05 | D131: 87.45 | E131: 85.4 | F131: 86.4 | G131: 87.45 | H131: 87.05 | I131: 67781 | J131: 5860054.25 | K131: 2019-06-24 | L131: 929 | M131: INE386C01029
A132: ASTRAZEN | B132: EQ | C132: 1917.75 | D132: 1955 | E132: 1911.2 | F132: 1945.4 | G132: 1935.4 | H132: 1887.85 | I132: 15029 | J132: 29075351.9 | K132: 2019-06-24 | L132: 1704 | M132: INE203A01020
A133: ASTRON | B133: EQ | C133: 118.2 | D133: 121.3 | E133: 118.1 | F133: 118.75 | G133: 118.6 | H133: 120 | I133: 269732 | J133: 32293937.55 | K133: 2019-06-24 | L133: 2264 | M133: INE646X01014
A134: ATFL | B134: EQ | C134: 497.1 | D134: 501.8 | E134: 494 | F134: 499.9 | G134: 499.9 | H134: 499.35 | I134: 1363 | J134: 681507.9 | K134: 2019-06-24 | L134: 77 | M134: INE209A01019
A135: ATLANTA | B135: EQ | C135: 9.1 | D135: 9.55 | E135: 8.95 | F135: 9.55 | G135: 9.55 | H135: 9.1 | I135: 21553 | J135: 201822.35 | K135: 2019-06-24 | L135: 168 | M135: INE285H01022
A136: ATLASCYCLE | B136: BE | C136: 34.55 | D136: 37.1 | E136: 34.55 | F136: 37.1 | G136: 37.1 | H136: 35.35 | I136: 2131 | J136: 78251.15 | K136: 2019-06-24 | L136: 32 | M136: INE446A01025
A137: ATNINTER | B137: BE | C137: 0.05 | D137: 0.1 | E137: 0.05 | F137: 0.1 | G137: 0.1 | H137: 0.05 | I137: 47907 | J137: 4781.65 | K137: 2019-06-24 | L137: 10 | M137: INE803A01027
A138: ATUL | B138: EQ | C138: 3985 | D138: 4046 | E138: 3970 | F138: 3993.1 | G138: 4000 | H138: 3983.35 | I138: 5954 | J138: 23805434.75 | K138: 2019-06-24 | L138: 1648 | M138: INE100A01010
A139: ATULAUTO | B139: EQ | C139: 270.6 | D139: 283 | E139: 268.75 | F139: 269.6 | G139: 269.8 | H139: 268.75 | I139: 19523 | J139: 5326048.35 | K139: 2019-06-24 | L139: 900 | M139: INE951D01028
A140: AUBANK | B140: EQ | C140: 696 | D140: 713.9 | E140: 686 | F140: 692.7 | G140: 688.7 | H140: 696.65 | I140: 239944 | J140: 167792130.1 | K140: 2019-06-24 | L140: 22595 | M140: INE949L01017
A141: AURIONPRO | B141: EQ | C141: 118.45 | D141: 119.9 | E141: 116.55 | F141: 118.8 | G141: 119.7 | H141: 118.65 | I141: 2947 | J141: 349382.45 | K141: 2019-06-24 | L141: 54 | M141: INE132H01018
A142: AUROPHARMA | B142: EQ | C142: 614.7 | D142: 614.7 | E142: 582.3 | F142: 586.3 | G142: 584.2 | H142: 602.45 | I142: 4412032 | J142: 2597412706 | K142: 2019-06-24 | L142: 100570 | M142: INE406A01037
A143: AUSOMENT | B143: EQ | C143: 35.05 | D143: 36.65 | E143: 35.05 | F143: 36.5 | G143: 36.3 | H143: 34.95 | I143: 1521 | J143: 54871.4 | K143: 2019-06-24 | L143: 31 | M143: INE218C01016
A144: AUTOAXLES | B144: EQ | C144: 1016.15 | D144: 1025 | E144: 1001.85 | F144: 1009.45 | G144: 1011 | H144: 1008.4 | I144: 3435 | J144: 3465936.95 | K144: 2019-06-24 | L144: 514 | M144: INE449A01011
A145: AUTOIND | B145: EQ | C145: 49.35 | D145: 50.5 | E145: 48.7 | F145: 49.85 | G145: 49.9 | H145: 49.35 | I145: 24967 | J145: 1243444.35 | K145: 2019-06-24 | L145: 122 | M145: INE718H01014
A146: AVADHSUGAR | B146: EQ | C146: 663.4 | D146: 685 | E146: 660 | F146: 663.85 | G146: 667.5 | H146: 656.2 | I146: 68455 | J146: 45817517.6 | K146: 2019-06-24 | L146: 3672 | M146: INE349W01017
A147: AVANTIFEED | B147: EQ | C147: 361.1 | D147: 365.9 | E147: 353.3 | F147: 355.45 | G147: 354.05 | H147: 364.35 | I147: 128090 | J147: 45955045.45 | K147: 2019-06-24 | L147: 4877 | M147: INE871C01038
A148: AVTNPL | B148: EQ | C148: 23.5 | D148: 23.8 | E148: 23.5 | F148: 23.75 | G148: 23.75 | H148: 23.65 | I148: 13229 | J148: 311791.4 | K148: 2019-06-24 | L148: 85 | M148: INE488D01021
A149: AXISBANK | B149: EQ | C149: 771 | D149: 775.25 | E149: 761 | F149: 762.85 | G149: 762.6 | H149: 771.05 | I149: 4866859 | J149: 3731627080 | K149: 2019-06-24 | L149: 106040 | M149: INE238A01034
A150: AXISCADES | B150: EQ | C150: 62.5 | D150: 65.8 | E150: 59.5 | F150: 63.05 | G150: 63 | H150: 61.85 | I150: 210273 | J150: 12986196.65 | K150: 2019-06-24 | L150: 1576 | M150: INE555B01013
A151: AXISGOLD | B151: EQ | C151: 2982.45 | D151: 2999.95 | E151: 2982.45 | F151: 2996.55 | G151: 2996 | H151: 2982.45 | I151: 253 | J151: 756914.55 | K151: 2019-06-24 | L151: 53 | M151: INF846K01347
A152: AXISNIFTY | B152: EQ | C152: 1190 | D152: 1204.28 | E152: 1190 | F152: 1203.66 | G152: 1203.74 | H152: 1211.27 | I152: 102 | J152: 122628.71 | K152: 2019-06-24 | L152: 12 | M152: INF846K01ZL0
A153: AYMSYNTEX | B153: EQ | C153: 41 | D153: 41 | E153: 39.35 | F153: 40.4 | G153: 40 | H153: 40.5 | I153: 908 | J153: 37047.7 | K153: 2019-06-24 | L153: 27 | M153: INE193B01039
A154: BAFNAPHARM | B154: BE | C154: 5.75 | D154: 6 | E154: 5.5 | F154: 5.95 | G154: 6 | H154: 5.75 | I154: 7685 | J154: 43841.55 | K154: 2019-06-24 | L154: 30 | M154: INE878I01014
A155: BAGFILMS | B155: EQ | C155: 3.95 | D155: 3.95 | E155: 3.75 | F155: 3.8 | G155: 3.75 | H155: 3.75 | I155: 22990 | J155: 87125 | K155: 2019-06-24 | L155: 73 | M155: INE116D01028
A156: BAJAJ-AUTO | B156: EQ | C156: 2855 | D156: 2877.1 | E156: 2801.2 | F156: 2816.9 | G156: 2814 | H156: 2875.55 | I156: 434882 | J156: 1225521436 | K156: 2019-06-24 | L156: 30879 | M156: INE917I01010
A157: BAJAJCON | B157: EQ | C157: 328 | D157: 337.2 | E157: 321.35 | F157: 328.1 | G157: 326.05 | H157: 328.5 | I157: 51558 | J157: 17031696.95 | K157: 2019-06-24 | L157: 2237 | M157: INE933K01021
A158: BAJAJELEC | B158: EQ | C158: 506 | D158: 507.95 | E158: 504.9 | F158: 505.2 | G158: 506 | H158: 507.25 | I158: 40532 | J158: 20490989.4 | K158: 2019-06-24 | L158: 1992 | M158: INE193E01025
A159: BAJAJFINSV | B159: EQ | C159: 8392.45 | D159: 8432 | E159: 8338 | F159: 8354.65 | G159: 8375 | H159: 8392.45 | I159: 107927 | J159: 904378548.9 | K159: 2019-06-24 | L159: 14537 | M159: INE918I01018
A160: BAJAJHIND | B160: EQ | C160: 7.6 | D160: 7.7 | E160: 7.4 | F160: 7.65 | G160: 7.7 | H160: 7.5 | I160: 1509924 | J160: 11410551 | K160: 2019-06-24 | L160: 2211 | M160: INE306A01021
A161: BAJAJHLDNG | B161: EQ | C161: 3634 | D161: 3659 | E161: 3572 | F161: 3603.95 | G161: 3607.05 | H161: 3633.4 | I161: 18104 | J161: 65457225.4 | K161: 2019-06-24 | L161: 3857 | M161: INE118A01012
A162: BAJFINANCE | B162: EQ | C162: 3562 | D162: 3579.9 | E162: 3533.05 | F162: 3545.35 | G162: 3546.05 | H162: 3565.85 | I162: 543703 | J162: 1930969116 | K162: 2019-06-24 | L162: 31073 | M162: INE296A01024
A163: BALAJITELE | B163: EQ | C163: 62.6 | D163: 63.35 | E163: 58.9 | F163: 60.8 | G163: 60.1 | H163: 62.65 | I163: 30766 | J163: 1878143.3 | K163: 2019-06-24 | L163: 573 | M163: INE794B01026
A164: BALAMINES | B164: EQ | C164: 379 | D164: 381 | E164: 372.65 | F164: 377.8 | G164: 378.1 | H164: 375.1 | I164: 8920 | J164: 3365949.85 | K164: 2019-06-24 | L164: 426 | M164: INE050E01027
A165: BALAXI | B165: BE | C165: 95.45 | D165: 95.45 | E165: 95.45 | F165: 95.45 | G165: 95.45 | H165: 100.45 | I165: 1455 | J165: 138879.75 | K165: 2019-06-24 | L165: 7 | M165: INE618N01014
A166: BALKRISHNA | B166: EQ | C166: 28 | D166: 32 | E166: 27.9 | F166: 29.95 | G166: 29.85 | H166: 28.95 | I166: 6518 | J166: 192780 | K166: 2019-06-24 | L166: 169 | M166: INE875R01011
A167: BALKRISIND | B167: EQ | C167: 747 | D167: 750.45 | E167: 732.7 | F167: 741.3 | G167: 740 | H167: 746.3 | I167: 395077 | J167: 293048895.9 | K167: 2019-06-24 | L167: 13521 | M167: INE787D01026
A168: BALLARPUR | B168: EQ | C168: 1.95 | D168: 2 | E168: 1.85 | F168: 1.95 | G168: 1.95 | H168: 1.9 | I168: 489553 | J168: 941087.1 | K168: 2019-06-24 | L168: 275 | M168: INE294A01037
A169: BALMLAWRIE | B169: EQ | C169: 180.1 | D169: 182.4 | E169: 180 | F169: 180.6 | G169: 180.9 | H169: 180.95 | I169: 22987 | J169: 4161873.2 | K169: 2019-06-24 | L169: 626 | M169: INE164A01016
A170: BALPHARMA | B170: EQ | C170: 55.2 | D170: 56 | E170: 54.6 | F170: 55.5 | G170: 55.95 | H170: 56.45 | I170: 3257 | J170: 179867.6 | K170: 2019-06-24 | L170: 120 | M170: INE083D01012
A171: BALRAMCHIN | B171: EQ | C171: 141.15 | D171: 141.95 | E171: 136.25 | F171: 137 | G171: 136.6 | H171: 139.7 | I171: 923700 | J171: 127918869.8 | K171: 2019-06-24 | L171: 19446 | M171: INE119A01028
A172: BANARBEADS | B172: EQ | C172: 42.05 | D172: 43.85 | E172: 42 | F172: 42.8 | G172: 43.85 | H172: 41.7 | I172: 1319 | J172: 56162.55 | K172: 2019-06-24 | L172: 22 | M172: INE655B01011
A173: BANARISUG | B173: EQ | C173: 1525 | D173: 1525 | E173: 1410 | F173: 1415.8 | G173: 1410 | H173: 1485.4 | I173: 228 | J173: 326410.75 | K173: 2019-06-24 | L173: 84 | M173: INE459A01010
A174: BANCOINDIA | B174: EQ | C174: 122.1 | D174: 122.85 | E174: 118.7 | F174: 119.65 | G174: 118.75 | H174: 122.8 | I174: 19779 | J174: 2381852.45 | K174: 2019-06-24 | L174: 565 | M174: INE213C01025
A175: BANDHANBNK | B175: EQ | C175: 531.4 | D175: 548 | E175: 531 | F175: 533.9 | G175: 533 | H175: 530.75 | I175: 339147 | J175: 181933193 | K175: 2019-06-24 | L175: 19846 | M175: INE545U01014
A176: BANG | B176: EQ | C176: 42.15 | D176: 43 | E176: 40.4 | F176: 41.45 | G176: 41 | H176: 42.15 | I176: 4656 | J176: 193432.65 | K176: 2019-06-24 | L176: 228 | M176: INE863I01016
A177: BANKBARODA | B177: EQ | C177: 118.35 | D177: 119.95 | E177: 117.4 | F177: 118.25 | G177: 118.1 | H177: 118.05 | I177: 16957023 | J177: 2012372408 | K177: 2019-06-24 | L177: 50300 | M177: INE028A01039
A178: BANKBEES | B178: EQ | C178: 3118.15 | D178: 3140 | E178: 3117.5 | F178: 3128.09 | G178: 3131 | H178: 3126.46 | I178: 1574 | J178: 4922483.42 | K178: 2019-06-24 | L178: 239 | M178: INF732E01078
A179: BANKINDIA | B179: EQ | C179: 87 | D179: 88 | E179: 85.85 | F179: 86.35 | G179: 86.35 | H179: 86.95 | I179: 4248911 | J179: 369411261.6 | K179: 2019-06-24 | L179: 15942 | M179: INE084A01016
A180: BANSWRAS | B180: EQ | C180: 63.1 | D180: 66.75 | E180: 63.1 | F180: 66.25 | G180: 66.7 | H180: 65.65 | I180: 1429 | J180: 94001.85 | K180: 2019-06-24 | L180: 48 | M180: INE629D01012
A181: BARTRONICS | B181: EQ | C181: 3.8 | D181: 3.8 | E181: 3.4 | F181: 3.45 | G181: 3.4 | H181: 3.55 | I181: 14625 | J181: 51797.35 | K181: 2019-06-24 | L181: 70 | M181: INE855F01034
A182: BASF | B182: EQ | C182: 1376 | D182: 1376 | E182: 1320 | F182: 1332.35 | G182: 1333 | H182: 1336.4 | I182: 3575 | J182: 4782493.5 | K182: 2019-06-24 | L182: 863 | M182: INE373A01013
A183: BASML | B183: EQ | C183: 151.05 | D183: 158 | E183: 151 | F183: 154.95 | G183: 153.05 | H183: 157.1 | I183: 133 | J183: 20218.9 | K183: 2019-06-24 | L183: 18 | M183: INE186H01014
A184: BATAINDIA | B184: EQ | C184: 1414.95 | D184: 1430.65 | E184: 1388 | F184: 1405.35 | G184: 1408 | H184: 1404.6 | I184: 341976 | J184: 478998262.1 | K184: 2019-06-24 | L184: 10503 | M184: INE176A01028
A185: BAYERCROP | B185: EQ | C185: 3322 | D185: 3374 | E185: 3308.35 | F185: 3360.4 | G185: 3322.3 | H185: 3340.1 | I185: 4237 | J185: 14182438.55 | K185: 2019-06-24 | L185: 1722 | M185: INE462A01022
A186: BBL | B186: EQ | C186: 1068.6 | D186: 1076.95 | E186: 1059.9 | F186: 1064.35 | G186: 1065 | H186: 1071.7 | I186: 1189 | J186: 1266220.3 | K186: 2019-06-24 | L186: 163 | M186: INE464A01028
A187: BBTC | B187: EQ | C187: 989 | D187: 989 | E187: 957 | F187: 960.9 | G187: 960 | H187: 984.65 | I187: 40791 | J187: 39423685.4 | K187: 2019-06-24 | L187: 2899 | M187: INE050A01025
A188: BCG | B188: BE | C188: 4.6 | D188: 4.95 | E188: 4.55 | F188: 4.95 | G188: 4.95 | H188: 4.75 | I188: 274833 | J188: 1302490.95 | K188: 2019-06-24 | L188: 153 | M188: INE425B01027
A189: BDL | B189: EQ | C189: 303.25 | D189: 309.05 | E189: 303.25 | F189: 305.15 | G189: 305.3 | H189: 305.5 | I189: 19812 | J189: 6057339.15 | K189: 2019-06-24 | L189: 1055 | M189: INE171Z01018
A190: BEARDSELL | B190: EQ | C190: 13.55 | D190: 14.95 | E190: 12.85 | F190: 14.1 | G190: 14 | H190: 13.8 | I190: 484 | J190: 6900.3 | K190: 2019-06-24 | L190: 22 | M190: INE520H01022
A191: BEDMUTHA | B191: EQ | C191: 14.35 | D191: 15.25 | E191: 14.3 | F191: 15.15 | G191: 15.2 | H191: 14.75 | I191: 1114 | J191: 16532.65 | K191: 2019-06-24 | L191: 12 | M191: INE844K01012
A192: BEL | B192: EQ | C192: 111.85 | D192: 115.2 | E192: 111.5 | F192: 114.75 | G192: 115 | H192: 111.5 | I192: 14050589 | J192: 1599762022 | K192: 2019-06-24 | L192: 54381 | M192: INE263A01024
A193: BEML | B193: EQ | C193: 829.5 | D193: 835.15 | E193: 810.25 | F193: 823.7 | G193: 821.9 | H193: 830.45 | I193: 1688491 | J193: 1387641662 | K193: 2019-06-24 | L193: 36738 | M193: INE258A01016
A194: BEPL | B194: EQ | C194: 60.4 | D194: 64.4 | E194: 60.4 | F194: 62.65 | G194: 62.65 | H194: 60.75 | I194: 317154 | J194: 19918640.95 | K194: 2019-06-24 | L194: 2935 | M194: INE922A01025
A195: BERGEPAINT | B195: EQ | C195: 317.5 | D195: 319.65 | E195: 313.15 | F195: 313.9 | G195: 313.8 | H195: 317.7 | I195: 241692 | J195: 76257118.1 | K195: 2019-06-24 | L195: 4432 | M195: INE463A01038
A196: BFINVEST | B196: EQ | C196: 246 | D196: 253.4 | E196: 244 | F196: 250.1 | G196: 250 | H196: 244.4 | I196: 76806 | J196: 19161921.15 | K196: 2019-06-24 | L196: 1276 | M196: INE878K01010
A197: BFUTILITIE | B197: EQ | C197: 179.95 | D197: 181.85 | E197: 175.8 | F197: 178.2 | G197: 177.45 | H197: 179.9 | I197: 201267 | J197: 36033937.45 | K197: 2019-06-24 | L197: 5078 | M197: INE243D01012
A198: BGLOBAL | B198: BE | C198: 2.1 | D198: 2.15 | E198: 2.1 | F198: 2.1 | G198: 2.1 | H198: 2.2 | I198: 10258 | J198: 21682.2 | K198: 2019-06-24 | L198: 17 | M198: INE224M01013
A199: BGRENERGY | B199: EQ | C199: 49.35 | D199: 50.4 | E199: 48.5 | F199: 49.6 | G199: 49.4 | H199: 49.35 | I199: 44308 | J199: 2198296.05 | K199: 2019-06-24 | L199: 616 | M199: INE661I01014
A200: BHAGERIA | B200: EQ | C200: 250.1 | D200: 252.75 | E200: 246.1 | F200: 249.4 | G200: 249.35 | H200: 250.1 | I200: 2583 | J200: 643784.75 | K200: 2019-06-24 | L200: 174 | M200: INE354C01027
... 1441 more rows

Sheet Sheet1 (hidden)

Sheet Sheet3 (hidden)

Sheet Sheet4 (hidden)
